Workbook

Sheet Read Me
A1: Guidance for use of the Aluminun Criteria Calculator V.2.0.Macro
A3: Introduction
A4: To faciliate adoption of the 2018 aluminum criteria, EPA developed a macro-enabled Excel file that allows users to caclulate multiple criteria values for various water chemistry scenarios. The draft aluminum criteria are dependent on the hardness, pH and dissolved organic carbon (DOC) of the site water. The Excel file also provides the acute and chronic datasets used to calculate the values, the formulas used to normalize the data, and the assumptions made on missing water chemistry parameters for added transparency. This guidance document outlines how users can calculate criteria values for aluminum using this Excel file. Additionaly acute and chronic criteria values for various scenarios are also provided in Appendix K of the aluminum ambient water quality criteria document.
A6: Getting Started – Initial Steps
A7: Download the Excel file from the docket or aluminum criteria website and save on your hard drive. Depending on the security settings on your computer you will need to hit one or both of the, “Enable Editing” and “Enable Content” buttons before use (see figure below).
A18: The Excel File consists of six sheets: Read Me, Multiple Scenarios, Over 20 Scenarios, Summary Sheet, Acute Dataset and Chronic Dataset. Only two of these sheets can be edited by the user to enter water chemistry parameters: Multiple Scenarios and Over 20 Scenarios. The other sheets are provided for transparency to see how values (i.e., Genus Mean Acute Values (GMAVs), Genus Mean Chronic Values (GMCVs)) are calculated and how the data are used to construct the sensitivity distribution (SD).
A27: Acute Dataset
A28: This sheet contains all the freshwater acute data used to construct the SD for the aluminum freshwater acute criterion (the Criterion Maximum Concentration or CMC). This spreadsheet has been locked for editing and cannot be manipulated. However, all of the calculations, normalization equations and water chemistry data are still available to be viewed. The values in columns K [Normalized Conc. - LC50 (µg/L)], N [Species Mean Acute Value (µg/L)], and O [Genus Mean Acute Value (µg/L)] are all based on the user supplied water chemistry values.
A47: Chronic Dataset
A48: This sheet contains all the freshwater chronic data used to construct the SD for the freshwater aluminum chronic criterion (the Criterion Continuous Concentration or CCC). This spreadsheet has also been locked for editing and cannot be manipulated. However, all of the calculations, normalization equations and water chemistry data are still available to be viewed. The values in columns K [Normalized Conc. - EC20 (µg/L)], N [SMCV-EC20 (µg/L)], and O [GMCV-EC20 (µg/L)] are all based on the user supplied chemistry values in the Summary Sheet (see figure below).
A67: Summary Sheet
A68: This spreadsheet is used to generate all of the criteria values for all of the water chemistry scenarios. Three cells (C4, C5, and C6) are the water chemistry inputs used to generate criteria values, SMAVs, SMCVs, GMAVs, and GMCVs. These cells are highlighted so the user can know what SD is displayed. The value for these cells will come from the "Multiple Scenarios" tab or the "Over 20 Scenarios" tab and will be the last entry Row 29 or Row 509, respectively after the Macro-enable button is clicked.
A104: EPA aluminum criteria recommend staying within specific limits for pH (5.0-10.5), total hardness (0.01-430 mg/L as CaCO3) and DOC (0.08-12.0 mg/L) for generating criteria. When water chemistry conditions outside these recommendations are encountered, the Macro-enable buttons will edit values to the maximum and/or minimum recommended value. Additionally it will flag values that are "outside model inputs"; for more information please refer to the aluminum criteria document. As more data become available, these recommendations may change. The summary sheet also provides the SDs for the acute and chronic datasets, the criteria calculations and the Final Acute Value (FAV), CMC and CCC based on the values in C4 (pH), C5 (hardness) and C6 (DOC). The CMC and CCC values in bold (H5 and H6) are rounded to two significant figures.
A107: Multiple Scenarios and Over 20 Scenarios
A108: These sheets have a macro-enabled buttons, “Run Scenarios” that will run the calculations for 20 or 500 different water chemistry inputs to provide a quick way to calculate multiple criteria values. Users first enter water chemistry conditions of interest in the highlighted cells in columns B, C, D, and E, then click the “Run Scenarios” button. The spreadsheet will run the necessary calculations and populate all of the other cells (please note that this step could take a few minutes depending on the computing speed of your computer). The macro-enable button uses the Summary Sheet to generate the values, so that the last entry will now be displayed there.
A124: Again, for each set of conditions, the Excel file will default to the recommended maximum/minimum values when the pH, DOC or hardness values of interest are beyond the specified limits. This sheet will also display the lowest four ranked genera, their GMAV/GMCV, the FAV, CMC and CCC for each set of conditions. Again the CMC and CCC are rounded to two significant figures. To calculate more scenarios, just enter new values into columns B, C, D, and E, and hit the “Run Scenarios” button again. There is no need to save the file when closing.

Sheet Multiple Scenarios
E1: All concentrations reported are µg/L total Aluminum
E3: <-----Click Button after entering data
B7: ENTER DATA HERE | K7: ACUTE | X7: CHRONIC
K8: Rank 1 | N8: Rank 2 | Q8: Rank 3 | T8: Rank 4 | X8: Rank 1 | AA8: Rank 2 | AD8: Rank 3 | AG8: Rank 4
B9: SiteName | C9: DOC (mg/L) | D9: Total Hardness (mg/L as CaCO3) | E9: pH | G9: FAV | H9: CMC | I9: CCC | J9: Flag | K9: Genus | L9: GMAV | N9: Genus | O9: GMAV | Q9: Genus | R9: GMAV | T9: Genus | U9: GMAV | X9: Genus | Y9: GMCV | AA9: Genus | AB9: GMCV | AD9: Genus | AE9: GMCV | AG9: Genus | AH9: GMCV
B10: Site 1 | C10: 1 | D10: 25 | E10: 7 | F10: 7542.873703 | G10: 1235.085489 | H10: 620 | I10: 300 | J10: =IF(OR(C10>12,D10>430,E10<6,E10>8.2),"Outside model inputs"," ") ->  | K10: Daphnia | M10: 1196.756586 | N10: Micropterus | P10: 2148.012545 | Q10: Oncorhynchus | S10: 2381.28216 | T10: Ceriodaphnia | V10: 4000.010188 | X10: Salmo | Z10: 312.327018 | AA10: Salvelinus | AC10: 458.8285267 | AD10: Daphnia | AF10: 507.1817754 | AG10: Lampsilis | AI10: 528.2105695
B11: Site 2 | C11: 1 | D11: 50 | E11: 7 | F11: 7542.873703 | G11: 1572.911408 | H11: 790 | I11: 340 | J11: =IF(OR(C11>12,D11>430,E11<6,E11>8.2),"Outside model inputs"," ") ->  | K11: Daphnia | M11: 1668.01209 | N11: Micropterus | P11: 2533.272755 | Q11: Oncorhynchus | S11: 2808.380814 | T11: Ceriodaphnia | V11: 5575.123154 | X11: Salmo | Z11: 368.3449276 | AA11: Salvelinus | AC11: 541.1224477 | AD11: Daphnia | AF11: 706.8984144 | AG11: Lampsilis | AI11: 736.207869
B12: Site 3 | C12: 1 | D12: 100 | E12: 7 | F12: 7542.873703 | G12: 1960.725394 | H12: 980 | I12: 380 | K12: Daphnia | M12: 2324.837285 | N12: Micropterus | P12: 2987.631924 | Q12: Oncorhynchus | S12: 3312.082426 | T12: Ceriodaphnia | V12: 7770.479755 | X12: Salmo | Z12: 434.4100186 | AA12: Salvelinus | AC12: 638.176326 | AD12: Daphnia | AF12: 985.25892 | AG12: Lampsilis | AI12: 1026.109771
B13: Site 4 | C13: 1 | D13: 150 | E13: 7 | F13: 7542.873703 | G13: 2210.754174 | H13: 1100 | I13: 400 | K13: Daphnia | M13: 2823.191093 | N13: Micropterus | P13: 3290.309952 | Q13: Oncorhynchus | S13: 3647.630647 | T13: Ceriodaphnia | V13: 9436.165436 | X13: Salmo | Z13: 478.4202484 | AA13: Salvelinus | AC13: 702.8301912 | AD13: Daphnia | AF13: 1196.459737 | AG13: Lampsilis | AI13: 1246.067406
B14: Site 5 | C14: 1 | D14: 100 | E14: 7 | F14: 7542.873703 | G14: 1960.725394 | H14: 980 | I14: 380 | K14: Daphnia | M14: 2324.837285 | N14: Micropterus | P14: 2987.631924 | Q14: Oncorhynchus | S14: 3312.082426 | T14: Ceriodaphnia | V14: 7770.479755 | X14: Salmo | Z14: 434.4100186 | AA14: Salvelinus | AC14: 638.176326 | AD14: Daphnia | AF14: 985.25892 | AG14: Lampsilis | AI14: 1026.109771
B15: Site 6 | C15: 1 | D15: 100 | E15: 7 | F15: 7542.873703 | G15: 1960.725394 | H15: 980 | I15: 380 | K15: Daphnia | M15: 2324.837285 | N15: Micropterus | P15: 2987.631924 | Q15: Oncorhynchus | S15: 3312.082426 | T15: Ceriodaphnia | V15: 7770.479755 | X15: Salmo | Z15: 434.4100186 | AA15: Salvelinus | AC15: 638.176326 | AD15: Daphnia | AF15: 985.25892 | AG15: Lampsilis | AI15: 1026.109771
B16: Site 7 | C16: 1 | D16: 100 | E16: 7 | F16: 7542.873703 | G16: 1960.725394 | H16: 980 | I16: 380 | K16: Daphnia | M16: 2324.837285 | N16: Micropterus | P16: 2987.631924 | Q16: Oncorhynchus | S16: 3312.082426 | T16: Ceriodaphnia | V16: 7770.479755 | X16: Salmo | Z16: 434.4100186 | AA16: Salvelinus | AC16: 638.176326 | AD16: Daphnia | AF16: 985.25892 | AG16: Lampsilis | AI16: 1026.109771
B17: Site 8 | C17: 1 | D17: 100 | E17: 7 | F17: 7542.873703 | G17: 1960.725394 | H17: 980 | I17: 380 | K17: Daphnia | M17: 2324.837285 | N17: Micropterus | P17: 2987.631924 | Q17: Oncorhynchus | S17: 3312.082426 | T17: Ceriodaphnia | V17: 7770.479755 | X17: Salmo | Z17: 434.4100186 | AA17: Salvelinus | AC17: 638.176326 | AD17: Daphnia | AF17: 985.25892 | AG17: Lampsilis | AI17: 1026.109771
B18: Site 9 | C18: 1 | D18: 100 | E18: 7 | F18: 7542.873703 | G18: 1960.725394 | H18: 980 | I18: 380 | K18: Daphnia | M18: 2324.837285 | N18: Micropterus | P18: 2987.631924 | Q18: Oncorhynchus | S18: 3312.082426 | T18: Ceriodaphnia | V18: 7770.479755 | X18: Salmo | Z18: 434.4100186 | AA18: Salvelinus | AC18: 638.176326 | AD18: Daphnia | AF18: 985.25892 | AG18: Lampsilis | AI18: 1026.109771
B19: Site 10 | C19: 1 | D19: 100 | E19: 7 | F19: 7542.873703 | G19: 1960.725394 | H19: 980 | I19: 380 | K19: Daphnia | M19: 2324.837285 | N19: Micropterus | P19: 2987.631924 | Q19: Oncorhynchus | S19: 3312.082426 | T19: Ceriodaphnia | V19: 7770.479755 | X19: Salmo | Z19: 434.4100186 | AA19: Salvelinus | AC19: 638.176326 | AD19: Daphnia | AF19: 985.25892 | AG19: Lampsilis | AI19: 1026.109771
B20: Site 11 | C20: 1 | D20: 100 | E20: 7 | F20: 7542.873703 | G20: 1960.725394 | H20: 980 | I20: 380 | K20: Daphnia | M20: 2324.837285 | N20: Micropterus | P20: 2987.631924 | Q20: Oncorhynchus | S20: 3312.082426 | T20: Ceriodaphnia | V20: 7770.479755 | X20: Salmo | Z20: 434.4100186 | AA20: Salvelinus | AC20: 638.176326 | AD20: Daphnia | AF20: 985.25892 | AG20: Lampsilis | AI20: 1026.109771
B21: Site 12 | C21: 1 | D21: 100 | E21: 7 | F21: 7542.873703 | G21: 1960.725394 | H21: 980 | I21: 380 | K21: Daphnia | M21: 2324.837285 | N21: Micropterus | P21: 2987.631924 | Q21: Oncorhynchus | S21: 3312.082426 | T21: Ceriodaphnia | V21: 7770.479755 | X21: Salmo | Z21: 434.4100186 | AA21: Salvelinus | AC21: 638.176326 | AD21: Daphnia | AF21: 985.25892 | AG21: Lampsilis | AI21: 1026.109771
B22: Site 13 | C22: 1 | D22: 100 | E22: 7 | F22: 7542.873703 | G22: 1960.725394 | H22: 980 | I22: 380 | K22: Daphnia | M22: 2324.837285 | N22: Micropterus | P22: 2987.631924 | Q22: Oncorhynchus | S22: 3312.082426 | T22: Ceriodaphnia | V22: 7770.479755 | X22: Salmo | Z22: 434.4100186 | AA22: Salvelinus | AC22: 638.176326 | AD22: Daphnia | AF22: 985.25892 | AG22: Lampsilis | AI22: 1026.109771
B23: Site 14 | C23: 1 | D23: 100 | E23: 7 | F23: 7542.873703 | G23: 1960.725394 | H23: 980 | I23: 380 | K23: Daphnia | M23: 2324.837285 | N23: Micropterus | P23: 2987.631924 | Q23: Oncorhynchus | S23: 3312.082426 | T23: Ceriodaphnia | V23: 7770.479755 | X23: Salmo | Z23: 434.4100186 | AA23: Salvelinus | AC23: 638.176326 | AD23: Daphnia | AF23: 985.25892 | AG23: Lampsilis | AI23: 1026.109771
B24: Site 15 | C24: 1 | D24: 100 | E24: 7 | F24: 7542.873703 | G24: 1960.725394 | H24: 980 | I24: 380 | K24: Daphnia | M24: 2324.837285 | N24: Micropterus | P24: 2987.631924 | Q24: Oncorhynchus | S24: 3312.082426 | T24: Ceriodaphnia | V24: 7770.479755 | X24: Salmo | Z24: 434.4100186 | AA24: Salvelinus | AC24: 638.176326 | AD24: Daphnia | AF24: 985.25892 | AG24: Lampsilis | AI24: 1026.109771
B25: Site 16 | C25: 1 | D25: 100 | E25: 7 | F25: 7542.873703 | G25: 1960.725394 | H25: 980 | I25: 380 | K25: Daphnia | M25: 2324.837285 | N25: Micropterus | P25: 2987.631924 | Q25: Oncorhynchus | S25: 3312.082426 | T25: Ceriodaphnia | V25: 7770.479755 | X25: Salmo | Z25: 434.4100186 | AA25: Salvelinus | AC25: 638.176326 | AD25: Daphnia | AF25: 985.25892 | AG25: Lampsilis | AI25: 1026.109771
B26: Site 17 | C26: 1 | D26: 100 | E26: 7 | F26: 7542.873703 | G26: 1960.725394 | H26: 980 | I26: 380 | K26: Daphnia | M26: 2324.837285 | N26: Micropterus | P26: 2987.631924 | Q26: Oncorhynchus | S26: 3312.082426 | T26: Ceriodaphnia | V26: 7770.479755 | X26: Salmo | Z26: 434.4100186 | AA26: Salvelinus | AC26: 638.176326 | AD26: Daphnia | AF26: 985.25892 | AG26: Lampsilis | AI26: 1026.109771
B27: Site 18 | C27: 1 | D27: 100 | E27: 7 | F27: 7542.873703 | G27: 1960.725394 | H27: 980 | I27: 380 | K27: Daphnia | M27: 2324.837285 | N27: Micropterus | P27: 2987.631924 | Q27: Oncorhynchus | S27: 3312.082426 | T27: Ceriodaphnia | V27: 7770.479755 | X27: Salmo | Z27: 434.4100186 | AA27: Salvelinus | AC27: 638.176326 | AD27: Daphnia | AF27: 985.25892 | AG27: Lampsilis | AI27: 1026.109771
B28: Site 19 | C28: 1 | D28: 100 | E28: 7 | F28: 7542.873703 | G28: 1960.725394 | H28: 980 | I28: 380 | K28: Daphnia | M28: 2324.837285 | N28: Micropterus | P28: 2987.631924 | Q28: Oncorhynchus | S28: 3312.082426 | T28: Ceriodaphnia | V28: 7770.479755 | X28: Salmo | Z28: 434.4100186 | AA28: Salvelinus | AC28: 638.176326 | AD28: Daphnia | AF28: 985.25892 | AG28: Lampsilis | AI28: 1026.109771
B29: Site 20 | C29: 1 | D29: 200 | E29: 7 | F29: 7542.873703 | G29: 2448.752295 | H29: 1200 | I29: 420 | K29: Daphnia | M29: 3240.305291 | N29: Micropterus | P29: 3523.483404 | Q29: Oncorhynchus | S29: 3906.126244 | T29: Salmo | V29: 10191.61735 | X29: Salmo | Z29: 512.3243191 | AA29: Salvelinus | AC29: 752.637457 | AD29: Daphnia | AF29: 1373.231457 | AG29: Lampsilis | AI29: 1430.168443

Sheet Over 20 Scenarios
E1: All concentrations reported are µg/L total Aluminum
E3: <-----Click Button after entering data
B7: ENTER DATA HERE | K7: ACUTE | X7: CHRONIC
K8: Rank 1 | N8: Rank 2 | Q8: Rank 3 | T8: Rank 4 | X8: Rank 1 | AA8: Rank 2 | AD8: Rank 3 | AG8: Rank 4
B9: SiteName | C9: DOC (mg/L) | D9: Total Hardness (mg/L as CaCO3) | E9: pH | G9: FAV | H9: CMC | I9: CCC | J9: Flag | K9: Genus | L9: GMAV | N9: Genus | O9: GMAV | Q9: Genus | R9: GMAV | T9: Genus | U9: GMAV | X9: Genus | Y9: GMCV | AA9: Genus | AB9: GMCV | AD9: Genus | AE9: GMCV | AG9: Genus | AH9: GMCV
B10: Site 1 | C10: 1 | D10: 100 | E10: 7 | F10: 7542.873703 | G10: 1960.725394 | H10: 980 | I10: 380 | J10: =IF(OR(C10>12,D10>430,E10<6,E10>8.2),"Outside model inputs"," ") ->  | K10: Daphnia | M10: 2324.837285 | N10: Micropterus | P10: 2987.631924 | Q10: Oncorhynchus | S10: 3312.082426 | T10: Ceriodaphnia | V10: 7770.479755 | X10: Salmo | Z10: 434.4100186 | AA10: Salvelinus | AC10: 638.176326 | AD10: Daphnia | AF10: 985.25892 | AG10: Lampsilis | AI10: 1026.109771
B11: Site 2 | C11: 1 | D11: 100 | E11: 7 | F11: 7542.873703 | G11: 1960.725394 | H11: 980 | I11: 380 | J11: =IF(OR(C11>12,D11>430,E11<6,E11>8.2),"Outside model inputs"," ") ->  | K11: Daphnia | M11: 2324.837285 | N11: Micropterus | P11: 2987.631924 | Q11: Oncorhynchus | S11: 3312.082426 | T11: Ceriodaphnia | V11: 7770.479755 | X11: Salmo | Z11: 434.4100186 | AA11: Salvelinus | AC11: 638.176326 | AD11: Daphnia | AF11: 985.25892 | AG11: Lampsilis | AI11: 1026.109771
B12: Site 3 | C12: 1 | D12: 100 | E12: 7 | F12: 7542.873703 | G12: 1960.725394 | H12: 980 | I12: 380 | K12: Daphnia | M12: 2324.837285 | N12: Micropterus | P12: 2987.631924 | Q12: Oncorhynchus | S12: 3312.082426 | T12: Ceriodaphnia | V12: 7770.479755 | X12: Salmo | Z12: 434.4100186 | AA12: Salvelinus | AC12: 638.176326 | AD12: Daphnia | AF12: 985.25892 | AG12: Lampsilis | AI12: 1026.109771
B13: Site 4 | C13: 1 | D13: 100 | E13: 7 | F13: 7542.873703 | G13: 1960.725394 | H13: 980 | I13: 380 | K13: Daphnia | M13: 2324.837285 | N13: Micropterus | P13: 2987.631924 | Q13: Oncorhynchus | S13: 3312.082426 | T13: Ceriodaphnia | V13: 7770.479755 | X13: Salmo | Z13: 434.4100186 | AA13: Salvelinus | AC13: 638.176326 | AD13: Daphnia | AF13: 985.25892 | AG13: Lampsilis | AI13: 1026.109771
B14: Site 5 | C14: 1 | D14: 100 | E14: 7 | F14: 7542.873703 | G14: 1960.725394 | H14: 980 | I14: 380 | K14: Daphnia | M14: 2324.837285 | N14: Micropterus | P14: 2987.631924 | Q14: Oncorhynchus | S14: 3312.082426 | T14: Ceriodaphnia | V14: 7770.479755 | X14: Salmo | Z14: 434.4100186 | AA14: Salvelinus | AC14: 638.176326 | AD14: Daphnia | AF14: 985.25892 | AG14: Lampsilis | AI14: 1026.109771
B15: Site 6 | C15: 1 | D15: 100 | E15: 7 | F15: 7542.873703 | G15: 1960.725394 | H15: 980 | I15: 380 | K15: Daphnia | M15: 2324.837285 | N15: Micropterus | P15: 2987.631924 | Q15: Oncorhynchus | S15: 3312.082426 | T15: Ceriodaphnia | V15: 7770.479755 | X15: Salmo | Z15: 434.4100186 | AA15: Salvelinus | AC15: 638.176326 | AD15: Daphnia | AF15: 985.25892 | AG15: Lampsilis | AI15: 1026.109771
B16: Site 7 | C16: 1 | D16: 100 | E16: 7 | F16: 7542.873703 | G16: 1960.725394 | H16: 980 | I16: 380 | K16: Daphnia | M16: 2324.837285 | N16: Micropterus | P16: 2987.631924 | Q16: Oncorhynchus | S16: 3312.082426 | T16: Ceriodaphnia | V16: 7770.479755 | X16: Salmo | Z16: 434.4100186 | AA16: Salvelinus | AC16: 638.176326 | AD16: Daphnia | AF16: 985.25892 | AG16: Lampsilis | AI16: 1026.109771
B17: Site 8 | C17: 1 | D17: 100 | E17: 7 | F17: 7542.873703 | G17: 1960.725394 | H17: 980 | I17: 380 | K17: Daphnia | M17: 2324.837285 | N17: Micropterus | P17: 2987.631924 | Q17: Oncorhynchus | S17: 3312.082426 | T17: Ceriodaphnia | V17: 7770.479755 | X17: Salmo | Z17: 434.4100186 | AA17: Salvelinus | AC17: 638.176326 | AD17: Daphnia | AF17: 985.25892 | AG17: Lampsilis | AI17: 1026.109771
B18: Site 9 | C18: 1 | D18: 100 | E18: 7 | F18: 7542.873703 | G18: 1960.725394 | H18: 980 | I18: 380 | K18: Daphnia | M18: 2324.837285 | N18: Micropterus | P18: 2987.631924 | Q18: Oncorhynchus | S18: 3312.082426 | T18: Ceriodaphnia | V18: 7770.479755 | X18: Salmo | Z18: 434.4100186 | AA18: Salvelinus | AC18: 638.176326 | AD18: Daphnia | AF18: 985.25892 | AG18: Lampsilis | AI18: 1026.109771
B19: Site 10 | C19: 1 | D19: 100 | E19: 7 | F19: 7542.873703 | G19: 1960.725394 | H19: 980 | I19: 380 | K19: Daphnia | M19: 2324.837285 | N19: Micropterus | P19: 2987.631924 | Q19: Oncorhynchus | S19: 3312.082426 | T19: Ceriodaphnia | V19: 7770.479755 | X19: Salmo | Z19: 434.4100186 | AA19: Salvelinus | AC19: 638.176326 | AD19: Daphnia | AF19: 985.25892 | AG19: Lampsilis | AI19: 1026.109771
B20: Site 11 | C20: 1 | D20: 100 | E20: 7 | F20: 7542.873703 | G20: 1960.725394 | H20: 980 | I20: 380 | K20: Daphnia | M20: 2324.837285 | N20: Micropterus | P20: 2987.631924 | Q20: Oncorhynchus | S20: 3312.082426 | T20: Ceriodaphnia | V20: 7770.479755 | X20: Salmo | Z20: 434.4100186 | AA20: Salvelinus | AC20: 638.176326 | AD20: Daphnia | AF20: 985.25892 | AG20: Lampsilis | AI20: 1026.109771
B21: Site 12 | C21: 1 | D21: 100 | E21: 7 | F21: 7542.873703 | G21: 1960.725394 | H21: 980 | I21: 380 | K21: Daphnia | M21: 2324.837285 | N21: Micropterus | P21: 2987.631924 | Q21: Oncorhynchus | S21: 3312.082426 | T21: Ceriodaphnia | V21: 7770.479755 | X21: Salmo | Z21: 434.4100186 | AA21: Salvelinus | AC21: 638.176326 | AD21: Daphnia | AF21: 985.25892 | AG21: Lampsilis | AI21: 1026.109771
B22: Site 13 | C22: 1 | D22: 100 | E22: 7 | F22: 7542.873703 | G22: 1960.725394 | H22: 980 | I22: 380 | K22: Daphnia | M22: 2324.837285 | N22: Micropterus | P22: 2987.631924 | Q22: Oncorhynchus | S22: 3312.082426 | T22: Ceriodaphnia | V22: 7770.479755 | X22: Salmo | Z22: 434.4100186 | AA22: Salvelinus | AC22: 638.176326 | AD22: Daphnia | AF22: 985.25892 | AG22: Lampsilis | AI22: 1026.109771
B23: Site 14 | C23: 1 | D23: 100 | E23: 7 | F23: 7542.873703 | G23: 1960.725394 | H23: 980 | I23: 380 | K23: Daphnia | M23: 2324.837285 | N23: Micropterus | P23: 2987.631924 | Q23: Oncorhynchus | S23: 3312.082426 | T23: Ceriodaphnia | V23: 7770.479755 | X23: Salmo | Z23: 434.4100186 | AA23: Salvelinus | AC23: 638.176326 | AD23: Daphnia | AF23: 985.25892 | AG23: Lampsilis | AI23: 1026.109771
B24: Site 15 | C24: 1 | D24: 100 | E24: 7 | F24: 7542.873703 | G24: 1960.725394 | H24: 980 | I24: 380 | K24: Daphnia | M24: 2324.837285 | N24: Micropterus | P24: 2987.631924 | Q24: Oncorhynchus | S24: 3312.082426 | T24: Ceriodaphnia | V24: 7770.479755 | X24: Salmo | Z24: 434.4100186 | AA24: Salvelinus | AC24: 638.176326 | AD24: Daphnia | AF24: 985.25892 | AG24: Lampsilis | AI24: 1026.109771
B25: Site 16 | C25: 1 | D25: 100 | E25: 7 | F25: 7542.873703 | G25: 1960.725394 | H25: 980 | I25: 380 | K25: Daphnia | M25: 2324.837285 | N25: Micropterus | P25: 2987.631924 | Q25: Oncorhynchus | S25: 3312.082426 | T25: Ceriodaphnia | V25: 7770.479755 | X25: Salmo | Z25: 434.4100186 | AA25: Salvelinus | AC25: 638.176326 | AD25: Daphnia | AF25: 985.25892 | AG25: Lampsilis | AI25: 1026.109771
B26: Site 17 | C26: 1 | D26: 100 | E26: 7 | F26: 7542.873703 | G26: 1960.725394 | H26: 980 | I26: 380 | K26: Daphnia | M26: 2324.837285 | N26: Micropterus | P26: 2987.631924 | Q26: Oncorhynchus | S26: 3312.082426 | T26: Ceriodaphnia | V26: 7770.479755 | X26: Salmo | Z26: 434.4100186 | AA26: Salvelinus | AC26: 638.176326 | AD26: Daphnia | AF26: 985.25892 | AG26: Lampsilis | AI26: 1026.109771
B27: Site 18 | C27: 1 | D27: 100 | E27: 7 | F27: 7542.873703 | G27: 1960.725394 | H27: 980 | I27: 380 | K27: Daphnia | M27: 2324.837285 | N27: Micropterus | P27: 2987.631924 | Q27: Oncorhynchus | S27: 3312.082426 | T27: Ceriodaphnia | V27: 7770.479755 | X27: Salmo | Z27: 434.4100186 | AA27: Salvelinus | AC27: 638.176326 | AD27: Daphnia | AF27: 985.25892 | AG27: Lampsilis | AI27: 1026.109771
B28: Site 19 | C28: 1 | D28: 100 | E28: 7 | F28: 7542.873703 | G28: 1960.725394 | H28: 980 | I28: 380 | K28: Daphnia | M28: 2324.837285 | N28: Micropterus | P28: 2987.631924 | Q28: Oncorhynchus | S28: 3312.082426 | T28: Ceriodaphnia | V28: 7770.479755 | X28: Salmo | Z28: 434.4100186 | AA28: Salvelinus | AC28: 638.176326 | AD28: Daphnia | AF28: 985.25892 | AG28: Lampsilis | AI28: 1026.109771
B29: Site 20 | C29: 1 | D29: 100 | E29: 7 | F29: 7542.873703 | G29: 1960.725394 | H29: 980 | I29: 380 | K29: Daphnia | M29: 2324.837285 | N29: Micropterus | P29: 2987.631924 | Q29: Oncorhynchus | S29: 3312.082426 | T29: Ceriodaphnia | V29: 7770.479755 | X29: Salmo | Z29: 434.4100186 | AA29: Salvelinus | AC29: 638.176326 | AD29: Daphnia | AF29: 985.25892 | AG29: Lampsilis | AI29: 1026.109771
B30: Site 21 | C30: 1 | D30: 100 | E30: 7 | F30: 7542.873703 | G30: 1960.725394 | H30: 980 | I30: 380 | K30: Daphnia | M30: 2324.837285 | N30: Micropterus | P30: 2987.631924 | Q30: Oncorhynchus | S30: 3312.082426 | T30: Ceriodaphnia | V30: 7770.479755 | X30: Salmo | Z30: 434.4100186 | AA30: Salvelinus | AC30: 638.176326 | AD30: Daphnia | AF30: 985.25892 | AG30: Lampsilis | AI30: 1026.109771
B31: Site 22 | C31: 1 | D31: 100 | E31: 7 | F31: 7542.873703 | G31: 1960.725394 | H31: 980 | I31: 380 | K31: Daphnia | M31: 2324.837285 | N31: Micropterus | P31: 2987.631924 | Q31: Oncorhynchus | S31: 3312.082426 | T31: Ceriodaphnia | V31: 7770.479755 | X31: Salmo | Z31: 434.4100186 | AA31: Salvelinus | AC31: 638.176326 | AD31: Daphnia | AF31: 985.25892 | AG31: Lampsilis | AI31: 1026.109771
B32: Site 23 | C32: 1 | D32: 100 | E32: 7 | F32: 7542.873703 | G32: 1960.725394 | H32: 980 | I32: 380 | K32: Daphnia | M32: 2324.837285 | N32: Micropterus | P32: 2987.631924 | Q32: Oncorhynchus | S32: 3312.082426 | T32: Ceriodaphnia | V32: 7770.479755 | X32: Salmo | Z32: 434.4100186 | AA32: Salvelinus | AC32: 638.176326 | AD32: Daphnia | AF32: 985.25892 | AG32: Lampsilis | AI32: 1026.109771
B33: Site 24 | C33: 1 | D33: 100 | E33: 7 | F33: 7542.873703 | G33: 1960.725394 | H33: 980 | I33: 380 | K33: Daphnia | M33: 2324.837285 | N33: Micropterus | P33: 2987.631924 | Q33: Oncorhynchus | S33: 3312.082426 | T33: Ceriodaphnia | V33: 7770.479755 | X33: Salmo | Z33: 434.4100186 | AA33: Salvelinus | AC33: 638.176326 | AD33: Daphnia | AF33: 985.25892 | AG33: Lampsilis | AI33: 1026.109771
B34: Site 25 | C34: 1 | D34: 100 | E34: 7 | F34: 7542.873703 | G34: 1960.725394 | H34: 980 | I34: 380 | K34: Daphnia | M34: 2324.837285 | N34: Micropterus | P34: 2987.631924 | Q34: Oncorhynchus | S34: 3312.082426 | T34: Ceriodaphnia | V34: 7770.479755 | X34: Salmo | Z34: 434.4100186 | AA34: Salvelinus | AC34: 638.176326 | AD34: Daphnia | AF34: 985.25892 | AG34: Lampsilis | AI34: 1026.109771
B35: Site 26 | C35: 1 | D35: 100 | E35: 7 | F35: 7542.873703 | G35: 1960.725394 | H35: 980 | I35: 380 | K35: Daphnia | M35: 2324.837285 | N35: Micropterus | P35: 2987.631924 | Q35: Oncorhynchus | S35: 3312.082426 | T35: Ceriodaphnia | V35: 7770.479755 | X35: Salmo | Z35: 434.4100186 | AA35: Salvelinus | AC35: 638.176326 | AD35: Daphnia | AF35: 985.25892 | AG35: Lampsilis | AI35: 1026.109771
B36: Site 27 | C36: 1 | D36: 100 | E36: 7 | F36: 7542.873703 | G36: 1960.725394 | H36: 980 | I36: 380 | K36: Daphnia | M36: 2324.837285 | N36: Micropterus | P36: 2987.631924 | Q36: Oncorhynchus | S36: 3312.082426 | T36: Ceriodaphnia | V36: 7770.479755 | X36: Salmo | Z36: 434.4100186 | AA36: Salvelinus | AC36: 638.176326 | AD36: Daphnia | AF36: 985.25892 | AG36: Lampsilis | AI36: 1026.109771
B37: Site 28 | C37: 1 | D37: 100 | E37: 7 | F37: 7542.873703 | G37: 1960.725394 | H37: 980 | I37: 380 | K37: Daphnia | M37: 2324.837285 | N37: Micropterus | P37: 2987.631924 | Q37: Oncorhynchus | S37: 3312.082426 | T37: Ceriodaphnia | V37: 7770.479755 | X37: Salmo | Z37: 434.4100186 | AA37: Salvelinus | AC37: 638.176326 | AD37: Daphnia | AF37: 985.25892 | AG37: Lampsilis | AI37: 1026.109771
B38: Site 29 | C38: 1 | D38: 100 | E38: 7 | F38: 7542.873703 | G38: 1960.725394 | H38: 980 | I38: 380 | K38: Daphnia | M38: 2324.837285 | N38: Micropterus | P38: 2987.631924 | Q38: Oncorhynchus | S38: 3312.082426 | T38: Ceriodaphnia | V38: 7770.479755 | X38: Salmo | Z38: 434.4100186 | AA38: Salvelinus | AC38: 638.176326 | AD38: Daphnia | AF38: 985.25892 | AG38: Lampsilis | AI38: 1026.109771
B39: Site 30 | C39: 1 | D39: 100 | E39: 7 | F39: 7542.873703 | G39: 1960.725394 | H39: 980 | I39: 380 | K39: Daphnia | M39: 2324.837285 | N39: Micropterus | P39: 2987.631924 | Q39: Oncorhynchus | S39: 3312.082426 | T39: Ceriodaphnia | V39: 7770.479755 | X39: Salmo | Z39: 434.4100186 | AA39: Salvelinus | AC39: 638.176326 | AD39: Daphnia | AF39: 985.25892 | AG39: Lampsilis | AI39: 1026.109771
B40: Site 31 | C40: 1 | D40: 100 | E40: 7 | F40: 7542.873703 | G40: 1960.725394 | H40: 980 | I40: 380 | K40: Daphnia | M40: 2324.837285 | N40: Micropterus | P40: 2987.631924 | Q40: Oncorhynchus | S40: 3312.082426 | T40: Ceriodaphnia | V40: 7770.479755 | X40: Salmo | Z40: 434.4100186 | AA40: Salvelinus | AC40: 638.176326 | AD40: Daphnia | AF40: 985.25892 | AG40: Lampsilis | AI40: 1026.109771
B41: Site 32 | C41: 1 | D41: 100 | E41: 7 | F41: 7542.873703 | G41: 1960.725394 | H41: 980 | I41: 380 | K41: Daphnia | M41: 2324.837285 | N41: Micropterus | P41: 2987.631924 | Q41: Oncorhynchus | S41: 3312.082426 | T41: Ceriodaphnia | V41: 7770.479755 | X41: Salmo | Z41: 434.4100186 | AA41: Salvelinus | AC41: 638.176326 | AD41: Daphnia | AF41: 985.25892 | AG41: Lampsilis | AI41: 1026.109771
B42: Site 33 | C42: 1 | D42: 100 | E42: 7 | F42: 7542.873703 | G42: 1960.725394 | H42: 980 | I42: 380 | K42: Daphnia | M42: 2324.837285 | N42: Micropterus | P42: 2987.631924 | Q42: Oncorhynchus | S42: 3312.082426 | T42: Ceriodaphnia | V42: 7770.479755 | X42: Salmo | Z42: 434.4100186 | AA42: Salvelinus | AC42: 638.176326 | AD42: Daphnia | AF42: 985.25892 | AG42: Lampsilis | AI42: 1026.109771
B43: Site 34 | C43: 1 | D43: 100 | E43: 7 | F43: 7542.873703 | G43: 1960.725394 | H43: 980 | I43: 380 | K43: Daphnia | M43: 2324.837285 | N43: Micropterus | P43: 2987.631924 | Q43: Oncorhynchus | S43: 3312.082426 | T43: Ceriodaphnia | V43: 7770.479755 | X43: Salmo | Z43: 434.4100186 | AA43: Salvelinus | AC43: 638.176326 | AD43: Daphnia | AF43: 985.25892 | AG43: Lampsilis | AI43: 1026.109771
B44: Site 35 | C44: 1 | D44: 100 | E44: 7 | F44: 7542.873703 | G44: 1960.725394 | H44: 980 | I44: 380 | K44: Daphnia | M44: 2324.837285 | N44: Micropterus | P44: 2987.631924 | Q44: Oncorhynchus | S44: 3312.082426 | T44: Ceriodaphnia | V44: 7770.479755 | X44: Salmo | Z44: 434.4100186 | AA44: Salvelinus | AC44: 638.176326 | AD44: Daphnia | AF44: 985.25892 | AG44: Lampsilis | AI44: 1026.109771
B45: Site 36 | C45: 1 | D45: 100 | E45: 7 | F45: 7542.873703 | G45: 1960.725394 | H45: 980 | I45: 380 | K45: Daphnia | M45: 2324.837285 | N45: Micropterus | P45: 2987.631924 | Q45: Oncorhynchus | S45: 3312.082426 | T45: Ceriodaphnia | V45: 7770.479755 | X45: Salmo | Z45: 434.4100186 | AA45: Salvelinus | AC45: 638.176326 | AD45: Daphnia | AF45: 985.25892 | AG45: Lampsilis | AI45: 1026.109771
B46: Site 37 | C46: 1 | D46: 100 | E46: 7 | F46: 7542.873703 | G46: 1960.725394 | H46: 980 | I46: 380 | K46: Daphnia | M46: 2324.837285 | N46: Micropterus | P46: 2987.631924 | Q46: Oncorhynchus | S46: 3312.082426 | T46: Ceriodaphnia | V46: 7770.479755 | X46: Salmo | Z46: 434.4100186 | AA46: Salvelinus | AC46: 638.176326 | AD46: Daphnia | AF46: 985.25892 | AG46: Lampsilis | AI46: 1026.109771
B47: Site 38 | C47: 1 | D47: 100 | E47: 7 | F47: 7542.873703 | G47: 1960.725394 | H47: 980 | I47: 380 | K47: Daphnia | M47: 2324.837285 | N47: Micropterus | P47: 2987.631924 | Q47: Oncorhynchus | S47: 3312.082426 | T47: Ceriodaphnia | V47: 7770.479755 | X47: Salmo | Z47: 434.4100186 | AA47: Salvelinus | AC47: 638.176326 | AD47: Daphnia | AF47: 985.25892 | AG47: Lampsilis | AI47: 1026.109771
B48: Site 39 | C48: 1 | D48: 100 | E48: 7 | F48: 7542.873703 | G48: 1960.725394 | H48: 980 | I48: 380 | K48: Daphnia | M48: 2324.837285 | N48: Micropterus | P48: 2987.631924 | Q48: Oncorhynchus | S48: 3312.082426 | T48: Ceriodaphnia | V48: 7770.479755 | X48: Salmo | Z48: 434.4100186 | AA48: Salvelinus | AC48: 638.176326 | AD48: Daphnia | AF48: 985.25892 | AG48: Lampsilis | AI48: 1026.109771
B49: Site 40 | C49: 1 | D49: 100 | E49: 7 | F49: 7542.873703 | G49: 1960.725394 | H49: 980 | I49: 380 | K49: Daphnia | M49: 2324.837285 | N49: Micropterus | P49: 2987.631924 | Q49: Oncorhynchus | S49: 3312.082426 | T49: Ceriodaphnia | V49: 7770.479755 | X49: Salmo | Z49: 434.4100186 | AA49: Salvelinus | AC49: 638.176326 | AD49: Daphnia | AF49: 985.25892 | AG49: Lampsilis | AI49: 1026.109771
B50: Site 41 | C50: 1 | D50: 100 | E50: 7 | F50: 7542.873703 | G50: 1960.725394 | H50: 980 | I50: 380 | K50: Daphnia | M50: 2324.837285 | N50: Micropterus | P50: 2987.631924 | Q50: Oncorhynchus | S50: 3312.082426 | T50: Ceriodaphnia | V50: 7770.479755 | X50: Salmo | Z50: 434.4100186 | AA50: Salvelinus | AC50: 638.176326 | AD50: Daphnia | AF50: 985.25892 | AG50: Lampsilis | AI50: 1026.109771
B51: Site 42 | C51: 1 | D51: 100 | E51: 7 | F51: 7542.873703 | G51: 1960.725394 | H51: 980 | I51: 380 | K51: Daphnia | M51: 2324.837285 | N51: Micropterus | P51: 2987.631924 | Q51: Oncorhynchus | S51: 3312.082426 | T51: Ceriodaphnia | V51: 7770.479755 | X51: Salmo | Z51: 434.4100186 | AA51: Salvelinus | AC51: 638.176326 | AD51: Daphnia | AF51: 985.25892 | AG51: Lampsilis | AI51: 1026.109771
B52: Site 43 | C52: 1 | D52: 100 | E52: 7 | F52: 7542.873703 | G52: 1960.725394 | H52: 980 | I52: 380 | K52: Daphnia | M52: 2324.837285 | N52: Micropterus | P52: 2987.631924 | Q52: Oncorhynchus | S52: 3312.082426 | T52: Ceriodaphnia | V52: 7770.479755 | X52: Salmo | Z52: 434.4100186 | AA52: Salvelinus | AC52: 638.176326 | AD52: Daphnia | AF52: 985.25892 | AG52: Lampsilis | AI52: 1026.109771
B53: Site 44 | C53: 1 | D53: 100 | E53: 7 | F53: 7542.873703 | G53: 1960.725394 | H53: 980 | I53: 380 | K53: Daphnia | M53: 2324.837285 | N53: Micropterus | P53: 2987.631924 | Q53: Oncorhynchus | S53: 3312.082426 | T53: Ceriodaphnia | V53: 7770.479755 | X53: Salmo | Z53: 434.4100186 | AA53: Salvelinus | AC53: 638.176326 | AD53: Daphnia | AF53: 985.25892 | AG53: Lampsilis | AI53: 1026.109771
B54: Site 45 | C54: 1 | D54: 100 | E54: 7 | F54: 7542.873703 | G54: 1960.725394 | H54: 980 | I54: 380 | K54: Daphnia | M54: 2324.837285 | N54: Micropterus | P54: 2987.631924 | Q54: Oncorhynchus | S54: 3312.082426 | T54: Ceriodaphnia | V54: 7770.479755 | X54: Salmo | Z54: 434.4100186 | AA54: Salvelinus | AC54: 638.176326 | AD54: Daphnia | AF54: 985.25892 | AG54: Lampsilis | AI54: 1026.109771
B55: Site 46 | C55: 1 | D55: 100 | E55: 7 | F55: 7542.873703 | G55: 1960.725394 | H55: 980 | I55: 380 | K55: Daphnia | M55: 2324.837285 | N55: Micropterus | P55: 2987.631924 | Q55: Oncorhynchus | S55: 3312.082426 | T55: Ceriodaphnia | V55: 7770.479755 | X55: Salmo | Z55: 434.4100186 | AA55: Salvelinus | AC55: 638.176326 | AD55: Daphnia | AF55: 985.25892 | AG55: Lampsilis | AI55: 1026.109771
B56: Site 47 | C56: 1 | D56: 100 | E56: 7 | F56: 7542.873703 | G56: 1960.725394 | H56: 980 | I56: 380 | K56: Daphnia | M56: 2324.837285 | N56: Micropterus | P56: 2987.631924 | Q56: Oncorhynchus | S56: 3312.082426 | T56: Ceriodaphnia | V56: 7770.479755 | X56: Salmo | Z56: 434.4100186 | AA56: Salvelinus | AC56: 638.176326 | AD56: Daphnia | AF56: 985.25892 | AG56: Lampsilis | AI56: 1026.109771
B57: Site 48 | C57: 1 | D57: 100 | E57: 7 | F57: 7542.873703 | G57: 1960.725394 | H57: 980 | I57: 380 | K57: Daphnia | M57: 2324.837285 | N57: Micropterus | P57: 2987.631924 | Q57: Oncorhynchus | S57: 3312.082426 | T57: Ceriodaphnia | V57: 7770.479755 | X57: Salmo | Z57: 434.4100186 | AA57: Salvelinus | AC57: 638.176326 | AD57: Daphnia | AF57: 985.25892 | AG57: Lampsilis | AI57: 1026.109771
B58: Site 49 | C58: 1 | D58: 100 | E58: 7 | F58: 7542.873703 | G58: 1960.725394 | H58: 980 | I58: 380 | K58: Daphnia | M58: 2324.837285 | N58: Micropterus | P58: 2987.631924 | Q58: Oncorhynchus | S58: 3312.082426 | T58: Ceriodaphnia | V58: 7770.479755 | X58: Salmo | Z58: 434.4100186 | AA58: Salvelinus | AC58: 638.176326 | AD58: Daphnia | AF58: 985.25892 | AG58: Lampsilis | AI58: 1026.109771
B59: Site 50 | C59: 1 | D59: 100 | E59: 7 | F59: 7542.873703 | G59: 1960.725394 | H59: 980 | I59: 380 | K59: Daphnia | M59: 2324.837285 | N59: Micropterus | P59: 2987.631924 | Q59: Oncorhynchus | S59: 3312.082426 | T59: Ceriodaphnia | V59: 7770.479755 | X59: Salmo | Z59: 434.4100186 | AA59: Salvelinus | AC59: 638.176326 | AD59: Daphnia | AF59: 985.25892 | AG59: Lampsilis | AI59: 1026.109771
B60: Site 51 | C60: 1 | D60: 100 | E60: 7 | F60: 7542.873703 | G60: 1960.725394 | H60: 980 | I60: 380 | K60: Daphnia | M60: 2324.837285 | N60: Micropterus | P60: 2987.631924 | Q60: Oncorhynchus | S60: 3312.082426 | T60: Ceriodaphnia | V60: 7770.479755 | X60: Salmo | Z60: 434.4100186 | AA60: Salvelinus | AC60: 638.176326 | AD60: Daphnia | AF60: 985.25892 | AG60: Lampsilis | AI60: 1026.109771
B61: Site 52 | C61: 1 | D61: 100 | E61: 7 | F61: 7542.873703 | G61: 1960.725394 | H61: 980 | I61: 380 | K61: Daphnia | M61: 2324.837285 | N61: Micropterus | P61: 2987.631924 | Q61: Oncorhynchus | S61: 3312.082426 | T61: Ceriodaphnia | V61: 7770.479755 | X61: Salmo | Z61: 434.4100186 | AA61: Salvelinus | AC61: 638.176326 | AD61: Daphnia | AF61: 985.25892 | AG61: Lampsilis | AI61: 1026.109771
B62: Site 53 | C62: 1 | D62: 100 | E62: 7 | F62: 7542.873703 | G62: 1960.725394 | H62: 980 | I62: 380 | K62: Daphnia | M62: 2324.837285 | N62: Micropterus | P62: 2987.631924 | Q62: Oncorhynchus | S62: 3312.082426 | T62: Ceriodaphnia | V62: 7770.479755 | X62: Salmo | Z62: 434.4100186 | AA62: Salvelinus | AC62: 638.176326 | AD62: Daphnia | AF62: 985.25892 | AG62: Lampsilis | AI62: 1026.109771
B63: Site 54 | C63: 1 | D63: 100 | E63: 7 | F63: 7542.873703 | G63: 1960.725394 | H63: 980 | I63: 380 | K63: Daphnia | M63: 2324.837285 | N63: Micropterus | P63: 2987.631924 | Q63: Oncorhynchus | S63: 3312.082426 | T63: Ceriodaphnia | V63: 7770.479755 | X63: Salmo | Z63: 434.4100186 | AA63: Salvelinus | AC63: 638.176326 | AD63: Daphnia | AF63: 985.25892 | AG63: Lampsilis | AI63: 1026.109771
B64: Site 55 | C64: 1 | D64: 100 | E64: 7 | F64: 7542.873703 | G64: 1960.725394 | H64: 980 | I64: 380 | K64: Daphnia | M64: 2324.837285 | N64: Micropterus | P64: 2987.631924 | Q64: Oncorhynchus | S64: 3312.082426 | T64: Ceriodaphnia | V64: 7770.479755 | X64: Salmo | Z64: 434.4100186 | AA64: Salvelinus | AC64: 638.176326 | AD64: Daphnia | AF64: 985.25892 | AG64: Lampsilis | AI64: 1026.109771
B65: Site 56 | C65: 1 | D65: 100 | E65: 7 | F65: 7542.873703 | G65: 1960.725394 | H65: 980 | I65: 380 | K65: Daphnia | M65: 2324.837285 | N65: Micropterus | P65: 2987.631924 | Q65: Oncorhynchus | S65: 3312.082426 | T65: Ceriodaphnia | V65: 7770.479755 | X65: Salmo | Z65: 434.4100186 | AA65: Salvelinus | AC65: 638.176326 | AD65: Daphnia | AF65: 985.25892 | AG65: Lampsilis | AI65: 1026.109771
B66: Site 57 | C66: 1 | D66: 100 | E66: 7 | F66: 7542.873703 | G66: 1960.725394 | H66: 980 | I66: 380 | K66: Daphnia | M66: 2324.837285 | N66: Micropterus | P66: 2987.631924 | Q66: Oncorhynchus | S66: 3312.082426 | T66: Ceriodaphnia | V66: 7770.479755 | X66: Salmo | Z66: 434.4100186 | AA66: Salvelinus | AC66: 638.176326 | AD66: Daphnia | AF66: 985.25892 | AG66: Lampsilis | AI66: 1026.109771
B67: Site 58 | C67: 1 | D67: 100 | E67: 7 | F67: 7542.873703 | G67: 1960.725394 | H67: 980 | I67: 380 | K67: Daphnia | M67: 2324.837285 | N67: Micropterus | P67: 2987.631924 | Q67: Oncorhynchus | S67: 3312.082426 | T67: Ceriodaphnia | V67: 7770.479755 | X67: Salmo | Z67: 434.4100186 | AA67: Salvelinus | AC67: 638.176326 | AD67: Daphnia | AF67: 985.25892 | AG67: Lampsilis | AI67: 1026.109771
B68: Site 59 | C68: 1 | D68: 100 | E68: 7 | F68: 7542.873703 | G68: 1960.725394 | H68: 980 | I68: 380 | K68: Daphnia | M68: 2324.837285 | N68: Micropterus | P68: 2987.631924 | Q68: Oncorhynchus | S68: 3312.082426 | T68: Ceriodaphnia | V68: 7770.479755 | X68: Salmo | Z68: 434.4100186 | AA68: Salvelinus | AC68: 638.176326 | AD68: Daphnia | AF68: 985.25892 | AG68: Lampsilis | AI68: 1026.109771
B69: Site 60 | C69: 1 | D69: 100 | E69: 7 | F69: 7542.873703 | G69: 1960.725394 | H69: 980 | I69: 380 | K69: Daphnia | M69: 2324.837285 | N69: Micropterus | P69: 2987.631924 | Q69: Oncorhynchus | S69: 3312.082426 | T69: Ceriodaphnia | V69: 7770.479755 | X69: Salmo | Z69: 434.4100186 | AA69: Salvelinus | AC69: 638.176326 | AD69: Daphnia | AF69: 985.25892 | AG69: Lampsilis | AI69: 1026.109771
B70: Site 61 | C70: 1 | D70: 100 | E70: 7 | F70: 7542.873703 | G70: 1960.725394 | H70: 980 | I70: 380 | K70: Daphnia | M70: 2324.837285 | N70: Micropterus | P70: 2987.631924 | Q70: Oncorhynchus | S70: 3312.082426 | T70: Ceriodaphnia | V70: 7770.479755 | X70: Salmo | Z70: 434.4100186 | AA70: Salvelinus | AC70: 638.176326 | AD70: Daphnia | AF70: 985.25892 | AG70: Lampsilis | AI70: 1026.109771
B71: Site 62 | C71: 1 | D71: 100 | E71: 7 | F71: 7542.873703 | G71: 1960.725394 | H71: 980 | I71: 380 | K71: Daphnia | M71: 2324.837285 | N71: Micropterus | P71: 2987.631924 | Q71: Oncorhynchus | S71: 3312.082426 | T71: Ceriodaphnia | V71: 7770.479755 | X71: Salmo | Z71: 434.4100186 | AA71: Salvelinus | AC71: 638.176326 | AD71: Daphnia | AF71: 985.25892 | AG71: Lampsilis | AI71: 1026.109771
B72: Site 63 | C72: 1 | D72: 100 | E72: 7 | F72: 7542.873703 | G72: 1960.725394 | H72: 980 | I72: 380 | K72: Daphnia | M72: 2324.837285 | N72: Micropterus | P72: 2987.631924 | Q72: Oncorhynchus | S72: 3312.082426 | T72: Ceriodaphnia | V72: 7770.479755 | X72: Salmo | Z72: 434.4100186 | AA72: Salvelinus | AC72: 638.176326 | AD72: Daphnia | AF72: 985.25892 | AG72: Lampsilis | AI72: 1026.109771
B73: Site 64 | C73: 1 | D73: 100 | E73: 7 | F73: 7542.873703 | G73: 1960.725394 | H73: 980 | I73: 380 | K73: Daphnia | M73: 2324.837285 | N73: Micropterus | P73: 2987.631924 | Q73: Oncorhynchus | S73: 3312.082426 | T73: Ceriodaphnia | V73: 7770.479755 | X73: Salmo | Z73: 434.4100186 | AA73: Salvelinus | AC73: 638.176326 | AD73: Daphnia | AF73: 985.25892 | AG73: Lampsilis | AI73: 1026.109771
B74: Site 65 | C74: 1 | D74: 100 | E74: 7 | F74: 7542.873703 | G74: 1960.725394 | H74: 980 | I74: 380 | K74: Daphnia | M74: 2324.837285 | N74: Micropterus | P74: 2987.631924 | Q74: Oncorhynchus | S74: 3312.082426 | T74: Ceriodaphnia | V74: 7770.479755 | X74: Salmo | Z74: 434.4100186 | AA74: Salvelinus | AC74: 638.176326 | AD74: Daphnia | AF74: 985.25892 | AG74: Lampsilis | AI74: 1026.109771
B75: Site 66 | C75: 1 | D75: 100 | E75: 7 | F75: 7542.873703 | G75: 1960.725394 | H75: 980 | I75: 380 | J75: =IF(OR(C75>12,D75>430,E75<6,E75>8.2),"Outside model inputs"," ") ->  | K75: Daphnia | M75: 2324.837285 | N75: Micropterus | P75: 2987.631924 | Q75: Oncorhynchus | S75: 3312.082426 | T75: Ceriodaphnia | V75: 7770.479755 | X75: Salmo | Z75: 434.4100186 | AA75: Salvelinus | AC75: 638.176326 | AD75: Daphnia | AF75: 985.25892 | AG75: Lampsilis | AI75: 1026.109771
B76: Site 67 | C76: 1 | D76: 100 | E76: 7 | F76: 7542.873703 | G76: 1960.725394 | H76: 980 | I76: 380 | K76: Daphnia | M76: 2324.837285 | N76: Micropterus | P76: 2987.631924 | Q76: Oncorhynchus | S76: 3312.082426 | T76: Ceriodaphnia | V76: 7770.479755 | X76: Salmo | Z76: 434.4100186 | AA76: Salvelinus | AC76: 638.176326 | AD76: Daphnia | AF76: 985.25892 | AG76: Lampsilis | AI76: 1026.109771
B77: Site 68 | C77: 1 | D77: 100 | E77: 7 | F77: 7542.873703 | G77: 1960.725394 | H77: 980 | I77: 380 | K77: Daphnia | M77: 2324.837285 | N77: Micropterus | P77: 2987.631924 | Q77: Oncorhynchus | S77: 3312.082426 | T77: Ceriodaphnia | V77: 7770.479755 | X77: Salmo | Z77: 434.4100186 | AA77: Salvelinus | AC77: 638.176326 | AD77: Daphnia | AF77: 985.25892 | AG77: Lampsilis | AI77: 1026.109771
B78: Site 69 | C78: 1 | D78: 100 | E78: 7 | F78: 7542.873703 | G78: 1960.725394 | H78: 980 | I78: 380 | K78: Daphnia | M78: 2324.837285 | N78: Micropterus | P78: 2987.631924 | Q78: Oncorhynchus | S78: 3312.082426 | T78: Ceriodaphnia | V78: 7770.479755 | X78: Salmo | Z78: 434.4100186 | AA78: Salvelinus | AC78: 638.176326 | AD78: Daphnia | AF78: 985.25892 | AG78: Lampsilis | AI78: 1026.109771
B79: Site 70 | C79: 1 | D79: 100 | E79: 7 | F79: 7542.873703 | G79: 1960.725394 | H79: 980 | I79: 380 | K79: Daphnia | M79: 2324.837285 | N79: Micropterus | P79: 2987.631924 | Q79: Oncorhynchus | S79: 3312.082426 | T79: Ceriodaphnia | V79: 7770.479755 | X79: Salmo | Z79: 434.4100186 | AA79: Salvelinus | AC79: 638.176326 | AD79: Daphnia | AF79: 985.25892 | AG79: Lampsilis | AI79: 1026.109771
B80: Site 71 | C80: 1 | D80: 100 | E80: 7 | F80: 7542.873703 | G80: 1960.725394 | H80: 980 | I80: 380 | K80: Daphnia | M80: 2324.837285 | N80: Micropterus | P80: 2987.631924 | Q80: Oncorhynchus | S80: 3312.082426 | T80: Ceriodaphnia | V80: 7770.479755 | X80: Salmo | Z80: 434.4100186 | AA80: Salvelinus | AC80: 638.176326 | AD80: Daphnia | AF80: 985.25892 | AG80: Lampsilis | AI80: 1026.109771
B81: Site 72 | C81: 1 | D81: 100 | E81: 7 | F81: 7542.873703 | G81: 1960.725394 | H81: 980 | I81: 380 | K81: Daphnia | M81: 2324.837285 | N81: Micropterus | P81: 2987.631924 | Q81: Oncorhynchus | S81: 3312.082426 | T81: Ceriodaphnia | V81: 7770.479755 | X81: Salmo | Z81: 434.4100186 | AA81: Salvelinus | AC81: 638.176326 | AD81: Daphnia | AF81: 985.25892 | AG81: Lampsilis | AI81: 1026.109771
B82: Site 73 | C82: 1 | D82: 100 | E82: 7 | F82: 7542.873703 | G82: 1960.725394 | H82: 980 | I82: 380 | K82: Daphnia | M82: 2324.837285 | N82: Micropterus | P82: 2987.631924 | Q82: Oncorhynchus | S82: 3312.082426 | T82: Ceriodaphnia | V82: 7770.479755 | X82: Salmo | Z82: 434.4100186 | AA82: Salvelinus | AC82: 638.176326 | AD82: Daphnia | AF82: 985.25892 | AG82: Lampsilis | AI82: 1026.109771
B83: Site 74 | C83: 1 | D83: 100 | E83: 7 | F83: 7542.873703 | G83: 1960.725394 | H83: 980 | I83: 380 | K83: Daphnia | M83: 2324.837285 | N83: Micropterus | P83: 2987.631924 | Q83: Oncorhynchus | S83: 3312.082426 | T83: Ceriodaphnia | V83: 7770.479755 | X83: Salmo | Z83: 434.4100186 | AA83: Salvelinus | AC83: 638.176326 | AD83: Daphnia | AF83: 985.25892 | AG83: Lampsilis | AI83: 1026.109771
B84: Site 75 | C84: 1 | D84: 100 | E84: 7 | F84: 7542.873703 | G84: 1960.725394 | H84: 980 | I84: 380 | K84: Daphnia | M84: 2324.837285 | N84: Micropterus | P84: 2987.631924 | Q84: Oncorhynchus | S84: 3312.082426 | T84: Ceriodaphnia | V84: 7770.479755 | X84: Salmo | Z84: 434.4100186 | AA84: Salvelinus | AC84: 638.176326 | AD84: Daphnia | AF84: 985.25892 | AG84: Lampsilis | AI84: 1026.109771
B85: Site 76 | C85: 1 | D85: 100 | E85: 7 | F85: 7542.873703 | G85: 1960.725394 | H85: 980 | I85: 380 | K85: Daphnia | M85: 2324.837285 | N85: Micropterus | P85: 2987.631924 | Q85: Oncorhynchus | S85: 3312.082426 | T85: Ceriodaphnia | V85: 7770.479755 | X85: Salmo | Z85: 434.4100186 | AA85: Salvelinus | AC85: 638.176326 | AD85: Daphnia | AF85: 985.25892 | AG85: Lampsilis | AI85: 1026.109771
B86: Site 77 | C86: 1 | D86: 100 | E86: 7 | F86: 7542.873703 | G86: 1960.725394 | H86: 980 | I86: 380 | K86: Daphnia | M86: 2324.837285 | N86: Micropterus | P86: 2987.631924 | Q86: Oncorhynchus | S86: 3312.082426 | T86: Ceriodaphnia | V86: 7770.479755 | X86: Salmo | Z86: 434.4100186 | AA86: Salvelinus | AC86: 638.176326 | AD86: Daphnia | AF86: 985.25892 | AG86: Lampsilis | AI86: 1026.109771
B87: Site 78 | C87: 1 | D87: 100 | E87: 7 | F87: 7542.873703 | G87: 1960.725394 | H87: 980 | I87: 380 | K87: Daphnia | M87: 2324.837285 | N87: Micropterus | P87: 2987.631924 | Q87: Oncorhynchus | S87: 3312.082426 | T87: Ceriodaphnia | V87: 7770.479755 | X87: Salmo | Z87: 434.4100186 | AA87: Salvelinus | AC87: 638.176326 | AD87: Daphnia | AF87: 985.25892 | AG87: Lampsilis | AI87: 1026.109771
B88: Site 79 | C88: 1 | D88: 100 | E88: 7 | F88: 7542.873703 | G88: 1960.725394 | H88: 980 | I88: 380 | K88: Daphnia | M88: 2324.837285 | N88: Micropterus | P88: 2987.631924 | Q88: Oncorhynchus | S88: 3312.082426 | T88: Ceriodaphnia | V88: 7770.479755 | X88: Salmo | Z88: 434.4100186 | AA88: Salvelinus | AC88: 638.176326 | AD88: Daphnia | AF88: 985.25892 | AG88: Lampsilis | AI88: 1026.109771
B89: Site 80 | C89: 1 | D89: 100 | E89: 7 | F89: 7542.873703 | G89: 1960.725394 | H89: 980 | I89: 380 | K89: Daphnia | M89: 2324.837285 | N89: Micropterus | P89: 2987.631924 | Q89: Oncorhynchus | S89: 3312.082426 | T89: Ceriodaphnia | V89: 7770.479755 | X89: Salmo | Z89: 434.4100186 | AA89: Salvelinus | AC89: 638.176326 | AD89: Daphnia | AF89: 985.25892 | AG89: Lampsilis | AI89: 1026.109771
B90: Site 81 | C90: 1 | D90: 100 | E90: 7 | F90: 7542.873703 | G90: 1960.725394 | H90: 980 | I90: 380 | K90: Daphnia | M90: 2324.837285 | N90: Micropterus | P90: 2987.631924 | Q90: Oncorhynchus | S90: 3312.082426 | T90: Ceriodaphnia | V90: 7770.479755 | X90: Salmo | Z90: 434.4100186 | AA90: Salvelinus | AC90: 638.176326 | AD90: Daphnia | AF90: 985.25892 | AG90: Lampsilis | AI90: 1026.109771
B91: Site 82 | C91: 1 | D91: 100 | E91: 7 | F91: 7542.873703 | G91: 1960.725394 | H91: 980 | I91: 380 | K91: Daphnia | M91: 2324.837285 | N91: Micropterus | P91: 2987.631924 | Q91: Oncorhynchus | S91: 3312.082426 | T91: Ceriodaphnia | V91: 7770.479755 | X91: Salmo | Z91: 434.4100186 | AA91: Salvelinus | AC91: 638.176326 | AD91: Daphnia | AF91: 985.25892 | AG91: Lampsilis | AI91: 1026.109771
B92: Site 83 | C92: 1 | D92: 100 | E92: 7 | F92: 7542.873703 | G92: 1960.725394 | H92: 980 | I92: 380 | K92: Daphnia | M92: 2324.837285 | N92: Micropterus | P92: 2987.631924 | Q92: Oncorhynchus | S92: 3312.082426 | T92: Ceriodaphnia | V92: 7770.479755 | X92: Salmo | Z92: 434.4100186 | AA92: Salvelinus | AC92: 638.176326 | AD92: Daphnia | AF92: 985.25892 | AG92: Lampsilis | AI92: 1026.109771
B93: Site 84 | C93: 1 | D93: 100 | E93: 7 | F93: 7542.873703 | G93: 1960.725394 | H93: 980 | I93: 380 | K93: Daphnia | M93: 2324.837285 | N93: Micropterus | P93: 2987.631924 | Q93: Oncorhynchus | S93: 3312.082426 | T93: Ceriodaphnia | V93: 7770.479755 | X93: Salmo | Z93: 434.4100186 | AA93: Salvelinus | AC93: 638.176326 | AD93: Daphnia | AF93: 985.25892 | AG93: Lampsilis | AI93: 1026.109771
B94: Site 85 | C94: 1 | D94: 100 | E94: 7 | F94: 7542.873703 | G94: 1960.725394 | H94: 980 | I94: 380 | K94: Daphnia | M94: 2324.837285 | N94: Micropterus | P94: 2987.631924 | Q94: Oncorhynchus | S94: 3312.082426 | T94: Ceriodaphnia | V94: 7770.479755 | X94: Salmo | Z94: 434.4100186 | AA94: Salvelinus | AC94: 638.176326 | AD94: Daphnia | AF94: 985.25892 | AG94: Lampsilis | AI94: 1026.109771
B95: Site 86 | C95: 1 | D95: 100 | E95: 7 | F95: 7542.873703 | G95: 1960.725394 | H95: 980 | I95: 380 | K95: Daphnia | M95: 2324.837285 | N95: Micropterus | P95: 2987.631924 | Q95: Oncorhynchus | S95: 3312.082426 | T95: Ceriodaphnia | V95: 7770.479755 | X95: Salmo | Z95: 434.4100186 | AA95: Salvelinus | AC95: 638.176326 | AD95: Daphnia | AF95: 985.25892 | AG95: Lampsilis | AI95: 1026.109771
B96: Site 87 | C96: 1 | D96: 100 | E96: 7 | F96: 7542.873703 | G96: 1960.725394 | H96: 980 | I96: 380 | K96: Daphnia | M96: 2324.837285 | N96: Micropterus | P96: 2987.631924 | Q96: Oncorhynchus | S96: 3312.082426 | T96: Ceriodaphnia | V96: 7770.479755 | X96: Salmo | Z96: 434.4100186 | AA96: Salvelinus | AC96: 638.176326 | AD96: Daphnia | AF96: 985.25892 | AG96: Lampsilis | AI96: 1026.109771
B97: Site 88 | C97: 1 | D97: 100 | E97: 7 | F97: 7542.873703 | G97: 1960.725394 | H97: 980 | I97: 380 | K97: Daphnia | M97: 2324.837285 | N97: Micropterus | P97: 2987.631924 | Q97: Oncorhynchus | S97: 3312.082426 | T97: Ceriodaphnia | V97: 7770.479755 | X97: Salmo | Z97: 434.4100186 | AA97: Salvelinus | AC97: 638.176326 | AD97: Daphnia | AF97: 985.25892 | AG97: Lampsilis | AI97: 1026.109771
B98: Site 89 | C98: 1 | D98: 100 | E98: 7 | F98: 7542.873703 | G98: 1960.725394 | H98: 980 | I98: 380 | K98: Daphnia | M98: 2324.837285 | N98: Micropterus | P98: 2987.631924 | Q98: Oncorhynchus | S98: 3312.082426 | T98: Ceriodaphnia | V98: 7770.479755 | X98: Salmo | Z98: 434.4100186 | AA98: Salvelinus | AC98: 638.176326 | AD98: Daphnia | AF98: 985.25892 | AG98: Lampsilis | AI98: 1026.109771
B99: Site 90 | C99: 1 | D99: 100 | E99: 7 | F99: 7542.873703 | G99: 1960.725394 | H99: 980 | I99: 380 | K99: Daphnia | M99: 2324.837285 | N99: Micropterus | P99: 2987.631924 | Q99: Oncorhynchus | S99: 3312.082426 | T99: Ceriodaphnia | V99: 7770.479755 | X99: Salmo | Z99: 434.4100186 | AA99: Salvelinus | AC99: 638.176326 | AD99: Daphnia | AF99: 985.25892 | AG99: Lampsilis | AI99: 1026.109771
B100: Site 91 | C100: 1 | D100: 100 | E100: 7 | F100: 7542.873703 | G100: 1960.725394 | H100: 980 | I100: 380 | K100: Daphnia | M100: 2324.837285 | N100: Micropterus | P100: 2987.631924 | Q100: Oncorhynchus | S100: 3312.082426 | T100: Ceriodaphnia | V100: 7770.479755 | X100: Salmo | Z100: 434.4100186 | AA100: Salvelinus | AC100: 638.176326 | AD100: Daphnia | AF100: 985.25892 | AG100: Lampsilis | AI100: 1026.109771
B101: Site 92 | C101: 1 | D101: 100 | E101: 7 | F101: 7542.873703 | G101: 1960.725394 | H101: 980 | I101: 380 | K101: Daphnia | M101: 2324.837285 | N101: Micropterus | P101: 2987.631924 | Q101: Oncorhynchus | S101: 3312.082426 | T101: Ceriodaphnia | V101: 7770.479755 | X101: Salmo | Z101: 434.4100186 | AA101: Salvelinus | AC101: 638.176326 | AD101: Daphnia | AF101: 985.25892 | AG101: Lampsilis | AI101: 1026.109771
B102: Site 93 | C102: 1 | D102: 100 | E102: 7 | F102: 7542.873703 | G102: 1960.725394 | H102: 980 | I102: 380 | K102: Daphnia | M102: 2324.837285 | N102: Micropterus | P102: 2987.631924 | Q102: Oncorhynchus | S102: 3312.082426 | T102: Ceriodaphnia | V102: 7770.479755 | X102: Salmo | Z102: 434.4100186 | AA102: Salvelinus | AC102: 638.176326 | AD102: Daphnia | AF102: 985.25892 | AG102: Lampsilis | AI102: 1026.109771
B103: Site 94 | C103: 1 | D103: 100 | E103: 7 | F103: 7542.873703 | G103: 1960.725394 | H103: 980 | I103: 380 | K103: Daphnia | M103: 2324.837285 | N103: Micropterus | P103: 2987.631924 | Q103: Oncorhynchus | S103: 3312.082426 | T103: Ceriodaphnia | V103: 7770.479755 | X103: Salmo | Z103: 434.4100186 | AA103: Salvelinus | AC103: 638.176326 | AD103: Daphnia | AF103: 985.25892 | AG103: Lampsilis | AI103: 1026.109771
B104: Site 95 | C104: 1 | D104: 100 | E104: 7 | F104: 7542.873703 | G104: 1960.725394 | H104: 980 | I104: 380 | K104: Daphnia | M104: 2324.837285 | N104: Micropterus | P104: 2987.631924 | Q104: Oncorhynchus | S104: 3312.082426 | T104: Ceriodaphnia | V104: 7770.479755 | X104: Salmo | Z104: 434.4100186 | AA104: Salvelinus | AC104: 638.176326 | AD104: Daphnia | AF104: 985.25892 | AG104: Lampsilis | AI104: 1026.109771
B105: Site 96 | C105: 1 | D105: 100 | E105: 7 | F105: 7542.873703 | G105: 1960.725394 | H105: 980 | I105: 380 | K105: Daphnia | M105: 2324.837285 | N105: Micropterus | P105: 2987.631924 | Q105: Oncorhynchus | S105: 3312.082426 | T105: Ceriodaphnia | V105: 7770.479755 | X105: Salmo | Z105: 434.4100186 | AA105: Salvelinus | AC105: 638.176326 | AD105: Daphnia | AF105: 985.25892 | AG105: Lampsilis | AI105: 1026.109771
B106: Site 97 | C106: 1 | D106: 100 | E106: 7 | F106: 7542.873703 | G106: 1960.725394 | H106: 980 | I106: 380 | K106: Daphnia | M106: 2324.837285 | N106: Micropterus | P106: 2987.631924 | Q106: Oncorhynchus | S106: 3312.082426 | T106: Ceriodaphnia | V106: 7770.479755 | X106: Salmo | Z106: 434.4100186 | AA106: Salvelinus | AC106: 638.176326 | AD106: Daphnia | AF106: 985.25892 | AG106: Lampsilis | AI106: 1026.109771
B107: Site 98 | C107: 1 | D107: 100 | E107: 7 | F107: 7542.873703 | G107: 1960.725394 | H107: 980 | I107: 380 | K107: Daphnia | M107: 2324.837285 | N107: Micropterus | P107: 2987.631924 | Q107: Oncorhynchus | S107: 3312.082426 | T107: Ceriodaphnia | V107: 7770.479755 | X107: Salmo | Z107: 434.4100186 | AA107: Salvelinus | AC107: 638.176326 | AD107: Daphnia | AF107: 985.25892 | AG107: Lampsilis | AI107: 1026.109771
B108: Site 99 | C108: 1 | D108: 100 | E108: 7 | F108: 7542.873703 | G108: 1960.725394 | H108: 980 | I108: 380 | K108: Daphnia | M108: 2324.837285 | N108: Micropterus | P108: 2987.631924 | Q108: Oncorhynchus | S108: 3312.082426 | T108: Ceriodaphnia | V108: 7770.479755 | X108: Salmo | Z108: 434.4100186 | AA108: Salvelinus | AC108: 638.176326 | AD108: Daphnia | AF108: 985.25892 | AG108: Lampsilis | AI108: 1026.109771
B109: Site 100 | C109: 1 | D109: 100 | E109: 7 | F109: 7542.873703 | G109: 1960.725394 | H109: 980 | I109: 380 | K109: Daphnia | M109: 2324.837285 | N109: Micropterus | P109: 2987.631924 | Q109: Oncorhynchus | S109: 3312.082426 | T109: Ceriodaphnia | V109: 7770.479755 | X109: Salmo | Z109: 434.4100186 | AA109: Salvelinus | AC109: 638.176326 | AD109: Daphnia | AF109: 985.25892 | AG109: Lampsilis | AI109: 1026.109771
B110: Site 101 | C110: 1 | D110: 100 | E110: 7 | F110: 7542.873703 | G110: 1960.725394 | H110: 980 | I110: 380 | K110: Daphnia | M110: 2324.837285 | N110: Micropterus | P110: 2987.631924 | Q110: Oncorhynchus | S110: 3312.082426 | T110: Ceriodaphnia | V110: 7770.479755 | X110: Salmo | Z110: 434.4100186 | AA110: Salvelinus | AC110: 638.176326 | AD110: Daphnia | AF110: 985.25892 | AG110: Lampsilis | AI110: 1026.109771
B111: Site 102 | C111: 1 | D111: 100 | E111: 7 | F111: 7542.873703 | G111: 1960.725394 | H111: 980 | I111: 380 | K111: Daphnia | M111: 2324.837285 | N111: Micropterus | P111: 2987.631924 | Q111: Oncorhynchus | S111: 3312.082426 | T111: Ceriodaphnia | V111: 7770.479755 | X111: Salmo | Z111: 434.4100186 | AA111: Salvelinus | AC111: 638.176326 | AD111: Daphnia | AF111: 985.25892 | AG111: Lampsilis | AI111: 1026.109771
B112: Site 103 | C112: 1 | D112: 100 | E112: 7 | F112: 7542.873703 | G112: 1960.725394 | H112: 980 | I112: 380 | K112: Daphnia | M112: 2324.837285 | N112: Micropterus | P112: 2987.631924 | Q112: Oncorhynchus | S112: 3312.082426 | T112: Ceriodaphnia | V112: 7770.479755 | X112: Salmo | Z112: 434.4100186 | AA112: Salvelinus | AC112: 638.176326 | AD112: Daphnia | AF112: 985.25892 | AG112: Lampsilis | AI112: 1026.109771
B113: Site 104 | C113: 1 | D113: 100 | E113: 7 | F113: 7542.873703 | G113: 1960.725394 | H113: 980 | I113: 380 | K113: Daphnia | M113: 2324.837285 | N113: Micropterus | P113: 2987.631924 | Q113: Oncorhynchus | S113: 3312.082426 | T113: Ceriodaphnia | V113: 7770.479755 | X113: Salmo | Z113: 434.4100186 | AA113: Salvelinus | AC113: 638.176326 | AD113: Daphnia | AF113: 985.25892 | AG113: Lampsilis | AI113: 1026.109771
B114: Site 105 | C114: 1 | D114: 100 | E114: 7 | F114: 7542.873703 | G114: 1960.725394 | H114: 980 | I114: 380 | K114: Daphnia | M114: 2324.837285 | N114: Micropterus | P114: 2987.631924 | Q114: Oncorhynchus | S114: 3312.082426 | T114: Ceriodaphnia | V114: 7770.479755 | X114: Salmo | Z114: 434.4100186 | AA114: Salvelinus | AC114: 638.176326 | AD114: Daphnia | AF114: 985.25892 | AG114: Lampsilis | AI114: 1026.109771
B115: Site 106 | C115: 1 | D115: 100 | E115: 7 | F115: 7542.873703 | G115: 1960.725394 | H115: 980 | I115: 380 | K115: Daphnia | M115: 2324.837285 | N115: Micropterus | P115: 2987.631924 | Q115: Oncorhynchus | S115: 3312.082426 | T115: Ceriodaphnia | V115: 7770.479755 | X115: Salmo | Z115: 434.4100186 | AA115: Salvelinus | AC115: 638.176326 | AD115: Daphnia | AF115: 985.25892 | AG115: Lampsilis | AI115: 1026.109771
B116: Site 107 | C116: 1 | D116: 100 | E116: 7 | F116: 7542.873703 | G116: 1960.725394 | H116: 980 | I116: 380 | K116: Daphnia | M116: 2324.837285 | N116: Micropterus | P116: 2987.631924 | Q116: Oncorhynchus | S116: 3312.082426 | T116: Ceriodaphnia | V116: 7770.479755 | X116: Salmo | Z116: 434.4100186 | AA116: Salvelinus | AC116: 638.176326 | AD116: Daphnia | AF116: 985.25892 | AG116: Lampsilis | AI116: 1026.109771
B117: Site 108 | C117: 1 | D117: 100 | E117: 7 | F117: 7542.873703 | G117: 1960.725394 | H117: 980 | I117: 380 | K117: Daphnia | M117: 2324.837285 | N117: Micropterus | P117: 2987.631924 | Q117: Oncorhynchus | S117: 3312.082426 | T117: Ceriodaphnia | V117: 7770.479755 | X117: Salmo | Z117: 434.4100186 | AA117: Salvelinus | AC117: 638.176326 | AD117: Daphnia | AF117: 985.25892 | AG117: Lampsilis | AI117: 1026.109771
B118: Site 109 | C118: 1 | D118: 100 | E118: 7 | F118: 7542.873703 | G118: 1960.725394 | H118: 980 | I118: 380 | K118: Daphnia | M118: 2324.837285 | N118: Micropterus | P118: 2987.631924 | Q118: Oncorhynchus | S118: 3312.082426 | T118: Ceriodaphnia | V118: 7770.479755 | X118: Salmo | Z118: 434.4100186 | AA118: Salvelinus | AC118: 638.176326 | AD118: Daphnia | AF118: 985.25892 | AG118: Lampsilis | AI118: 1026.109771
B119: Site 110 | C119: 1 | D119: 100 | E119: 7 | F119: 7542.873703 | G119: 1960.725394 | H119: 980 | I119: 380 | K119: Daphnia | M119: 2324.837285 | N119: Micropterus | P119: 2987.631924 | Q119: Oncorhynchus | S119: 3312.082426 | T119: Ceriodaphnia | V119: 7770.479755 | X119: Salmo | Z119: 434.4100186 | AA119: Salvelinus | AC119: 638.176326 | AD119: Daphnia | AF119: 985.25892 | AG119: Lampsilis | AI119: 1026.109771
B120: Site 111 | C120: 1 | D120: 100 | E120: 7 | F120: 7542.873703 | G120: 1960.725394 | H120: 980 | I120: 380 | K120: Daphnia | M120: 2324.837285 | N120: Micropterus | P120: 2987.631924 | Q120: Oncorhynchus | S120: 3312.082426 | T120: Ceriodaphnia | V120: 7770.479755 | X120: Salmo | Z120: 434.4100186 | AA120: Salvelinus | AC120: 638.176326 | AD120: Daphnia | AF120: 985.25892 | AG120: Lampsilis | AI120: 1026.109771
B121: Site 112 | C121: 1 | D121: 100 | E121: 7 | F121: 7542.873703 | G121: 1960.725394 | H121: 980 | I121: 380 | K121: Daphnia | M121: 2324.837285 | N121: Micropterus | P121: 2987.631924 | Q121: Oncorhynchus | S121: 3312.082426 | T121: Ceriodaphnia | V121: 7770.479755 | X121: Salmo | Z121: 434.4100186 | AA121: Salvelinus | AC121: 638.176326 | AD121: Daphnia | AF121: 985.25892 | AG121: Lampsilis | AI121: 1026.109771
B122: Site 113 | C122: 1 | D122: 100 | E122: 7 | F122: 7542.873703 | G122: 1960.725394 | H122: 980 | I122: 380 | K122: Daphnia | M122: 2324.837285 | N122: Micropterus | P122: 2987.631924 | Q122: Oncorhynchus | S122: 3312.082426 | T122: Ceriodaphnia | V122: 7770.479755 | X122: Salmo | Z122: 434.4100186 | AA122: Salvelinus | AC122: 638.176326 | AD122: Daphnia | AF122: 985.25892 | AG122: Lampsilis | AI122: 1026.109771
B123: Site 114 | C123: 1 | D123: 100 | E123: 7 | F123: 7542.873703 | G123: 1960.725394 | H123: 980 | I123: 380 | K123: Daphnia | M123: 2324.837285 | N123: Micropterus | P123: 2987.631924 | Q123: Oncorhynchus | S123: 3312.082426 | T123: Ceriodaphnia | V123: 7770.479755 | X123: Salmo | Z123: 434.4100186 | AA123: Salvelinus | AC123: 638.176326 | AD123: Daphnia | AF123: 985.25892 | AG123: Lampsilis | AI123: 1026.109771
B124: Site 115 | C124: 1 | D124: 100 | E124: 7 | F124: 7542.873703 | G124: 1960.725394 | H124: 980 | I124: 380 | K124: Daphnia | M124: 2324.837285 | N124: Micropterus | P124: 2987.631924 | Q124: Oncorhynchus | S124: 3312.082426 | T124: Ceriodaphnia | V124: 7770.479755 | X124: Salmo | Z124: 434.4100186 | AA124: Salvelinus | AC124: 638.176326 | AD124: Daphnia | AF124: 985.25892 | AG124: Lampsilis | AI124: 1026.109771
B125: Site 116 | C125: 1 | D125: 100 | E125: 7 | F125: 7542.873703 | G125: 1960.725394 | H125: 980 | I125: 380 | K125: Daphnia | M125: 2324.837285 | N125: Micropterus | P125: 2987.631924 | Q125: Oncorhynchus | S125: 3312.082426 | T125: Ceriodaphnia | V125: 7770.479755 | X125: Salmo | Z125: 434.4100186 | AA125: Salvelinus | AC125: 638.176326 | AD125: Daphnia | AF125: 985.25892 | AG125: Lampsilis | AI125: 1026.109771
B126: Site 117 | C126: 1 | D126: 100 | E126: 7 | F126: 7542.873703 | G126: 1960.725394 | H126: 980 | I126: 380 | K126: Daphnia | M126: 2324.837285 | N126: Micropterus | P126: 2987.631924 | Q126: Oncorhynchus | S126: 3312.082426 | T126: Ceriodaphnia | V126: 7770.479755 | X126: Salmo | Z126: 434.4100186 | AA126: Salvelinus | AC126: 638.176326 | AD126: Daphnia | AF126: 985.25892 | AG126: Lampsilis | AI126: 1026.109771
B127: Site 118 | C127: 1 | D127: 100 | E127: 7 | F127: 7542.873703 | G127: 1960.725394 | H127: 980 | I127: 380 | K127: Daphnia | M127: 2324.837285 | N127: Micropterus | P127: 2987.631924 | Q127: Oncorhynchus | S127: 3312.082426 | T127: Ceriodaphnia | V127: 7770.479755 | X127: Salmo | Z127: 434.4100186 | AA127: Salvelinus | AC127: 638.176326 | AD127: Daphnia | AF127: 985.25892 | AG127: Lampsilis | AI127: 1026.109771
B128: Site 119 | C128: 1 | D128: 100 | E128: 7 | F128: 7542.873703 | G128: 1960.725394 | H128: 980 | I128: 380 | K128: Daphnia | M128: 2324.837285 | N128: Micropterus | P128: 2987.631924 | Q128: Oncorhynchus | S128: 3312.082426 | T128: Ceriodaphnia | V128: 7770.479755 | X128: Salmo | Z128: 434.4100186 | AA128: Salvelinus | AC128: 638.176326 | AD128: Daphnia | AF128: 985.25892 | AG128: Lampsilis | AI128: 1026.109771
B129: Site 120 | C129: 1 | D129: 100 | E129: 7 | F129: 7542.873703 | G129: 1960.725394 | H129: 980 | I129: 380 | K129: Daphnia | M129: 2324.837285 | N129: Micropterus | P129: 2987.631924 | Q129: Oncorhynchus | S129: 3312.082426 | T129: Ceriodaphnia | V129: 7770.479755 | X129: Salmo | Z129: 434.4100186 | AA129: Salvelinus | AC129: 638.176326 | AD129: Daphnia | AF129: 985.25892 | AG129: Lampsilis | AI129: 1026.109771
B130: Site 121 | C130: 1 | D130: 100 | E130: 7 | F130: 7542.873703 | G130: 1960.725394 | H130: 980 | I130: 380 | K130: Daphnia | M130: 2324.837285 | N130: Micropterus | P130: 2987.631924 | Q130: Oncorhynchus | S130: 3312.082426 | T130: Ceriodaphnia | V130: 7770.479755 | X130: Salmo | Z130: 434.4100186 | AA130: Salvelinus | AC130: 638.176326 | AD130: Daphnia | AF130: 985.25892 | AG130: Lampsilis | AI130: 1026.109771
B131: Site 122 | C131: 1 | D131: 100 | E131: 7 | F131: 7542.873703 | G131: 1960.725394 | H131: 980 | I131: 380 | K131: Daphnia | M131: 2324.837285 | N131: Micropterus | P131: 2987.631924 | Q131: Oncorhynchus | S131: 3312.082426 | T131: Ceriodaphnia | V131: 7770.479755 | X131: Salmo | Z131: 434.4100186 | AA131: Salvelinus | AC131: 638.176326 | AD131: Daphnia | AF131: 985.25892 | AG131: Lampsilis | AI131: 1026.109771
B132: Site 123 | C132: 1 | D132: 100 | E132: 7 | F132: 7542.873703 | G132: 1960.725394 | H132: 980 | I132: 380 | K132: Daphnia | M132: 2324.837285 | N132: Micropterus | P132: 2987.631924 | Q132: Oncorhynchus | S132: 3312.082426 | T132: Ceriodaphnia | V132: 7770.479755 | X132: Salmo | Z132: 434.4100186 | AA132: Salvelinus | AC132: 638.176326 | AD132: Daphnia | AF132: 985.25892 | AG132: Lampsilis | AI132: 1026.109771
B133: Site 124 | C133: 1 | D133: 100 | E133: 7 | F133: 7542.873703 | G133: 1960.725394 | H133: 980 | I133: 380 | K133: Daphnia | M133: 2324.837285 | N133: Micropterus | P133: 2987.631924 | Q133: Oncorhynchus | S133: 3312.082426 | T133: Ceriodaphnia | V133: 7770.479755 | X133: Salmo | Z133: 434.4100186 | AA133: Salvelinus | AC133: 638.176326 | AD133: Daphnia | AF133: 985.25892 | AG133: Lampsilis | AI133: 1026.109771
B134: Site 125 | C134: 1 | D134: 100 | E134: 7 | F134: 7542.873703 | G134: 1960.725394 | H134: 980 | I134: 380 | K134: Daphnia | M134: 2324.837285 | N134: Micropterus | P134: 2987.631924 | Q134: Oncorhynchus | S134: 3312.082426 | T134: Ceriodaphnia | V134: 7770.479755 | X134: Salmo | Z134: 434.4100186 | AA134: Salvelinus | AC134: 638.176326 | AD134: Daphnia | AF134: 985.25892 | AG134: Lampsilis | AI134: 1026.109771
B135: Site 126 | C135: 1 | D135: 100 | E135: 7 | F135: 7542.873703 | G135: 1960.725394 | H135: 980 | I135: 380 | K135: Daphnia | M135: 2324.837285 | N135: Micropterus | P135: 2987.631924 | Q135: Oncorhynchus | S135: 3312.082426 | T135: Ceriodaphnia | V135: 7770.479755 | X135: Salmo | Z135: 434.4100186 | AA135: Salvelinus | AC135: 638.176326 | AD135: Daphnia | AF135: 985.25892 | AG135: Lampsilis | AI135: 1026.109771
B136: Site 127 | C136: 1 | D136: 100 | E136: 7 | F136: 7542.873703 | G136: 1960.725394 | H136: 980 | I136: 380 | K136: Daphnia | M136: 2324.837285 | N136: Micropterus | P136: 2987.631924 | Q136: Oncorhynchus | S136: 3312.082426 | T136: Ceriodaphnia | V136: 7770.479755 | X136: Salmo | Z136: 434.4100186 | AA136: Salvelinus | AC136: 638.176326 | AD136: Daphnia | AF136: 985.25892 | AG136: Lampsilis | AI136: 1026.109771
B137: Site 128 | C137: 1 | D137: 100 | E137: 7 | F137: 7542.873703 | G137: 1960.725394 | H137: 980 | I137: 380 | K137: Daphnia | M137: 2324.837285 | N137: Micropterus | P137: 2987.631924 | Q137: Oncorhynchus | S137: 3312.082426 | T137: Ceriodaphnia | V137: 7770.479755 | X137: Salmo | Z137: 434.4100186 | AA137: Salvelinus | AC137: 638.176326 | AD137: Daphnia | AF137: 985.25892 | AG137: Lampsilis | AI137: 1026.109771
B138: Site 129 | C138: 1 | D138: 100 | E138: 7 | F138: 7542.873703 | G138: 1960.725394 | H138: 980 | I138: 380 | K138: Daphnia | M138: 2324.837285 | N138: Micropterus | P138: 2987.631924 | Q138: Oncorhynchus | S138: 3312.082426 | T138: Ceriodaphnia | V138: 7770.479755 | X138: Salmo | Z138: 434.4100186 | AA138: Salvelinus | AC138: 638.176326 | AD138: Daphnia | AF138: 985.25892 | AG138: Lampsilis | AI138: 1026.109771
B139: Site 130 | C139: 1 | D139: 100 | E139: 7 | F139: 7542.873703 | G139: 1960.725394 | H139: 980 | I139: 380 | J139: =IF(OR(C139>12,D139>430,E139<6,E139>8.2),"Outside model inputs"," ") ->  | K139: Daphnia | M139: 2324.837285 | N139: Micropterus | P139: 2987.631924 | Q139: Oncorhynchus | S139: 3312.082426 | T139: Ceriodaphnia | V139: 7770.479755 | X139: Salmo | Z139: 434.4100186 | AA139: Salvelinus | AC139: 638.176326 | AD139: Daphnia | AF139: 985.25892 | AG139: Lampsilis | AI139: 1026.109771
B140: Site 131 | C140: 1 | D140: 100 | E140: 7 | F140: 7542.873703 | G140: 1960.725394 | H140: 980 | I140: 380 | K140: Daphnia | M140: 2324.837285 | N140: Micropterus | P140: 2987.631924 | Q140: Oncorhynchus | S140: 3312.082426 | T140: Ceriodaphnia | V140: 7770.479755 | X140: Salmo | Z140: 434.4100186 | AA140: Salvelinus | AC140: 638.176326 | AD140: Daphnia | AF140: 985.25892 | AG140: Lampsilis | AI140: 1026.109771
B141: Site 132 | C141: 1 | D141: 100 | E141: 7 | F141: 7542.873703 | G141: 1960.725394 | H141: 980 | I141: 380 | K141: Daphnia | M141: 2324.837285 | N141: Micropterus | P141: 2987.631924 | Q141: Oncorhynchus | S141: 3312.082426 | T141: Ceriodaphnia | V141: 7770.479755 | X141: Salmo | Z141: 434.4100186 | AA141: Salvelinus | AC141: 638.176326 | AD141: Daphnia | AF141: 985.25892 | AG141: Lampsilis | AI141: 1026.109771
B142: Site 133 | C142: 1 | D142: 100 | E142: 7 | F142: 7542.873703 | G142: 1960.725394 | H142: 980 | I142: 380 | K142: Daphnia | M142: 2324.837285 | N142: Micropterus | P142: 2987.631924 | Q142: Oncorhynchus | S142: 3312.082426 | T142: Ceriodaphnia | V142: 7770.479755 | X142: Salmo | Z142: 434.4100186 | AA142: Salvelinus | AC142: 638.176326 | AD142: Daphnia | AF142: 985.25892 | AG142: Lampsilis | AI142: 1026.109771
B143: Site 134 | C143: 1 | D143: 100 | E143: 7 | F143: 7542.873703 | G143: 1960.725394 | H143: 980 | I143: 380 | K143: Daphnia | M143: 2324.837285 | N143: Micropterus | P143: 2987.631924 | Q143: Oncorhynchus | S143: 3312.082426 | T143: Ceriodaphnia | V143: 7770.479755 | X143: Salmo | Z143: 434.4100186 | AA143: Salvelinus | AC143: 638.176326 | AD143: Daphnia | AF143: 985.25892 | AG143: Lampsilis | AI143: 1026.109771
B144: Site 135 | C144: 1 | D144: 100 | E144: 7 | F144: 7542.873703 | G144: 1960.725394 | H144: 980 | I144: 380 | K144: Daphnia | M144: 2324.837285 | N144: Micropterus | P144: 2987.631924 | Q144: Oncorhynchus | S144: 3312.082426 | T144: Ceriodaphnia | V144: 7770.479755 | X144: Salmo | Z144: 434.4100186 | AA144: Salvelinus | AC144: 638.176326 | AD144: Daphnia | AF144: 985.25892 | AG144: Lampsilis | AI144: 1026.109771
B145: Site 136 | C145: 1 | D145: 100 | E145: 7 | F145: 7542.873703 | G145: 1960.725394 | H145: 980 | I145: 380 | K145: Daphnia | M145: 2324.837285 | N145: Micropterus | P145: 2987.631924 | Q145: Oncorhynchus | S145: 3312.082426 | T145: Ceriodaphnia | V145: 7770.479755 | X145: Salmo | Z145: 434.4100186 | AA145: Salvelinus | AC145: 638.176326 | AD145: Daphnia | AF145: 985.25892 | AG145: Lampsilis | AI145: 1026.109771
B146: Site 137 | C146: 1 | D146: 100 | E146: 7 | F146: 7542.873703 | G146: 1960.725394 | H146: 980 | I146: 380 | K146: Daphnia | M146: 2324.837285 | N146: Micropterus | P146: 2987.631924 | Q146: Oncorhynchus | S146: 3312.082426 | T146: Ceriodaphnia | V146: 7770.479755 | X146: Salmo | Z146: 434.4100186 | AA146: Salvelinus | AC146: 638.176326 | AD146: Daphnia | AF146: 985.25892 | AG146: Lampsilis | AI146: 1026.109771
B147: Site 138 | C147: 1 | D147: 100 | E147: 7 | F147: 7542.873703 | G147: 1960.725394 | H147: 980 | I147: 380 | K147: Daphnia | M147: 2324.837285 | N147: Micropterus | P147: 2987.631924 | Q147: Oncorhynchus | S147: 3312.082426 | T147: Ceriodaphnia | V147: 7770.479755 | X147: Salmo | Z147: 434.4100186 | AA147: Salvelinus | AC147: 638.176326 | AD147: Daphnia | AF147: 985.25892 | AG147: Lampsilis | AI147: 1026.109771
B148: Site 139 | C148: 1 | D148: 100 | E148: 7 | F148: 7542.873703 | G148: 1960.725394 | H148: 980 | I148: 380 | K148: Daphnia | M148: 2324.837285 | N148: Micropterus | P148: 2987.631924 | Q148: Oncorhynchus | S148: 3312.082426 | T148: Ceriodaphnia | V148: 7770.479755 | X148: Salmo | Z148: 434.4100186 | AA148: Salvelinus | AC148: 638.176326 | AD148: Daphnia | AF148: 985.25892 | AG148: Lampsilis | AI148: 1026.109771
B149: Site 140 | C149: 1 | D149: 100 | E149: 7 | F149: 7542.873703 | G149: 1960.725394 | H149: 980 | I149: 380 | K149: Daphnia | M149: 2324.837285 | N149: Micropterus | P149: 2987.631924 | Q149: Oncorhynchus | S149: 3312.082426 | T149: Ceriodaphnia | V149: 7770.479755 | X149: Salmo | Z149: 434.4100186 | AA149: Salvelinus | AC149: 638.176326 | AD149: Daphnia | AF149: 985.25892 | AG149: Lampsilis | AI149: 1026.109771
B150: Site 141 | C150: 1 | D150: 100 | E150: 7 | F150: 7542.873703 | G150: 1960.725394 | H150: 980 | I150: 380 | K150: Daphnia | M150: 2324.837285 | N150: Micropterus | P150: 2987.631924 | Q150: Oncorhynchus | S150: 3312.082426 | T150: Ceriodaphnia | V150: 7770.479755 | X150: Salmo | Z150: 434.4100186 | AA150: Salvelinus | AC150: 638.176326 | AD150: Daphnia | AF150: 985.25892 | AG150: Lampsilis | AI150: 1026.109771
B151: Site 142 | C151: 1 | D151: 100 | E151: 7 | F151: 7542.873703 | G151: 1960.725394 | H151: 980 | I151: 380 | K151: Daphnia | M151: 2324.837285 | N151: Micropterus | P151: 2987.631924 | Q151: Oncorhynchus | S151: 3312.082426 | T151: Ceriodaphnia | V151: 7770.479755 | X151: Salmo | Z151: 434.4100186 | AA151: Salvelinus | AC151: 638.176326 | AD151: Daphnia | AF151: 985.25892 | AG151: Lampsilis | AI151: 1026.109771
B152: Site 143 | C152: 1 | D152: 100 | E152: 7 | F152: 7542.873703 | G152: 1960.725394 | H152: 980 | I152: 380 | K152: Daphnia | M152: 2324.837285 | N152: Micropterus | P152: 2987.631924 | Q152: Oncorhynchus | S152: 3312.082426 | T152: Ceriodaphnia | V152: 7770.479755 | X152: Salmo | Z152: 434.4100186 | AA152: Salvelinus | AC152: 638.176326 | AD152: Daphnia | AF152: 985.25892 | AG152: Lampsilis | AI152: 1026.109771
B153: Site 144 | C153: 1 | D153: 100 | E153: 7 | F153: 7542.873703 | G153: 1960.725394 | H153: 980 | I153: 380 | K153: Daphnia | M153: 2324.837285 | N153: Micropterus | P153: 2987.631924 | Q153: Oncorhynchus | S153: 3312.082426 | T153: Ceriodaphnia | V153: 7770.479755 | X153: Salmo | Z153: 434.4100186 | AA153: Salvelinus | AC153: 638.176326 | AD153: Daphnia | AF153: 985.25892 | AG153: Lampsilis | AI153: 1026.109771
B154: Site 145 | C154: 1 | D154: 100 | E154: 7 | F154: 7542.873703 | G154: 1960.725394 | H154: 980 | I154: 380 | K154: Daphnia | M154: 2324.837285 | N154: Micropterus | P154: 2987.631924 | Q154: Oncorhynchus | S154: 3312.082426 | T154: Ceriodaphnia | V154: 7770.479755 | X154: Salmo | Z154: 434.4100186 | AA154: Salvelinus | AC154: 638.176326 | AD154: Daphnia | AF154: 985.25892 | AG154: Lampsilis | AI154: 1026.109771
B155: Site 146 | C155: 1 | D155: 100 | E155: 7 | F155: 7542.873703 | G155: 1960.725394 | H155: 980 | I155: 380 | K155: Daphnia | M155: 2324.837285 | N155: Micropterus | P155: 2987.631924 | Q155: Oncorhynchus | S155: 3312.082426 | T155: Ceriodaphnia | V155: 7770.479755 | X155: Salmo | Z155: 434.4100186 | AA155: Salvelinus | AC155: 638.176326 | AD155: Daphnia | AF155: 985.25892 | AG155: Lampsilis | AI155: 1026.109771
B156: Site 147 | C156: 1 | D156: 100 | E156: 7 | F156: 7542.873703 | G156: 1960.725394 | H156: 980 | I156: 380 | K156: Daphnia | M156: 2324.837285 | N156: Micropterus | P156: 2987.631924 | Q156: Oncorhynchus | S156: 3312.082426 | T156: Ceriodaphnia | V156: 7770.479755 | X156: Salmo | Z156: 434.4100186 | AA156: Salvelinus | AC156: 638.176326 | AD156: Daphnia | AF156: 985.25892 | AG156: Lampsilis | AI156: 1026.109771
B157: Site 148 | C157: 1 | D157: 100 | E157: 7 | F157: 7542.873703 | G157: 1960.725394 | H157: 980 | I157: 380 | K157: Daphnia | M157: 2324.837285 | N157: Micropterus | P157: 2987.631924 | Q157: Oncorhynchus | S157: 3312.082426 | T157: Ceriodaphnia | V157: 7770.479755 | X157: Salmo | Z157: 434.4100186 | AA157: Salvelinus | AC157: 638.176326 | AD157: Daphnia | AF157: 985.25892 | AG157: Lampsilis | AI157: 1026.109771
B158: Site 149 | C158: 1 | D158: 100 | E158: 7 | F158: 7542.873703 | G158: 1960.725394 | H158: 980 | I158: 380 | K158: Daphnia | M158: 2324.837285 | N158: Micropterus | P158: 2987.631924 | Q158: Oncorhynchus | S158: 3312.082426 | T158: Ceriodaphnia | V158: 7770.479755 | X158: Salmo | Z158: 434.4100186 | AA158: Salvelinus | AC158: 638.176326 | AD158: Daphnia | AF158: 985.25892 | AG158: Lampsilis | AI158: 1026.109771
B159: Site 150 | C159: 1 | D159: 100 | E159: 7 | F159: 7542.873703 | G159: 1960.725394 | H159: 980 | I159: 380 | K159: Daphnia | M159: 2324.837285 | N159: Micropterus | P159: 2987.631924 | Q159: Oncorhynchus | S159: 3312.082426 | T159: Ceriodaphnia | V159: 7770.479755 | X159: Salmo | Z159: 434.4100186 | AA159: Salvelinus | AC159: 638.176326 | AD159: Daphnia | AF159: 985.25892 | AG159: Lampsilis | AI159: 1026.109771
B160: Site 151 | C160: 1 | D160: 100 | E160: 7 | F160: 7542.873703 | G160: 1960.725394 | H160: 980 | I160: 380 | K160: Daphnia | M160: 2324.837285 | N160: Micropterus | P160: 2987.631924 | Q160: Oncorhynchus | S160: 3312.082426 | T160: Ceriodaphnia | V160: 7770.479755 | X160: Salmo | Z160: 434.4100186 | AA160: Salvelinus | AC160: 638.176326 | AD160: Daphnia | AF160: 985.25892 | AG160: Lampsilis | AI160: 1026.109771
B161: Site 152 | C161: 1 | D161: 100 | E161: 7 | F161: 7542.873703 | G161: 1960.725394 | H161: 980 | I161: 380 | K161: Daphnia | M161: 2324.837285 | N161: Micropterus | P161: 2987.631924 | Q161: Oncorhynchus | S161: 3312.082426 | T161: Ceriodaphnia | V161: 7770.479755 | X161: Salmo | Z161: 434.4100186 | AA161: Salvelinus | AC161: 638.176326 | AD161: Daphnia | AF161: 985.25892 | AG161: Lampsilis | AI161: 1026.109771
B162: Site 153 | C162: 1 | D162: 100 | E162: 7 | F162: 7542.873703 | G162: 1960.725394 | H162: 980 | I162: 380 | K162: Daphnia | M162: 2324.837285 | N162: Micropterus | P162: 2987.631924 | Q162: Oncorhynchus | S162: 3312.082426 | T162: Ceriodaphnia | V162: 7770.479755 | X162: Salmo | Z162: 434.4100186 | AA162: Salvelinus | AC162: 638.176326 | AD162: Daphnia | AF162: 985.25892 | AG162: Lampsilis | AI162: 1026.109771
B163: Site 154 | C163: 1 | D163: 100 | E163: 7 | F163: 7542.873703 | G163: 1960.725394 | H163: 980 | I163: 380 | K163: Daphnia | M163: 2324.837285 | N163: Micropterus | P163: 2987.631924 | Q163: Oncorhynchus | S163: 3312.082426 | T163: Ceriodaphnia | V163: 7770.479755 | X163: Salmo | Z163: 434.4100186 | AA163: Salvelinus | AC163: 638.176326 | AD163: Daphnia | AF163: 985.25892 | AG163: Lampsilis | AI163: 1026.109771
B164: Site 155 | C164: 1 | D164: 100 | E164: 7 | F164: 7542.873703 | G164: 1960.725394 | H164: 980 | I164: 380 | K164: Daphnia | M164: 2324.837285 | N164: Micropterus | P164: 2987.631924 | Q164: Oncorhynchus | S164: 3312.082426 | T164: Ceriodaphnia | V164: 7770.479755 | X164: Salmo | Z164: 434.4100186 | AA164: Salvelinus | AC164: 638.176326 | AD164: Daphnia | AF164: 985.25892 | AG164: Lampsilis | AI164: 1026.109771
B165: Site 156 | C165: 1 | D165: 100 | E165: 7 | F165: 7542.873703 | G165: 1960.725394 | H165: 980 | I165: 380 | K165: Daphnia | M165: 2324.837285 | N165: Micropterus | P165: 2987.631924 | Q165: Oncorhynchus | S165: 3312.082426 | T165: Ceriodaphnia | V165: 7770.479755 | X165: Salmo | Z165: 434.4100186 | AA165: Salvelinus | AC165: 638.176326 | AD165: Daphnia | AF165: 985.25892 | AG165: Lampsilis | AI165: 1026.109771
B166: Site 157 | C166: 1 | D166: 100 | E166: 7 | F166: 7542.873703 | G166: 1960.725394 | H166: 980 | I166: 380 | K166: Daphnia | M166: 2324.837285 | N166: Micropterus | P166: 2987.631924 | Q166: Oncorhynchus | S166: 3312.082426 | T166: Ceriodaphnia | V166: 7770.479755 | X166: Salmo | Z166: 434.4100186 | AA166: Salvelinus | AC166: 638.176326 | AD166: Daphnia | AF166: 985.25892 | AG166: Lampsilis | AI166: 1026.109771
B167: Site 158 | C167: 1 | D167: 100 | E167: 7 | F167: 7542.873703 | G167: 1960.725394 | H167: 980 | I167: 380 | K167: Daphnia | M167: 2324.837285 | N167: Micropterus | P167: 2987.631924 | Q167: Oncorhynchus | S167: 3312.082426 | T167: Ceriodaphnia | V167: 7770.479755 | X167: Salmo | Z167: 434.4100186 | AA167: Salvelinus | AC167: 638.176326 | AD167: Daphnia | AF167: 985.25892 | AG167: Lampsilis | AI167: 1026.109771
B168: Site 159 | C168: 1 | D168: 100 | E168: 7 | F168: 7542.873703 | G168: 1960.725394 | H168: 980 | I168: 380 | K168: Daphnia | M168: 2324.837285 | N168: Micropterus | P168: 2987.631924 | Q168: Oncorhynchus | S168: 3312.082426 | T168: Ceriodaphnia | V168: 7770.479755 | X168: Salmo | Z168: 434.4100186 | AA168: Salvelinus | AC168: 638.176326 | AD168: Daphnia | AF168: 985.25892 | AG168: Lampsilis | AI168: 1026.109771
B169: Site 160 | C169: 1 | D169: 100 | E169: 7 | F169: 7542.873703 | G169: 1960.725394 | H169: 980 | I169: 380 | K169: Daphnia | M169: 2324.837285 | N169: Micropterus | P169: 2987.631924 | Q169: Oncorhynchus | S169: 3312.082426 | T169: Ceriodaphnia | V169: 7770.479755 | X169: Salmo | Z169: 434.4100186 | AA169: Salvelinus | AC169: 638.176326 | AD169: Daphnia | AF169: 985.25892 | AG169: Lampsilis | AI169: 1026.109771
B170: Site 161 | C170: 1 | D170: 100 | E170: 7 | F170: 7542.873703 | G170: 1960.725394 | H170: 980 | I170: 380 | K170: Daphnia | M170: 2324.837285 | N170: Micropterus | P170: 2987.631924 | Q170: Oncorhynchus | S170: 3312.082426 | T170: Ceriodaphnia | V170: 7770.479755 | X170: Salmo | Z170: 434.4100186 | AA170: Salvelinus | AC170: 638.176326 | AD170: Daphnia | AF170: 985.25892 | AG170: Lampsilis | AI170: 1026.109771
B171: Site 162 | C171: 1 | D171: 100 | E171: 7 | F171: 7542.873703 | G171: 1960.725394 | H171: 980 | I171: 380 | K171: Daphnia | M171: 2324.837285 | N171: Micropterus | P171: 2987.631924 | Q171: Oncorhynchus | S171: 3312.082426 | T171: Ceriodaphnia | V171: 7770.479755 | X171: Salmo | Z171: 434.4100186 | AA171: Salvelinus | AC171: 638.176326 | AD171: Daphnia | AF171: 985.25892 | AG171: Lampsilis | AI171: 1026.109771
B172: Site 163 | C172: 1 | D172: 100 | E172: 7 | F172: 7542.873703 | G172: 1960.725394 | H172: 980 | I172: 380 | K172: Daphnia | M172: 2324.837285 | N172: Micropterus | P172: 2987.631924 | Q172: Oncorhynchus | S172: 3312.082426 | T172: Ceriodaphnia | V172: 7770.479755 | X172: Salmo | Z172: 434.4100186 | AA172: Salvelinus | AC172: 638.176326 | AD172: Daphnia | AF172: 985.25892 | AG172: Lampsilis | AI172: 1026.109771
B173: Site 164 | C173: 1 | D173: 100 | E173: 7 | F173: 7542.873703 | G173: 1960.725394 | H173: 980 | I173: 380 | K173: Daphnia | M173: 2324.837285 | N173: Micropterus | P173: 2987.631924 | Q173: Oncorhynchus | S173: 3312.082426 | T173: Ceriodaphnia | V173: 7770.479755 | X173: Salmo | Z173: 434.4100186 | AA173: Salvelinus | AC173: 638.176326 | AD173: Daphnia | AF173: 985.25892 | AG173: Lampsilis | AI173: 1026.109771
B174: Site 165 | C174: 1 | D174: 100 | E174: 7 | F174: 7542.873703 | G174: 1960.725394 | H174: 980 | I174: 380 | K174: Daphnia | M174: 2324.837285 | N174: Micropterus | P174: 2987.631924 | Q174: Oncorhynchus | S174: 3312.082426 | T174: Ceriodaphnia | V174: 7770.479755 | X174: Salmo | Z174: 434.4100186 | AA174: Salvelinus | AC174: 638.176326 | AD174: Daphnia | AF174: 985.25892 | AG174: Lampsilis | AI174: 1026.109771
B175: Site 166 | C175: 1 | D175: 100 | E175: 7 | F175: 7542.873703 | G175: 1960.725394 | H175: 980 | I175: 380 | K175: Daphnia | M175: 2324.837285 | N175: Micropterus | P175: 2987.631924 | Q175: Oncorhynchus | S175: 3312.082426 | T175: Ceriodaphnia | V175: 7770.479755 | X175: Salmo | Z175: 434.4100186 | AA175: Salvelinus | AC175: 638.176326 | AD175: Daphnia | AF175: 985.25892 | AG175: Lampsilis | AI175: 1026.109771
B176: Site 167 | C176: 1 | D176: 100 | E176: 7 | F176: 7542.873703 | G176: 1960.725394 | H176: 980 | I176: 380 | K176: Daphnia | M176: 2324.837285 | N176: Micropterus | P176: 2987.631924 | Q176: Oncorhynchus | S176: 3312.082426 | T176: Ceriodaphnia | V176: 7770.479755 | X176: Salmo | Z176: 434.4100186 | AA176: Salvelinus | AC176: 638.176326 | AD176: Daphnia | AF176: 985.25892 | AG176: Lampsilis | AI176: 1026.109771
B177: Site 168 | C177: 1 | D177: 100 | E177: 7 | F177: 7542.873703 | G177: 1960.725394 | H177: 980 | I177: 380 | K177: Daphnia | M177: 2324.837285 | N177: Micropterus | P177: 2987.631924 | Q177: Oncorhynchus | S177: 3312.082426 | T177: Ceriodaphnia | V177: 7770.479755 | X177: Salmo | Z177: 434.4100186 | AA177: Salvelinus | AC177: 638.176326 | AD177: Daphnia | AF177: 985.25892 | AG177: Lampsilis | AI177: 1026.109771
B178: Site 169 | C178: 1 | D178: 100 | E178: 7 | F178: 7542.873703 | G178: 1960.725394 | H178: 980 | I178: 380 | K178: Daphnia | M178: 2324.837285 | N178: Micropterus | P178: 2987.631924 | Q178: Oncorhynchus | S178: 3312.082426 | T178: Ceriodaphnia | V178: 7770.479755 | X178: Salmo | Z178: 434.4100186 | AA178: Salvelinus | AC178: 638.176326 | AD178: Daphnia | AF178: 985.25892 | AG178: Lampsilis | AI178: 1026.109771
B179: Site 170 | C179: 1 | D179: 100 | E179: 7 | F179: 7542.873703 | G179: 1960.725394 | H179: 980 | I179: 380 | K179: Daphnia | M179: 2324.837285 | N179: Micropterus | P179: 2987.631924 | Q179: Oncorhynchus | S179: 3312.082426 | T179: Ceriodaphnia | V179: 7770.479755 | X179: Salmo | Z179: 434.4100186 | AA179: Salvelinus | AC179: 638.176326 | AD179: Daphnia | AF179: 985.25892 | AG179: Lampsilis | AI179: 1026.109771
B180: Site 171 | C180: 1 | D180: 100 | E180: 7 | F180: 7542.873703 | G180: 1960.725394 | H180: 980 | I180: 380 | K180: Daphnia | M180: 2324.837285 | N180: Micropterus | P180: 2987.631924 | Q180: Oncorhynchus | S180: 3312.082426 | T180: Ceriodaphnia | V180: 7770.479755 | X180: Salmo | Z180: 434.4100186 | AA180: Salvelinus | AC180: 638.176326 | AD180: Daphnia | AF180: 985.25892 | AG180: Lampsilis | AI180: 1026.109771
B181: Site 172 | C181: 1 | D181: 100 | E181: 7 | F181: 7542.873703 | G181: 1960.725394 | H181: 980 | I181: 380 | K181: Daphnia | M181: 2324.837285 | N181: Micropterus | P181: 2987.631924 | Q181: Oncorhynchus | S181: 3312.082426 | T181: Ceriodaphnia | V181: 7770.479755 | X181: Salmo | Z181: 434.4100186 | AA181: Salvelinus | AC181: 638.176326 | AD181: Daphnia | AF181: 985.25892 | AG181: Lampsilis | AI181: 1026.109771
B182: Site 173 | C182: 1 | D182: 100 | E182: 7 | F182: 7542.873703 | G182: 1960.725394 | H182: 980 | I182: 380 | K182: Daphnia | M182: 2324.837285 | N182: Micropterus | P182: 2987.631924 | Q182: Oncorhynchus | S182: 3312.082426 | T182: Ceriodaphnia | V182: 7770.479755 | X182: Salmo | Z182: 434.4100186 | AA182: Salvelinus | AC182: 638.176326 | AD182: Daphnia | AF182: 985.25892 | AG182: Lampsilis | AI182: 1026.109771
B183: Site 174 | C183: 1 | D183: 100 | E183: 7 | F183: 7542.873703 | G183: 1960.725394 | H183: 980 | I183: 380 | K183: Daphnia | M183: 2324.837285 | N183: Micropterus | P183: 2987.631924 | Q183: Oncorhynchus | S183: 3312.082426 | T183: Ceriodaphnia | V183: 7770.479755 | X183: Salmo | Z183: 434.4100186 | AA183: Salvelinus | AC183: 638.176326 | AD183: Daphnia | AF183: 985.25892 | AG183: Lampsilis | AI183: 1026.109771
B184: Site 175 | C184: 1 | D184: 100 | E184: 7 | F184: 7542.873703 | G184: 1960.725394 | H184: 980 | I184: 380 | K184: Daphnia | M184: 2324.837285 | N184: Micropterus | P184: 2987.631924 | Q184: Oncorhynchus | S184: 3312.082426 | T184: Ceriodaphnia | V184: 7770.479755 | X184: Salmo | Z184: 434.4100186 | AA184: Salvelinus | AC184: 638.176326 | AD184: Daphnia | AF184: 985.25892 | AG184: Lampsilis | AI184: 1026.109771
B185: Site 176 | C185: 1 | D185: 100 | E185: 7 | F185: 7542.873703 | G185: 1960.725394 | H185: 980 | I185: 380 | K185: Daphnia | M185: 2324.837285 | N185: Micropterus | P185: 2987.631924 | Q185: Oncorhynchus | S185: 3312.082426 | T185: Ceriodaphnia | V185: 7770.479755 | X185: Salmo | Z185: 434.4100186 | AA185: Salvelinus | AC185: 638.176326 | AD185: Daphnia | AF185: 985.25892 | AG185: Lampsilis | AI185: 1026.109771
B186: Site 177 | C186: 1 | D186: 100 | E186: 7 | F186: 7542.873703 | G186: 1960.725394 | H186: 980 | I186: 380 | K186: Daphnia | M186: 2324.837285 | N186: Micropterus | P186: 2987.631924 | Q186: Oncorhynchus | S186: 3312.082426 | T186: Ceriodaphnia | V186: 7770.479755 | X186: Salmo | Z186: 434.4100186 | AA186: Salvelinus | AC186: 638.176326 | AD186: Daphnia | AF186: 985.25892 | AG186: Lampsilis | AI186: 1026.109771
B187: Site 178 | C187: 1 | D187: 100 | E187: 7 | F187: 7542.873703 | G187: 1960.725394 | H187: 980 | I187: 380 | K187: Daphnia | M187: 2324.837285 | N187: Micropterus | P187: 2987.631924 | Q187: Oncorhynchus | S187: 3312.082426 | T187: Ceriodaphnia | V187: 7770.479755 | X187: Salmo | Z187: 434.4100186 | AA187: Salvelinus | AC187: 638.176326 | AD187: Daphnia | AF187: 985.25892 | AG187: Lampsilis | AI187: 1026.109771
B188: Site 179 | C188: 1 | D188: 100 | E188: 7 | F188: 7542.873703 | G188: 1960.725394 | H188: 980 | I188: 380 | K188: Daphnia | M188: 2324.837285 | N188: Micropterus | P188: 2987.631924 | Q188: Oncorhynchus | S188: 3312.082426 | T188: Ceriodaphnia | V188: 7770.479755 | X188: Salmo | Z188: 434.4100186 | AA188: Salvelinus | AC188: 638.176326 | AD188: Daphnia | AF188: 985.25892 | AG188: Lampsilis | AI188: 1026.109771
B189: Site 180 | C189: 1 | D189: 100 | E189: 7 | F189: 7542.873703 | G189: 1960.725394 | H189: 980 | I189: 380 | K189: Daphnia | M189: 2324.837285 | N189: Micropterus | P189: 2987.631924 | Q189: Oncorhynchus | S189: 3312.082426 | T189: Ceriodaphnia | V189: 7770.479755 | X189: Salmo | Z189: 434.4100186 | AA189: Salvelinus | AC189: 638.176326 | AD189: Daphnia | AF189: 985.25892 | AG189: Lampsilis | AI189: 1026.109771
B190: Site 181 | C190: 1 | D190: 100 | E190: 7 | F190: 7542.873703 | G190: 1960.725394 | H190: 980 | I190: 380 | K190: Daphnia | M190: 2324.837285 | N190: Micropterus | P190: 2987.631924 | Q190: Oncorhynchus | S190: 3312.082426 | T190: Ceriodaphnia | V190: 7770.479755 | X190: Salmo | Z190: 434.4100186 | AA190: Salvelinus | AC190: 638.176326 | AD190: Daphnia | AF190: 985.25892 | AG190: Lampsilis | AI190: 1026.109771
B191: Site 182 | C191: 1 | D191: 100 | E191: 7 | F191: 7542.873703 | G191: 1960.725394 | H191: 980 | I191: 380 | K191: Daphnia | M191: 2324.837285 | N191: Micropterus | P191: 2987.631924 | Q191: Oncorhynchus | S191: 3312.082426 | T191: Ceriodaphnia | V191: 7770.479755 | X191: Salmo | Z191: 434.4100186 | AA191: Salvelinus | AC191: 638.176326 | AD191: Daphnia | AF191: 985.25892 | AG191: Lampsilis | AI191: 1026.109771
B192: Site 183 | C192: 1 | D192: 100 | E192: 7 | F192: 7542.873703 | G192: 1960.725394 | H192: 980 | I192: 380 | K192: Daphnia | M192: 2324.837285 | N192: Micropterus | P192: 2987.631924 | Q192: Oncorhynchus | S192: 3312.082426 | T192: Ceriodaphnia | V192: 7770.479755 | X192: Salmo | Z192: 434.4100186 | AA192: Salvelinus | AC192: 638.176326 | AD192: Daphnia | AF192: 985.25892 | AG192: Lampsilis | AI192: 1026.109771
B193: Site 184 | C193: 1 | D193: 100 | E193: 7 | F193: 7542.873703 | G193: 1960.725394 | H193: 980 | I193: 380 | K193: Daphnia | M193: 2324.837285 | N193: Micropterus | P193: 2987.631924 | Q193: Oncorhynchus | S193: 3312.082426 | T193: Ceriodaphnia | V193: 7770.479755 | X193: Salmo | Z193: 434.4100186 | AA193: Salvelinus | AC193: 638.176326 | AD193: Daphnia | AF193: 985.25892 | AG193: Lampsilis | AI193: 1026.109771
B194: Site 185 | C194: 1 | D194: 100 | E194: 7 | F194: 7542.873703 | G194: 1960.725394 | H194: 980 | I194: 380 | K194: Daphnia | M194: 2324.837285 | N194: Micropterus | P194: 2987.631924 | Q194: Oncorhynchus | S194: 3312.082426 | T194: Ceriodaphnia | V194: 7770.479755 | X194: Salmo | Z194: 434.4100186 | AA194: Salvelinus | AC194: 638.176326 | AD194: Daphnia | AF194: 985.25892 | AG194: Lampsilis | AI194: 1026.109771
B195: Site 186 | C195: 1 | D195: 100 | E195: 7 | F195: 7542.873703 | G195: 1960.725394 | H195: 980 | I195: 380 | K195: Daphnia | M195: 2324.837285 | N195: Micropterus | P195: 2987.631924 | Q195: Oncorhynchus | S195: 3312.082426 | T195: Ceriodaphnia | V195: 7770.479755 | X195: Salmo | Z195: 434.4100186 | AA195: Salvelinus | AC195: 638.176326 | AD195: Daphnia | AF195: 985.25892 | AG195: Lampsilis | AI195: 1026.109771
B196: Site 187 | C196: 1 | D196: 100 | E196: 7 | F196: 7542.873703 | G196: 1960.725394 | H196: 980 | I196: 380 | K196: Daphnia | M196: 2324.837285 | N196: Micropterus | P196: 2987.631924 | Q196: Oncorhynchus | S196: 3312.082426 | T196: Ceriodaphnia | V196: 7770.479755 | X196: Salmo | Z196: 434.4100186 | AA196: Salvelinus | AC196: 638.176326 | AD196: Daphnia | AF196: 985.25892 | AG196: Lampsilis | AI196: 1026.109771
B197: Site 188 | C197: 1 | D197: 100 | E197: 7 | F197: 7542.873703 | G197: 1960.725394 | H197: 980 | I197: 380 | K197: Daphnia | M197: 2324.837285 | N197: Micropterus | P197: 2987.631924 | Q197: Oncorhynchus | S197: 3312.082426 | T197: Ceriodaphnia | V197: 7770.479755 | X197: Salmo | Z197: 434.4100186 | AA197: Salvelinus | AC197: 638.176326 | AD197: Daphnia | AF197: 985.25892 | AG197: Lampsilis | AI197: 1026.109771
B198: Site 189 | C198: 1 | D198: 100 | E198: 7 | F198: 7542.873703 | G198: 1960.725394 | H198: 980 | I198: 380 | K198: Daphnia | M198: 2324.837285 | N198: Micropterus | P198: 2987.631924 | Q198: Oncorhynchus | S198: 3312.082426 | T198: Ceriodaphnia | V198: 7770.479755 | X198: Salmo | Z198: 434.4100186 | AA198: Salvelinus | AC198: 638.176326 | AD198: Daphnia | AF198: 985.25892 | AG198: Lampsilis | AI198: 1026.109771
B199: Site 190 | C199: 1 | D199: 100 | E199: 7 | F199: 7542.873703 | G199: 1960.725394 | H199: 980 | I199: 380 | K199: Daphnia | M199: 2324.837285 | N199: Micropterus | P199: 2987.631924 | Q199: Oncorhynchus | S199: 3312.082426 | T199: Ceriodaphnia | V199: 7770.479755 | X199: Salmo | Z199: 434.4100186 | AA199: Salvelinus | AC199: 638.176326 | AD199: Daphnia | AF199: 985.25892 | AG199: Lampsilis | AI199: 1026.109771
B200: Site 191 | C200: 1 | D200: 100 | E200: 7 | F200: 7542.873703 | G200: 1960.725394 | H200: 980 | I200: 380 | K200: Daphnia | M200: 2324.837285 | N200: Micropterus | P200: 2987.631924 | Q200: Oncorhynchus | S200: 3312.082426 | T200: Ceriodaphnia | V200: 7770.479755 | X200: Salmo | Z200: 434.4100186 | AA200: Salvelinus | AC200: 638.176326 | AD200: Daphnia | AF200: 985.25892 | AG200: Lampsilis | AI200: 1026.109771
B201: Site 192 | C201: 1 | D201: 100 | E201: 7 | F201: 7542.873703 | G201: 1960.725394 | H201: 980 | I201: 380 | K201: Daphnia | M201: 2324.837285 | N201: Micropterus | P201: 2987.631924 | Q201: Oncorhynchus | S201: 3312.082426 | T201: Ceriodaphnia | V201: 7770.479755 | X201: Salmo | Z201: 434.4100186 | AA201: Salvelinus | AC201: 638.176326 | AD201: Daphnia | AF201: 985.25892 | AG201: Lampsilis | AI201: 1026.109771
B202: Site 193 | C202: 1 | D202: 100 | E202: 7 | F202: 7542.873703 | G202: 1960.725394 | H202: 980 | I202: 380 | K202: Daphnia | M202: 2324.837285 | N202: Micropterus | P202: 2987.631924 | Q202: Oncorhynchus | S202: 3312.082426 | T202: Ceriodaphnia | V202: 7770.479755 | X202: Salmo | Z202: 434.4100186 | AA202: Salvelinus | AC202: 638.176326 | AD202: Daphnia | AF202: 985.25892 | AG202: Lampsilis | AI202: 1026.109771
B203: Site 194 | C203: 1 | D203: 100 | E203: 7 | F203: 7542.873703 | G203: 1960.725394 | H203: 980 | I203: 380 | J203: =IF(OR(C203>12,D203>430,E203<6,E203>8.2),"Outside model inputs"," ") ->  | K203: Daphnia | M203: 2324.837285 | N203: Micropterus | P203: 2987.631924 | Q203: Oncorhynchus | S203: 3312.082426 | T203: Ceriodaphnia | V203: 7770.479755 | X203: Salmo | Z203: 434.4100186 | AA203: Salvelinus | AC203: 638.176326 | AD203: Daphnia | AF203: 985.25892 | AG203: Lampsilis | AI203: 1026.109771
B204: Site 195 | C204: 1 | D204: 100 | E204: 7 | F204: 7542.873703 | G204: 1960.725394 | H204: 980 | I204: 380 | K204: Daphnia | M204: 2324.837285 | N204: Micropterus | P204: 2987.631924 | Q204: Oncorhynchus | S204: 3312.082426 | T204: Ceriodaphnia | V204: 7770.479755 | X204: Salmo | Z204: 434.4100186 | AA204: Salvelinus | AC204: 638.176326 | AD204: Daphnia | AF204: 985.25892 | AG204: Lampsilis | AI204: 1026.109771
... 305 more rows

Sheet Summary Sheet
G2: All concentrations reported are µg/L total Aluminum
B3: Normalization Chemistry
B4: pH: | C4: 7 | D4: =IF(OR(C4<5,C4>9),"Outside model inputs"," ") ->  | G4: FAV | H4: =E43 -> 2829.221525
B5: Total Hardness: | C5: 300 | D5: =IF(C5>428,"Outside model inputs"," ") ->  | G5: CMC | H5: =ROUND(E44,2-(1+INT(LOG10(ABS(E44))))) -> 1400
B6: DOC: | C6: 1 | D6: =IF(C6>12.3,"Outside model inputs"," ") ->  | G6: CCC | H6: =ROUND(O43,2-(1+INT(LOG10(ABS(O43))))) -> 440
B9: Acute Ranked GMAV | L9: Chronic Ranked GMCV
B10: Rank | D10: GMAV | E10: Genus | L10: Rank | N10: GMCV | O10: Genus
B11: 20 | C11: =IF(VLOOKUP(D11,'Acute Dataset'!O$5:Q$143,2,)=">",">","") ->  | D11: =SMALL('Acute Dataset'!O$5:O$143,'Summary Sheet'!B11) -> 202135.997 | E11: =VLOOKUP(D11,'Acute Dataset'!O$5:Q$143,3,FALSE) -> Melanoides | F11: =VLOOKUP(D11,'Acute Dataset'!O$5:R$143,4,FALSE) -> Mollusk | L11: 13 | M11: =IF(VLOOKUP(N11,'Chronic Dataset'!O$5:Q$76,2,FALSE) =">",">","") ->  | N11: =SMALL('Chronic Dataset'!$O$5:$O$76,L11) -> 34720.40938 | O11: =VLOOKUP(N11,'Chronic Dataset'!O$5:Q$76,3,FALSE) -> Aeolosoma | P11: =VLOOKUP(N11,'Chronic Dataset'!O$5:R$76,4,FALSE) -> Invert
B12: 19 | C12: =IF(VLOOKUP(D12,'Acute Dataset'!O$5:Q$143,2,)=">",">","") -> > | D12: =SMALL('Acute Dataset'!O$5:O$143,'Summary Sheet'!B12) -> 119573.5796 | E12: =VLOOKUP(D12,'Acute Dataset'!O$5:Q$143,3,FALSE) -> Paratanytarsus | F12: =VLOOKUP(D12,'Acute Dataset'!O$5:R$143,4,FALSE) -> Invert | L12: 12 | M12: =IF(VLOOKUP(N12,'Chronic Dataset'!O$5:Q$76,2,FALSE) =">",">","") -> > | N12: =SMALL('Chronic Dataset'!$O$5:$O$76,L12) -> 13877.21466 | O12: =VLOOKUP(N12,'Chronic Dataset'!O$5:Q$76,3,FALSE) -> Rana | P12: =VLOOKUP(N12,'Chronic Dataset'!O$5:R$76,4,FALSE) -> Amphib - Other Data
B13: 18 | C13: =IF(VLOOKUP(D13,'Acute Dataset'!O$5:Q$143,2,)=">",">","") ->  | D13: =SMALL('Acute Dataset'!O$5:O$143,'Summary Sheet'!B13) -> 70846.9054 | E13: =VLOOKUP(D13,'Acute Dataset'!O$5:Q$143,3,FALSE) -> Physa | F13: =VLOOKUP(D13,'Acute Dataset'!O$5:R$143,4,FALSE) -> Mollusk | L13: 11 | M13: =IF(VLOOKUP(N13,'Chronic Dataset'!O$5:Q$76,2,FALSE) =">",">","") ->  | N13: =SMALL('Chronic Dataset'!$O$5:$O$76,L13) -> 8630.440956 | O13: =VLOOKUP(N13,'Chronic Dataset'!O$5:Q$76,3,FALSE) -> Chironomus | P13: =VLOOKUP(N13,'Chronic Dataset'!O$5:R$76,4,FALSE) -> Invert
B14: 17 | C14: =IF(VLOOKUP(D14,'Acute Dataset'!O$5:Q$143,2,)=">",">","") -> > | D14: =SMALL('Acute Dataset'!O$5:O$143,'Summary Sheet'!B14) -> 49916.99108 | E14: =VLOOKUP(D14,'Acute Dataset'!O$5:Q$143,3,FALSE) -> Lampsilis | F14: =VLOOKUP(D14,'Acute Dataset'!O$5:R$143,4,FALSE) -> Mollusk | L14: 10 | M14: =IF(VLOOKUP(N14,'Chronic Dataset'!O$5:Q$76,2,FALSE) =">",">","") ->  | N14: =SMALL('Chronic Dataset'!$O$5:$O$76,L14) -> 5990.033882 | O14: =VLOOKUP(N14,'Chronic Dataset'!O$5:Q$76,3,FALSE) -> Brachionus | P14: =VLOOKUP(N14,'Chronic Dataset'!O$5:R$76,4,FALSE) -> Invert
B15: 16 | C15: =IF(VLOOKUP(D15,'Acute Dataset'!O$5:Q$143,2,)=">",">","") -> > | D15: =SMALL('Acute Dataset'!O$5:O$143,'Summary Sheet'!B15) -> 46995.13912 | E15: =VLOOKUP(D15,'Acute Dataset'!O$5:Q$143,3,FALSE) -> Hyalella | F15: =VLOOKUP(D15,'Acute Dataset'!O$5:R$143,4,FALSE) -> Invert | L15: 9 | M15: =IF(VLOOKUP(N15,'Chronic Dataset'!O$5:Q$76,2,FALSE) =">",">","") ->  | N15: =SMALL('Chronic Dataset'!$O$5:$O$76,L15) -> 5278.956886 | O15: =VLOOKUP(N15,'Chronic Dataset'!O$5:Q$76,3,FALSE) -> Lymnaea | P15: =VLOOKUP(N15,'Chronic Dataset'!O$5:R$76,4,FALSE) -> Mollusk
B16: 15 | C16: =IF(VLOOKUP(D16,'Acute Dataset'!O$5:Q$143,2,)=">",">","") ->  | D16: =SMALL('Acute Dataset'!O$5:O$143,'Summary Sheet'!B16) -> 42679.82228 | E16: =VLOOKUP(D16,'Acute Dataset'!O$5:Q$143,3,FALSE) -> Chironomus | F16: =VLOOKUP(D16,'Acute Dataset'!O$5:R$143,4,FALSE) -> Invert | L16: 8 | M16: =IF(VLOOKUP(N16,'Chronic Dataset'!O$5:Q$76,2,FALSE) =">",">","") ->  | N16: =SMALL('Chronic Dataset'!$O$5:$O$76,L16) -> 3126.018987 | O16: =VLOOKUP(N16,'Chronic Dataset'!O$5:Q$76,3,FALSE) -> Pimephales | P16: =VLOOKUP(N16,'Chronic Dataset'!O$5:R$76,4,FALSE) -> Fish
B17: 14 | C17: =IF(VLOOKUP(D17,'Acute Dataset'!O$5:Q$143,2,)=">",">","") -> > | D17: =SMALL('Acute Dataset'!O$5:O$143,'Summary Sheet'!B17) -> 40376.77034 | E17: =VLOOKUP(D17,'Acute Dataset'!O$5:Q$143,3,FALSE) -> Lepomis | F17: =VLOOKUP(D17,'Acute Dataset'!O$5:R$143,4,FALSE) -> Fish | L17: 7 | M17: =IF(VLOOKUP(N17,'Chronic Dataset'!O$5:Q$76,2,FALSE) =">",">","") ->  | N17: =SMALL('Chronic Dataset'!$O$5:$O$76,L17) -> 2347.88895 | O17: =VLOOKUP(N17,'Chronic Dataset'!O$5:Q$76,3,FALSE) -> Hyalella | P17: =VLOOKUP(N17,'Chronic Dataset'!O$5:R$76,4,FALSE) -> Invert
B18: 13 | C18: =IF(VLOOKUP(D18,'Acute Dataset'!O$5:Q$143,2,)=">",">","") -> > | D18: =SMALL('Acute Dataset'!O$5:O$143,'Summary Sheet'!B18) -> 28698.42813 | E18: =VLOOKUP(D18,'Acute Dataset'!O$5:Q$143,3,FALSE) -> Pimephales | F18: =VLOOKUP(D18,'Acute Dataset'!O$5:R$143,4,FALSE) -> Fish | L18: 6 | M18: =IF(VLOOKUP(N18,'Chronic Dataset'!O$5:Q$76,2,FALSE) =">",">","") ->  | N18: =SMALL('Chronic Dataset'!$O$5:$O$76,L18) -> 1999.750449 | O18: =VLOOKUP(N18,'Chronic Dataset'!O$5:Q$76,3,FALSE) -> Ceriodaphnia | P18: =VLOOKUP(N18,'Chronic Dataset'!O$5:R$76,4,FALSE) -> Invert
B19: 12 | C19: =IF(VLOOKUP(D19,'Acute Dataset'!O$5:Q$143,2,)=">",">","") -> > | D19: =SMALL('Acute Dataset'!O$5:O$143,'Summary Sheet'!B19) -> 28287.13395 | E19: =VLOOKUP(D19,'Acute Dataset'!O$5:Q$143,3,FALSE) -> Hybognathus | F19: =VLOOKUP(D19,'Acute Dataset'!O$5:R$143,4,FALSE) -> Fish | L19: 5 | M19: =IF(VLOOKUP(N19,'Chronic Dataset'!O$5:Q$76,2,FALSE) =">",">","") ->  | N19: =SMALL('Chronic Dataset'!$O$5:$O$76,L19) -> 1743.0883 | O19: =VLOOKUP(N19,'Chronic Dataset'!O$5:Q$76,3,FALSE) -> Danio | P19: =VLOOKUP(N19,'Chronic Dataset'!O$5:R$76,4,FALSE) -> Fish
B20: 11 | C20: =IF(VLOOKUP(D20,'Acute Dataset'!O$5:Q$143,2,)=">",">","") ->  | D20: =SMALL('Acute Dataset'!O$5:O$143,'Summary Sheet'!B20) -> 24564.30268 | E20: =VLOOKUP(D20,'Acute Dataset'!O$5:Q$143,3,FALSE) -> Salvelinus | F20: =VLOOKUP(D20,'Acute Dataset'!O$5:R$143,4,FALSE) -> Fish | L20: 4 | M20: =IF(VLOOKUP(N20,'Chronic Dataset'!O$5:Q$76,2,FALSE) =">",">","") ->  | N20: =SMALL('Chronic Dataset'!$O$5:$O$76,L20) -> 1736.740388 | O20: =VLOOKUP(N20,'Chronic Dataset'!O$5:Q$76,3,FALSE) -> Lampsilis | P20: =VLOOKUP(N20,'Chronic Dataset'!O$5:R$76,4,FALSE) -> Mollusk
B21: 10 | C21: =IF(VLOOKUP(D21,'Acute Dataset'!O$5:Q$143,2,)=">",">","") -> > | D21: =SMALL('Acute Dataset'!O$5:O$143,'Summary Sheet'!B21) -> 24109.7067 | E21: =VLOOKUP(D21,'Acute Dataset'!O$5:Q$143,3,FALSE) -> Hyla | F21: =VLOOKUP(D21,'Acute Dataset'!O$5:R$143,4,FALSE) -> Amphibian | L21: 3 | M21: =IF(VLOOKUP(N21,'Chronic Dataset'!O$5:Q$76,2,FALSE) =">",">","") ->  | N21: =SMALL('Chronic Dataset'!$O$5:$O$76,L21) -> 1667.598349 | O21: =VLOOKUP(N21,'Chronic Dataset'!O$5:Q$76,3,FALSE) -> Daphnia | P21: =VLOOKUP(N21,'Chronic Dataset'!O$5:R$76,4,FALSE) -> Invert
B22: 9 | C22: =IF(VLOOKUP(D22,'Acute Dataset'!O$5:Q$143,2,)=">",">","") ->  | D22: =SMALL('Acute Dataset'!O$5:O$143,'Summary Sheet'!B22) -> 21835.1866 | E22: =VLOOKUP(D22,'Acute Dataset'!O$5:Q$143,3,FALSE) -> Crangonyx | F22: =VLOOKUP(D22,'Acute Dataset'!O$5:R$143,4,FALSE) -> Invert | L22: 2 | M22: =IF(VLOOKUP(N22,'Chronic Dataset'!O$5:Q$76,2,FALSE) =">",">","") ->  | N22: =SMALL('Chronic Dataset'!$O$5:$O$76,L22) -> 828.8874193 | O22: =VLOOKUP(N22,'Chronic Dataset'!O$5:Q$76,3,FALSE) -> Salvelinus | P22: =VLOOKUP(N22,'Chronic Dataset'!O$5:R$76,4,FALSE) -> Fish
B23: 8 | C23: =IF(VLOOKUP(D23,'Acute Dataset'!O$5:Q$143,2,)=">",">","") ->  | D23: =SMALL('Acute Dataset'!O$5:O$143,'Summary Sheet'!B23) -> 15611.4014 | E23: =VLOOKUP(D23,'Acute Dataset'!O$5:Q$143,3,FALSE) -> Nais | F23: =VLOOKUP(D23,'Acute Dataset'!O$5:R$143,4,FALSE) -> Invert | L23: 1 | M23: =IF(VLOOKUP(N23,'Chronic Dataset'!O$5:Q$76,2,FALSE) =">",">","") ->  | N23: =SMALL('Chronic Dataset'!$O$5:$O$76,L23) -> 564.2280739 | O23: =VLOOKUP(N23,'Chronic Dataset'!O$5:Q$76,3,FALSE) -> Salmo | P23: =VLOOKUP(N23,'Chronic Dataset'!O$5:R$76,4,FALSE) -> Fish
B24: 7 | C24: =IF(VLOOKUP(D24,'Acute Dataset'!O$5:Q$143,2,)=">",">","") ->  | D24: =SMALL('Acute Dataset'!O$5:O$143,'Summary Sheet'!B24) -> 13540.11891 | E24: =VLOOKUP(D24,'Acute Dataset'!O$5:Q$143,3,FALSE) -> Stenocypris | F24: =VLOOKUP(D24,'Acute Dataset'!O$5:R$143,4,FALSE) -> Invert
B25: 6 | C25: =IF(VLOOKUP(D25,'Acute Dataset'!O$5:Q$143,2,)=">",">","") ->  | D25: =SMALL('Acute Dataset'!O$5:O$143,'Summary Sheet'!B25) -> 13151.91261 | E25: =VLOOKUP(D25,'Acute Dataset'!O$5:Q$143,3,FALSE) -> Ceriodaphnia | F25: =VLOOKUP(D25,'Acute Dataset'!O$5:R$143,4,FALSE) -> Invert
B26: 5 | C26: =IF(VLOOKUP(D26,'Acute Dataset'!O$5:Q$143,2,)=">",">","") ->  | D26: =SMALL('Acute Dataset'!O$5:O$143,'Summary Sheet'!B26) -> 11768.62628 | E26: =VLOOKUP(D26,'Acute Dataset'!O$5:Q$143,3,FALSE) -> Poecilia | F26: =VLOOKUP(D26,'Acute Dataset'!O$5:R$143,4,FALSE) -> Fish
B27: 4 | C27: =IF(VLOOKUP(D27,'Acute Dataset'!O$5:Q$143,2,)=">",">","") ->  | D27: =SMALL('Acute Dataset'!O$5:O$143,'Summary Sheet'!B27) -> 11224.13365 | E27: =VLOOKUP(D27,'Acute Dataset'!O$5:Q$143,3,FALSE) -> Salmo | F27: =VLOOKUP(D27,'Acute Dataset'!O$5:R$143,4,FALSE) -> Fish
B28: 3 | C28: =IF(VLOOKUP(D28,'Acute Dataset'!O$5:Q$143,2,)=">",">","") ->  | D28: =SMALL('Acute Dataset'!O$5:O$143,'Summary Sheet'!B28) -> 4301.85725 | E28: =VLOOKUP(D28,'Acute Dataset'!O$5:Q$143,3,FALSE) -> Oncorhynchus | F28: =VLOOKUP(D28,'Acute Dataset'!O$5:R$143,4,FALSE) -> Fish
B29: 2 | C29: =IF(VLOOKUP(D29,'Acute Dataset'!O$5:Q$143,2,)=">",">","") ->  | D29: =SMALL('Acute Dataset'!O$5:O$143,'Summary Sheet'!B29) -> 3934.899485 | E29: =VLOOKUP(D29,'Acute Dataset'!O$5:Q$143,3,FALSE) -> Daphnia | F29: =VLOOKUP(D29,'Acute Dataset'!O$5:R$143,4,FALSE) -> Invert
B30: 1 | C30: =IF(VLOOKUP(D30,'Acute Dataset'!O$5:Q$143,2,)=">",">","") ->  | D30: =SMALL('Acute Dataset'!O$5:O$143,'Summary Sheet'!B30) -> 3880.448732 | E30: =VLOOKUP(D30,'Acute Dataset'!O$5:Q$143,3,FALSE) -> Micropterus | F30: =VLOOKUP(D30,'Acute Dataset'!O$5:R$143,4,FALSE) -> Fish
C33: N | D33: Rank | E33: Genus | F33: GMAV | G33: ln(GMAV) | H33: ln(GMAV)2 | I33: P=R/(N+1) | J33: sqrt(P) | M33: N | N33: Rank | O33: Genus | P33: GMCV | Q33: ln(GMCV) | R33: ln(GMCV)2 | S33: P=R/(N+1) | T33: sqrt(P)
C34: 20 | D34: 4 | E34: =E27 -> Salmo | F34: =D27 -> 11224.13365 | G34: =LN(F34) -> 9.325821529 | H34: =G34^2 -> 86.97094719 | I34: =D34 / (C34+1) -> 0.1904761905 | J34: =SQRT(I34) -> 0.4364357805 | M34: 13 | N34: 4 | O34: =O20 -> Lampsilis | P34: =N20 -> 1736.740388 | Q34: =LN(P34) -> 7.459765295 | R34: =Q34^2 -> 55.64809826 | S34: =N34 / (M34+1) -> 0.2857142857 | T34: =SQRT(S34) -> 0.5345224838
D35: 3 | E35: =E28 -> Oncorhynchus | F35: =D28 -> 4301.85725 | G35: =LN(F35) -> 8.366802127 | H35: =G35^2 -> 70.00337783 | I35: =D35 / (C34+1) -> 0.1428571429 | J35: =SQRT(I35) -> 0.377964473 | N35: 3 | O35: =O21 -> Daphnia | P35: =N21 -> 1667.598349 | Q35: =LN(P35) -> 7.419139756 | R35: =Q35^2 -> 55.04363472 | S35: =N35 / (M34+1) -> 0.2142857143 | T35: =SQRT(S35) -> 0.4629100499
D36: 2 | E36: =E29 -> Daphnia | F36: =D29 -> 3934.899485 | G36: =LN(F36) -> 8.277640617 | H36: =G36^2 -> 68.51933418 | I36: =D36 / (C34+1) -> 0.09523809524 | J36: =SQRT(I36) -> 0.3086066999 | N36: 2 | O36: =O22 -> Salvelinus | P36: =N22 -> 828.8874193 | Q36: =LN(P36) -> 6.720084343 | R36: =Q36^2 -> 45.15953357 | S36: =N36 / (M34+1) -> 0.1428571429 | T36: =SQRT(S36) -> 0.377964473
D37: 1 | E37: =E30 -> Micropterus | F37: =D30 -> 3880.448732 | G37: =LN(F37) -> 8.263706078 | H37: =G37^2 -> 68.28883815 | I37: =D37 / (C34+1) -> 0.04761904762 | J37: =SQRT(I37) -> 0.2182178902 | N37: 1 | O37: =O23 -> Salmo | P37: =N23 -> 564.2280739 | Q37: =LN(P37) -> 6.335458556 | R37: =Q37^2 -> 40.13803512 | S37: =N37 / (M34+1) -> 0.07142857143 | T37: =SQRT(S37) -> 0.2672612419
D38: Sum: | G38: =SUM(G34:G37) -> 34.23397035 | H38: =SUM(H34:H37) -> 293.7824974 | I38: =SUM(I34:I37) -> 0.4761904762 | J38: =SUM(J34:J37) -> 1.341224844 | N38: Sum: | Q38: =SUM(Q34:Q37) -> 27.93444795 | R38: =SUM(R34:R37) -> 195.9893017 | S38: =SUM(S34:S37) -> 0.7142857143 | T38: =SUM(T34:T37) -> 1.642658249
D40: S2 = | E40: =(H38 - ((G38^2)/4)) / (I38 - ((J38^2)/4)) -> 29.89543327 | N40: S2 = | O40: =(R38 - ((Q38^2)/4)) / (S38 - ((T38^2)/4)) -> 22.81764823
D41: L = | E41: =(G38 - (SQRT(E40) * J38)) / 4 -> 6.725148324 | N41: L = | O41: =(Q38 - (SQRT(O40) * T38)) / 4 -> 5.021956815
D42: A = | E42: =(SQRT(E40) * SQRT(0.05)) + E41 -> 7.947756873 | N42: A = | O42: =(SQRT(O40) * SQRT(0.05)) + O41 -> 6.090077787
D43: FAV = | E43: =EXP(E42) -> 2829.221525 | N43: FCV = | O43: =EXP(O42) -> 441.4557495
D44: CMC = | E44: =E43/2 -> 1414.610762

Sheet Acute Dataset
B1: Appendix A. Acceptable Acute Toxicity Data of Aluminum to Freshwater Aquatic Animals
K2: Values in bold used in SMAV calculation
B3: Species | C3: Methoda | D3: Total Hardness (mg/L as CaCO3) | E3: pH | F3: DOC (mg/L) | H3: LC50 or EC50 Conc. (µg/L) | I3: Reference | K3: Normalized Conc. - LC50 (µg/L) | L3: Reason excluded from SMAV | N3: Species Mean Acute Value (µg/L) | O3: Genus Mean Acute Value (µg/L) | Q3: Genus | S3: DOC Note | T3: Dilution water
B5: Worm, Nais elinguis | C5: R, M, T | D5: 17.89 | E5: 6.51 | F5: 3.2 | H5: 3874 | I5: Shuhaimi-Othman et al. 2012a, 2013 | K5: =EXP(LN(H5)-0.597*(LN(F5)-LN('Summary Sheet'!$C$6))-8.802*(E5-'Summary Sheet'!$C$4)-2.089*(LN(D5)-LN('Summary Sheet'!$C$5))+0.491*(E5^2-'Summary Sheet'!$C$4^2)+0.23*((E5*LN(D5)-'Summary Sheet'!$C$4*LN('Summary Sheet'!$C$5)))) -> 15611.4014 | N5: =GEOMEAN(K5) -> 15611.4014 | O5: =N5 -> 15611.4014 | Q5: Nais | R5: Invert | S5: Value is from Shuhaimi-Othman et al. 2013 | T5: Tap water (Malaysia)
B7: Snail, Physa sp. | C7: S, M, T | D7: 47.4 | E7: 6.59 | F7: 1.1 | G7: > | H7: 23400 | I7: Call 1984; Call et al. 1984 | J7: > | K7: =EXP(LN(H7)-0.597*(LN(F7)-LN('Summary Sheet'!$C$6))-8.802*(E7-'Summary Sheet'!$C$4)-2.089*(LN(D7)-LN('Summary Sheet'!$C$5))+0.491*(E7^2-'Summary Sheet'!$C$4^2)+0.23*((E7*LN(D7)-'Summary Sheet'!$C$4*LN('Summary Sheet'!$C$5)))) -> 89016.04431 | N7: - | Q7: Physa | S7: Value is from 2007 FW Cu AWQC Appendix C recommendation | T7: Raw Lake Superior water
B8: Snail, Physa sp. | C8: S, M, T | D8: 47.4 | E8: 7.55 | F8: 1.1 | H8: 30600 | I8: Call 1984; Call et al. 1984 | K8: =EXP(LN(H8)-0.597*(LN(F8)-LN('Summary Sheet'!$C$6))-8.802*(E8-'Summary Sheet'!$C$4)-2.089*(LN(D8)-LN('Summary Sheet'!$C$5))+0.491*(E8^2-'Summary Sheet'!$C$4^2)+0.23*((E8*LN(D8)-'Summary Sheet'!$C$4*LN('Summary Sheet'!$C$5)))) -> 45794.9948 | N8: - | Q8: Physa | S8: Value is from 2007 FW Cu AWQC Appendix C recommendation | T8: Raw Lake Superior water
B9: Snail, Physa sp. | C9: S, M, T | D9: 47.4 | E9: 8.17 | F9: 1.1 | G9: > | H9: 24700 | I9: Call 1984; Call et al. 1984 | J9: > | K9: =EXP(LN(H9)-0.597*(LN(F9)-LN('Summary Sheet'!$C$6))-8.802*(E9-'Summary Sheet'!$C$4)-2.089*(LN(D9)-LN('Summary Sheet'!$C$5))+0.491*(E9^2-'Summary Sheet'!$C$4^2)+0.23*((E9*LN(D9)-'Summary Sheet'!$C$4*LN('Summary Sheet'!$C$5)))) -> 32735.49509 | L9: c | N9: - | Q9: Physa | S9: Value is from 2007 FW Cu AWQC Appendix C recommendation | T9: Raw Lake Superior water
B10: Snail, Physa sp. | C10: S, M, T | D10: 47.4 | E10: 7.46 | F10: 1.1 | H10: 55500 | I10: Call 1984; Call et al. 1984 | K10: =EXP(LN(H10)-0.597*(LN(F10)-LN('Summary Sheet'!$C$6))-8.802*(E10-'Summary Sheet'!$C$4)-2.089*(LN(D10)-LN('Summary Sheet'!$C$5))+0.491*(E10^2-'Summary Sheet'!$C$4^2)+0.23*((E10*LN(D10)-'Summary Sheet'!$C$4*LN('Summary Sheet'!$C$5)))) -> 87232.10441 | N10: =GEOMEAN(K7:K8,K10) -> 70846.9054 | O10: =N10 -> 70846.9054 | Q10: Physa | R10: Mollusk | S10: Value is from 2007 FW Cu AWQC Appendix C recommendation | T10: Raw Lake Superior water
B12: Snail, Melanoides tuberculata | C12: R, M, T | D12: 18.72 | E12: 6.68 | F12: 3.2 | H12: 68230 | I12: Shuhaimi-Othman et al. 2012b, 2013 | K12: =EXP(LN(H12)-0.597*(LN(F12)-LN('Summary Sheet'!$C$6))-8.802*(E12-'Summary Sheet'!$C$4)-2.089*(LN(D12)-LN('Summary Sheet'!$C$5))+0.491*(E12^2-'Summary Sheet'!$C$4^2)+0.23*((E12*LN(D12)-'Summary Sheet'!$C$4*LN('Summary Sheet'!$C$5)))) -> 202135.997 | N12: =GEOMEAN(K12) -> 202135.997 | O12: =N12 -> 202135.997 | Q12: Melanoides | R12: Mollusk | S12: Value is from Shuhaimi-Othman et al. 2013 | T12: Tap water (Malaysia)
B14: Fatmucket, Lampsilis siliquoidea | C14: R, M, T | D14: 107 | E14: 8.19 | F14: 0.5 | G14: > | H14: 54300 | I14: Ivey et al. 2014 | J14: > | K14: =EXP(LN(H14)-0.597*(LN(F14)-LN('Summary Sheet'!$C$6))-8.802*(E14-'Summary Sheet'!$C$4)-2.089*(LN(D14)-LN('Summary Sheet'!$C$5))+0.491*(E14^2-'Summary Sheet'!$C$4^2)+0.23*((E14*LN(D14)-'Summary Sheet'!$C$4*LN('Summary Sheet'!$C$5)))) -> 97719.21756 | L14: f | N14: - | Q14: Lampsilis | S14: Author reported | T14: Well water/deionized water mix
B15: Fatmucket, Lampsilis siliquoidea | C15: F, M, T | D15: 106 | E15: 6.12 | F15: 0.48 | G15: > | H15: 6302 | I15: Wang et al. 2016, 2018 | J15: > | K15: =EXP(LN(H15)-0.597*(LN(F15)-LN('Summary Sheet'!$C$6))-8.802*(E15-'Summary Sheet'!$C$4)-2.089*(LN(D15)-LN('Summary Sheet'!$C$5))+0.491*(E15^2-'Summary Sheet'!$C$4^2)+0.23*((E15*LN(D15)-'Summary Sheet'!$C$4*LN('Summary Sheet'!$C$5)))) -> 49916.99108 | M15: > | N15: =GEOMEAN(K15) -> 49916.99108 | O15: =N15 -> 49916.99108 | P15: > | Q15: Lampsilis | R15: Mollusk | S15: Author reported | T15: Well water/deionized water mix
B17: Cladoceran, Ceriodaphnia dubia | C17: S, M, A | D17: 50 | E17: 7.42 | F17: 1.1 | H17: 1900 | I17: McCauley et al. 1986 | K17: =EXP(LN(H17)-0.597*(LN(F17)-LN('Summary Sheet'!$C$6))-8.802*(E17-'Summary Sheet'!$C$4)-2.089*(LN(D17)-LN('Summary Sheet'!$C$5))+0.491*(E17^2-'Summary Sheet'!$C$4^2)+0.23*((E17*LN(D17)-'Summary Sheet'!$C$4*LN('Summary Sheet'!$C$5)))) -> 2998.044722 | N17: - | Q17: Ceriodaphnia | S17: Value is from 2007 FW Cu AWQC Appendix C recommendation | T17: Raw Lake Superior water
B18: Cladoceran, Ceriodaphnia dubia | C18: S, M, A | D18: 50.5 | E18: 7.86 | F18: 1.1 | H18: 1500 | I18: McCauley et al. 1986 | K18: =EXP(LN(H18)-0.597*(LN(F18)-LN('Summary Sheet'!$C$6))-8.802*(E18-'Summary Sheet'!$C$4)-2.089*(LN(D18)-LN('Summary Sheet'!$C$5))+0.491*(E18^2-'Summary Sheet'!$C$4^2)+0.23*((E18*LN(D18)-'Summary Sheet'!$C$4*LN('Summary Sheet'!$C$5)))) -> 1979.573533 | N18: - | Q18: Ceriodaphnia | S18: Value is from 2007 FW Cu AWQC Appendix C recommendation | T18: UW-S Lake Superior lab water
B19: Cladoceran, Ceriodaphnia dubia | C19: S, M, A | D19: 50 | E19: 8.13 | F19: 1.1 | H19: 2560 | I19: McCauley et al. 1986 | K19: =EXP(LN(H19)-0.597*(LN(F19)-LN('Summary Sheet'!$C$6))-8.802*(E19-'Summary Sheet'!$C$4)-2.089*(LN(D19)-LN('Summary Sheet'!$C$5))+0.491*(E19^2-'Summary Sheet'!$C$4^2)+0.23*((E19*LN(D19)-'Summary Sheet'!$C$4*LN('Summary Sheet'!$C$5)))) -> 3341.475734 | N19: - | Q19: Ceriodaphnia | S19: Value is from 2007 FW Cu AWQC Appendix C recommendation | T19: Raw Lake Superior water
B20: Cladoceran, Ceriodaphnia dubia | C20: R, M, T | D20: 25 | E20: 7.5 | F20: 0.5 | H20: 720 | I20: ENSR 1992d | K20: =EXP(LN(H20)-0.597*(LN(F20)-LN('Summary Sheet'!$C$6))-8.802*(E20-'Summary Sheet'!$C$4)-2.089*(LN(D20)-LN('Summary Sheet'!$C$5))+0.491*(E20^2-'Summary Sheet'!$C$4^2)+0.23*((E20*LN(D20)-'Summary Sheet'!$C$4*LN('Summary Sheet'!$C$5)))) -> 2235.569052 | N20: - | Q20: Ceriodaphnia | S20: Value is from 2007 FW Cu AWQC Appendix C recommendation | T20: Very Soft Lab Recon water
B21: Cladoceran, Ceriodaphnia dubia | C21: R, M, T | D21: 49 | E21: 7.65 | F21: 0.5 | H21: 1880 | I21: ENSR 1992d | K21: =EXP(LN(H21)-0.597*(LN(F21)-LN('Summary Sheet'!$C$6))-8.802*(E21-'Summary Sheet'!$C$4)-2.089*(LN(D21)-LN('Summary Sheet'!$C$5))+0.491*(E21^2-'Summary Sheet'!$C$4^2)+0.23*((E21*LN(D21)-'Summary Sheet'!$C$4*LN('Summary Sheet'!$C$5)))) -> 4259.216234 | N21: - | Q21: Ceriodaphnia | S21: Value is from 2007 FW Cu AWQC Appendix C recommendation | T21: Soft Lab Recon water
B22: Cladoceran, Ceriodaphnia dubia | C22: S, M, T | D22: 95 | E22: 7.9 | F22: 0.5 | H22: 2450 | I22: ENSR 1992d | K22: =EXP(LN(H22)-0.597*(LN(F22)-LN('Summary Sheet'!$C$6))-8.802*(E22-'Summary Sheet'!$C$4)-2.089*(LN(D22)-LN('Summary Sheet'!$C$5))+0.491*(E22^2-'Summary Sheet'!$C$4^2)+0.23*((E22*LN(D22)-'Summary Sheet'!$C$4*LN('Summary Sheet'!$C$5)))) -> 4331.284643 | N22: - | Q22: Ceriodaphnia | S22: Value is from 2007 FW Cu AWQC Appendix C recommendation | T22: Mod Hard Lab Recon water
B23: Cladoceran, Ceriodaphnia dubia | C23: R, M, T | D23: 193 | E23: 8.05 | F23: 0.5 | G23: > | H23: 99600 | I23: ENSR 1992d | J23: > | K23: =EXP(LN(H23)-0.597*(LN(F23)-LN('Summary Sheet'!$C$6))-8.802*(E23-'Summary Sheet'!$C$4)-2.089*(LN(D23)-LN('Summary Sheet'!$C$5))+0.491*(E23^2-'Summary Sheet'!$C$4^2)+0.23*((E23*LN(D23)-'Summary Sheet'!$C$4*LN('Summary Sheet'!$C$5)))) -> 150523.831 | N23: - | Q23: Ceriodaphnia | S23: Value is from 2007 FW Cu AWQC Appendix C recommendation | T23: Hard Lab Recon water
B24: Cladoceran, Ceriodaphnia dubia | C24: S, U, NR | D24: 90 | E24: 7.15 | F24: 0.5 | H24: 3727 | I24: Fort and Stover 1995 | K24: =EXP(LN(H24)-0.597*(LN(F24)-LN('Summary Sheet'!$C$6))-8.802*(E24-'Summary Sheet'!$C$4)-2.089*(LN(D24)-LN('Summary Sheet'!$C$5))+0.491*(E24^2-'Summary Sheet'!$C$4^2)+0.23*((E24*LN(D24)-'Summary Sheet'!$C$4*LN('Summary Sheet'!$C$5)))) -> 8874.716527 | N24: - | Q24: Ceriodaphnia | S24: Value is from 2007 FW Cu AWQC Appendix C recommendation | T24: Mod Hard Lab Recon water
B25: Cladoceran, Ceriodaphnia dubia | C25: S, U, NR | D25: 90 | E25: 7.15 | F25: 0.5 | H25: 5673 | I25: Fort and Stover 1995 | K25: =EXP(LN(H25)-0.597*(LN(F25)-LN('Summary Sheet'!$C$6))-8.802*(E25-'Summary Sheet'!$C$4)-2.089*(LN(D25)-LN('Summary Sheet'!$C$5))+0.491*(E25^2-'Summary Sheet'!$C$4^2)+0.23*((E25*LN(D25)-'Summary Sheet'!$C$4*LN('Summary Sheet'!$C$5)))) -> 13508.52344 | N25: - | Q25: Ceriodaphnia | S25: Value is from 2007 FW Cu AWQC Appendix C recommendation | T25: Mod Hard Lab Recon water
B26: Cladoceran, Ceriodaphnia dubia | C26: S, U, NR | D26: 89 | E26: 8.2 | F26: 0.5 | H26: 2880 | I26: Soucek et al. 2001 | K26: =EXP(LN(H26)-0.597*(LN(F26)-LN('Summary Sheet'!$C$6))-8.802*(E26-'Summary Sheet'!$C$4)-2.089*(LN(D26)-LN('Summary Sheet'!$C$5))+0.491*(E26^2-'Summary Sheet'!$C$4^2)+0.23*((E26*LN(D26)-'Summary Sheet'!$C$4*LN('Summary Sheet'!$C$5)))) -> 5397.618206 | N26: - | Q26: Ceriodaphnia | S26: Value is from 2007 FW Cu AWQC Appendix C recommendation | T26: Mod Hard Lab Recon water
B27: Cladoceran, Ceriodaphnia dubia | C27: R, U, T | D27: 142 | E27: 8.2 | F27: 1.6 | H27: 153440 | I27: Griffitt et al. 2008 | K27: =EXP(LN(H27)-0.597*(LN(F27)-LN('Summary Sheet'!$C$6))-8.802*(E27-'Summary Sheet'!$C$4)-2.089*(LN(D27)-LN('Summary Sheet'!$C$5))+0.491*(E27^2-'Summary Sheet'!$C$4^2)+0.23*((E27*LN(D27)-'Summary Sheet'!$C$4*LN('Summary Sheet'!$C$5)))) -> 130612.6871 | Q27: Ceriodaphnia | S27: Value is from 2007 FW Cu AWQC Appendix C recommendation | T27: Tap water (Gainesville, FL)
B28: Cladoceran, Ceriodaphnia dubia | C28: S, U, T | D28: 10.6 | E28: 6.01 | F28: 0.5 | H28: 71.12 | I28: European Al Association 2009 | K28: =EXP(LN(H28)-0.597*(LN(F28)-LN('Summary Sheet'!$C$6))-8.802*(E28-'Summary Sheet'!$C$4)-2.089*(LN(D28)-LN('Summary Sheet'!$C$5))+0.491*(E28^2-'Summary Sheet'!$C$4^2)+0.23*((E28*LN(D28)-'Summary Sheet'!$C$4*LN('Summary Sheet'!$C$5)))) -> 3400.993388 | N28: - | Q28: Ceriodaphnia | S28: Value is from 2007 FW Cu AWQC Appendix C recommendation | T28: Very Soft Lab Recon water
B29: Cladoceran, Ceriodaphnia dubia | C29: S, U, T | D29: 10.6 | E29: 6.05 | F29: 2 | H29: 686.5 | I29: European Al Association 2009 | K29: =EXP(LN(H29)-0.597*(LN(F29)-LN('Summary Sheet'!$C$6))-8.802*(E29-'Summary Sheet'!$C$4)-2.089*(LN(D29)-LN('Summary Sheet'!$C$5))+0.491*(E29^2-'Summary Sheet'!$C$4^2)+0.23*((E29*LN(D29)-'Summary Sheet'!$C$4*LN('Summary Sheet'!$C$5)))) -> 13068.25124 | N29: - | Q29: Ceriodaphnia | S29: Author reported | T29: Very Soft Lab Recon water
B30: Cladoceran, Ceriodaphnia dubia | C30: S, U, T | D30: 10.6 | E30: 6.09 | F30: 4 | H30: 1558.1 | I30: European Al Association 2009 | K30: =EXP(LN(H30)-0.597*(LN(F30)-LN('Summary Sheet'!$C$6))-8.802*(E30-'Summary Sheet'!$C$4)-2.089*(LN(D30)-LN('Summary Sheet'!$C$5))+0.491*(E30^2-'Summary Sheet'!$C$4^2)+0.23*((E30*LN(D30)-'Summary Sheet'!$C$4*LN('Summary Sheet'!$C$5)))) -> 17886.79074 | N30: - | Q30: Ceriodaphnia | S30: Author reported | T30: Very Soft Lab Recon water
B31: Cladoceran, Ceriodaphnia dubia | C31: S, U, T | D31: 10.6 | E31: 6.01 | F31: 0.5 | H31: 68.1 | I31: European Al Association 2009 | K31: =EXP(LN(H31)-0.597*(LN(F31)-LN('Summary Sheet'!$C$6))-8.802*(E31-'Summary Sheet'!$C$4)-2.089*(LN(D31)-LN('Summary Sheet'!$C$5))+0.491*(E31^2-'Summary Sheet'!$C$4^2)+0.23*((E31*LN(D31)-'Summary Sheet'!$C$4*LN('Summary Sheet'!$C$5)))) -> 3256.575502 | N31: - | Q31: Ceriodaphnia | S31: Value is from 2007 FW Cu AWQC Appendix C recommendation | T31: Very Soft Lab Recon water
B32: Cladoceran, Ceriodaphnia dubia | C32: S, U, T | D32: 10.6 | E32: 6.03 | F32: 0.5 | H32: 163 | I32: European Al Association 2009 | K32: =EXP(LN(H32)-0.597*(LN(F32)-LN('Summary Sheet'!$C$6))-8.802*(E32-'Summary Sheet'!$C$4)-2.089*(LN(D32)-LN('Summary Sheet'!$C$5))+0.491*(E32^2-'Summary Sheet'!$C$4^2)+0.23*((E32*LN(D32)-'Summary Sheet'!$C$4*LN('Summary Sheet'!$C$5)))) -> 7437.255525 | N32: - | Q32: Ceriodaphnia | S32: Value is from 2007 FW Cu AWQC Appendix C recommendation | T32: Very Soft Lab Recon water
B33: Cladoceran, Ceriodaphnia dubia | C33: S, U, T | D33: 10.6 | E33: 5.97 | F33: 0.5 | H33: 178.5 | I33: European Al Association 2009 | K33: =EXP(LN(H33)-0.597*(LN(F33)-LN('Summary Sheet'!$C$6))-8.802*(E33-'Summary Sheet'!$C$4)-2.089*(LN(D33)-LN('Summary Sheet'!$C$5))+0.491*(E33^2-'Summary Sheet'!$C$4^2)+0.23*((E33*LN(D33)-'Summary Sheet'!$C$4*LN('Summary Sheet'!$C$5)))) -> 9387.326313 | N33: - | Q33: Ceriodaphnia | S33: Value is from 2007 FW Cu AWQC Appendix C recommendation | T33: Very Soft Lab Recon water
B34: Cladoceran, Ceriodaphnia dubia | C34: S, U, T | D34: 10.6 | E34: 5.92 | F34: 0.5 | H34: 141 | I34: European Al Association 2009 | K34: =EXP(LN(H34)-0.597*(LN(F34)-LN('Summary Sheet'!$C$6))-8.802*(E34-'Summary Sheet'!$C$4)-2.089*(LN(D34)-LN('Summary Sheet'!$C$5))+0.491*(E34^2-'Summary Sheet'!$C$4^2)+0.23*((E34*LN(D34)-'Summary Sheet'!$C$4*LN('Summary Sheet'!$C$5)))) -> 8369.402392 | N34: - | Q34: Ceriodaphnia | S34: Value is from 2007 FW Cu AWQC Appendix C recommendation | T34: Very Soft Lab Recon water
B35: Cladoceran, Ceriodaphnia dubia | C35: S, U, T | D35: 10.6 | E35: 6.99 | F35: 0.5 | G35: > | H35: 1300 | I35: European Al Association 2009 | J35: > | K35: =EXP(LN(H35)-0.597*(LN(F35)-LN('Summary Sheet'!$C$6))-8.802*(E35-'Summary Sheet'!$C$4)-2.089*(LN(D35)-LN('Summary Sheet'!$C$5))+0.491*(E35^2-'Summary Sheet'!$C$4^2)+0.23*((E35*LN(D35)-'Summary Sheet'!$C$4*LN('Summary Sheet'!$C$5)))) -> 9888.129585 | N35: - | Q35: Ceriodaphnia | S35: Value is from 2007 FW Cu AWQC Appendix C recommendation | T35: Very Soft Lab Recon water
B36: Cladoceran, Ceriodaphnia dubia | C36: S, U, T | D36: 10.6 | E36: 7.85 | F36: 0.5 | G36: > | H36: 5000 | I36: European Al Association 2009 | J36: > | K36: =EXP(LN(H36)-0.597*(LN(F36)-LN('Summary Sheet'!$C$6))-8.802*(E36-'Summary Sheet'!$C$4)-2.089*(LN(D36)-LN('Summary Sheet'!$C$5))+0.491*(E36^2-'Summary Sheet'!$C$4^2)+0.23*((E36*LN(D36)-'Summary Sheet'!$C$4*LN('Summary Sheet'!$C$5)))) -> 16477.63448 | N36: - | Q36: Ceriodaphnia | S36: Value is from 2007 FW Cu AWQC Appendix C recommendation | T36: Very Soft Lab Recon water
B37: Cladoceran, Ceriodaphnia dubia | C37: S, U, T | D37: 10.6 | E37: 6.8 | F37: 2 | G37: > | H37: 10000 | I37: European Al Association 2009 | J37: > | K37: =EXP(LN(H37)-0.597*(LN(F37)-LN('Summary Sheet'!$C$6))-8.802*(E37-'Summary Sheet'!$C$4)-2.089*(LN(D37)-LN('Summary Sheet'!$C$5))+0.491*(E37^2-'Summary Sheet'!$C$4^2)+0.23*((E37*LN(D37)-'Summary Sheet'!$C$4*LN('Summary Sheet'!$C$5)))) -> 44109.69859 | N37: - | Q37: Ceriodaphnia | S37: Author reported | T37: Very Soft Lab Recon water
B38: Cladoceran, Ceriodaphnia dubia | C38: S, U, T | D38: 10.6 | E38: 7.82 | F38: 2 | G38: > | H38: 15000 | I38: European Al Association 2009 | J38: > | K38: =EXP(LN(H38)-0.597*(LN(F38)-LN('Summary Sheet'!$C$6))-8.802*(E38-'Summary Sheet'!$C$4)-2.089*(LN(D38)-LN('Summary Sheet'!$C$5))+0.491*(E38^2-'Summary Sheet'!$C$4^2)+0.23*((E38*LN(D38)-'Summary Sheet'!$C$4*LN('Summary Sheet'!$C$5)))) -> 21975.96899 | N38: - | Q38: Ceriodaphnia | S38: Author reported | T38: Very Soft Lab Recon water
B39: Cladoceran, Ceriodaphnia dubia | C39: S, U, T | D39: 10.6 | E39: 6.77 | F39: 4 | G39: > | H39: 10000 | I39: European Al Association 2009 | J39: > | K39: =EXP(LN(H39)-0.597*(LN(F39)-LN('Summary Sheet'!$C$6))-8.802*(E39-'Summary Sheet'!$C$4)-2.089*(LN(D39)-LN('Summary Sheet'!$C$5))+0.491*(E39^2-'Summary Sheet'!$C$4^2)+0.23*((E39*LN(D39)-'Summary Sheet'!$C$4*LN('Summary Sheet'!$C$5)))) -> 30592.49819 | N39: - | Q39: Ceriodaphnia | S39: Author reported | T39: Very Soft Lab Recon water
B40: Cladoceran, Ceriodaphnia dubia | C40: S, U, T | D40: 10.6 | E40: 7.66 | F40: 4 | G40: > | H40: 15000 | I40: European Al Association 2009 | J40: > | K40: =EXP(LN(H40)-0.597*(LN(F40)-LN('Summary Sheet'!$C$6))-8.802*(E40-'Summary Sheet'!$C$4)-2.089*(LN(D40)-LN('Summary Sheet'!$C$5))+0.491*(E40^2-'Summary Sheet'!$C$4^2)+0.23*((E40*LN(D40)-'Summary Sheet'!$C$4*LN('Summary Sheet'!$C$5)))) -> 16142.77278 | N40: - | Q40: Ceriodaphnia | S40: Author reported | T40: Very Soft Lab Recon water
B41: Cladoceran, Ceriodaphnia dubia | C41: S, U, T | D41: 10.6 | E41: 7.9 | F41: 0.5 | G41: > | H41: 2000 | I41: European Al Association 2009 | J41: > | K41: =EXP(LN(H41)-0.597*(LN(F41)-LN('Summary Sheet'!$C$6))-8.802*(E41-'Summary Sheet'!$C$4)-2.089*(LN(D41)-LN('Summary Sheet'!$C$5))+0.491*(E41^2-'Summary Sheet'!$C$4^2)+0.23*((E41*LN(D41)-'Summary Sheet'!$C$4*LN('Summary Sheet'!$C$5)))) -> 6420.047808 | N41: - | Q41: Ceriodaphnia | S41: Value is from 2007 FW Cu AWQC Appendix C recommendation | T41: Very Soft Lab Recon water
B42: Cladoceran, Ceriodaphnia dubia | C42: S, U, T | D42: 10.6 | E42: 7.89 | F42: 0.5 | G42: > | H42: 2000 | I42: European Al Association 2009 | J42: > | K42: =EXP(LN(H42)-0.597*(LN(F42)-LN('Summary Sheet'!$C$6))-8.802*(E42-'Summary Sheet'!$C$4)-2.089*(LN(D42)-LN('Summary Sheet'!$C$5))+0.491*(E42^2-'Summary Sheet'!$C$4^2)+0.23*((E42*LN(D42)-'Summary Sheet'!$C$4*LN('Summary Sheet'!$C$5)))) -> 6452.622906 | N42: - | Q42: Ceriodaphnia | S42: Value is from 2007 FW Cu AWQC Appendix C recommendation | T42: Very Soft Lab Recon water
B43: Cladoceran, Ceriodaphnia dubia | C43: S, U, T | D43: 60 | E43: 6.04 | F43: 0.5 | H43: 110.8 | I43: European Al Association 2009 | K43: =EXP(LN(H43)-0.597*(LN(F43)-LN('Summary Sheet'!$C$6))-8.802*(E43-'Summary Sheet'!$C$4)-2.089*(LN(D43)-LN('Summary Sheet'!$C$5))+0.491*(E43^2-'Summary Sheet'!$C$4^2)+0.23*((E43*LN(D43)-'Summary Sheet'!$C$4*LN('Summary Sheet'!$C$5)))) -> 1468.226842 | N43: - | Q43: Ceriodaphnia | S43: Value is from 2007 FW Cu AWQC Appendix C recommendation | T43: Soft Lab Recon water
B44: Cladoceran, Ceriodaphnia dubia | C44: S, U, T | D44: 60 | E44: 5.98 | F44: 2 | H44: 1137.1 | I44: European Al Association 2009 | K44: =EXP(LN(H44)-0.597*(LN(F44)-LN('Summary Sheet'!$C$6))-8.802*(E44-'Summary Sheet'!$C$4)-2.089*(LN(D44)-LN('Summary Sheet'!$C$5))+0.491*(E44^2-'Summary Sheet'!$C$4^2)+0.23*((E44*LN(D44)-'Summary Sheet'!$C$4*LN('Summary Sheet'!$C$5)))) -> 7407.227558 | N44: - | Q44: Ceriodaphnia | S44: Author reported | T44: Soft Lab Recon water
B45: Cladoceran, Ceriodaphnia dubia | C45: S, U, T | D45: 60 | E45: 5.73 | F45: 4 | H45: 8046.7 | I45: European Al Association 2009 | K45: =EXP(LN(H45)-0.597*(LN(F45)-LN('Summary Sheet'!$C$6))-8.802*(E45-'Summary Sheet'!$C$4)-2.089*(LN(D45)-LN('Summary Sheet'!$C$5))+0.491*(E45^2-'Summary Sheet'!$C$4^2)+0.23*((E45*LN(D45)-'Summary Sheet'!$C$4*LN('Summary Sheet'!$C$5)))) -> 58738.8266 | N45: - | Q45: Ceriodaphnia | S45: Author reported | T45: Soft Lab Recon water
B46: Cladoceran, Ceriodaphnia dubia | C46: S, U, T | D46: 60 | E46: 6.71 | F46: 0.5 | G46: > | H46: 10000 | I46: European Al Association 2009 | J46: > | K46: =EXP(LN(H46)-0.597*(LN(F46)-LN('Summary Sheet'!$C$6))-8.802*(E46-'Summary Sheet'!$C$4)-2.089*(LN(D46)-LN('Summary Sheet'!$C$5))+0.491*(E46^2-'Summary Sheet'!$C$4^2)+0.23*((E46*LN(D46)-'Summary Sheet'!$C$4*LN('Summary Sheet'!$C$5)))) -> 45360.19859 | N46: - | Q46: Ceriodaphnia | S46: Value is from 2007 FW Cu AWQC Appendix C recommendation | T46: Soft Lab Recon water
B47: Cladoceran, Ceriodaphnia dubia | C47: S, U, T | D47: 60 | E47: 7.83 | F47: 0.5 | G47: > | H47: 5000 | I47: European Al Association 2009 | J47: > | K47: =EXP(LN(H47)-0.597*(LN(F47)-LN('Summary Sheet'!$C$6))-8.802*(E47-'Summary Sheet'!$C$4)-2.089*(LN(D47)-LN('Summary Sheet'!$C$5))+0.491*(E47^2-'Summary Sheet'!$C$4^2)+0.23*((E47*LN(D47)-'Summary Sheet'!$C$4*LN('Summary Sheet'!$C$5)))) -> 10112.65709 | N47: - | Q47: Ceriodaphnia | S47: Value is from 2007 FW Cu AWQC Appendix C recommendation | T47: Soft Lab Recon water
B48: Cladoceran, Ceriodaphnia dubia | C48: S, U, T | D48: 60 | E48: 6.79 | F48: 2 | G48: > | H48: 10000 | I48: European Al Association 2009 | J48: > | K48: =EXP(LN(H48)-0.597*(LN(F48)-LN('Summary Sheet'!$C$6))-8.802*(E48-'Summary Sheet'!$C$4)-2.089*(LN(D48)-LN('Summary Sheet'!$C$5))+0.491*(E48^2-'Summary Sheet'!$C$4^2)+0.23*((E48*LN(D48)-'Summary Sheet'!$C$4*LN('Summary Sheet'!$C$5)))) -> 17965.85917 | N48: - | Q48: Ceriodaphnia | S48: Author reported | T48: Soft Lab Recon water
B49: Cladoceran, Ceriodaphnia dubia | C49: S, U, T | D49: 60 | E49: 7.67 | F49: 2 | G49: > | H49: 15000 | I49: European Al Association 2009 | J49: > | K49: =EXP(LN(H49)-0.597*(LN(F49)-LN('Summary Sheet'!$C$6))-8.802*(E49-'Summary Sheet'!$C$4)-2.089*(LN(D49)-LN('Summary Sheet'!$C$5))+0.491*(E49^2-'Summary Sheet'!$C$4^2)+0.23*((E49*LN(D49)-'Summary Sheet'!$C$4*LN('Summary Sheet'!$C$5)))) -> 13801.13026 | N49: - | Q49: Ceriodaphnia | S49: Author reported | T49: Soft Lab Recon water
B50: Cladoceran, Ceriodaphnia dubia | C50: S, U, T | D50: 60 | E50: 6.68 | F50: 4 | G50: > | H50: 15000 | I50: European Al Association 2009 | J50: > | K50: =EXP(LN(H50)-0.597*(LN(F50)-LN('Summary Sheet'!$C$6))-8.802*(E50-'Summary Sheet'!$C$4)-2.089*(LN(D50)-LN('Summary Sheet'!$C$5))+0.491*(E50^2-'Summary Sheet'!$C$4^2)+0.23*((E50*LN(D50)-'Summary Sheet'!$C$4*LN('Summary Sheet'!$C$5)))) -> 20434.97447 | N50: - | Q50: Ceriodaphnia | S50: Author reported | T50: Soft Lab Recon water
B51: Cladoceran, Ceriodaphnia dubia | C51: S, U, T | D51: 60 | E51: 7.62 | F51: 4 | G51: > | H51: 15000 | I51: European Al Association 2009 | J51: > | K51: =EXP(LN(H51)-0.597*(LN(F51)-LN('Summary Sheet'!$C$6))-8.802*(E51-'Summary Sheet'!$C$4)-2.089*(LN(D51)-LN('Summary Sheet'!$C$5))+0.491*(E51^2-'Summary Sheet'!$C$4^2)+0.23*((E51*LN(D51)-'Summary Sheet'!$C$4*LN('Summary Sheet'!$C$5)))) -> 9286.736154 | N51: - | Q51: Ceriodaphnia | S51: Author reported | T51: Soft Lab Recon water
B52: Cladoceran, Ceriodaphnia dubia | C52: S, U, T | D52: 120 | E52: 6.06 | F52: 2 | H52: 3386.8 | I52: European Al Association 2009 | K52: =EXP(LN(H52)-0.597*(LN(F52)-LN('Summary Sheet'!$C$6))-8.802*(E52-'Summary Sheet'!$C$4)-2.089*(LN(D52)-LN('Summary Sheet'!$C$5))+0.491*(E52^2-'Summary Sheet'!$C$4^2)+0.23*((E52*LN(D52)-'Summary Sheet'!$C$4*LN('Summary Sheet'!$C$5)))) -> 11659.15609 | N52: - | Q52: Ceriodaphnia | S52: Author reported | T52: Mod Hard Lab Recon water
B53: Cladoceran, Ceriodaphnia dubia | C53: S, U, T | D53: 120 | E53: 5.6 | F53: 4 | H53: 10484.2 | I53: European Al Association 2009 | K53: =EXP(LN(H53)-0.597*(LN(F53)-LN('Summary Sheet'!$C$6))-8.802*(E53-'Summary Sheet'!$C$4)-2.089*(LN(D53)-LN('Summary Sheet'!$C$5))+0.491*(E53^2-'Summary Sheet'!$C$4^2)+0.23*((E53*LN(D53)-'Summary Sheet'!$C$4*LN('Summary Sheet'!$C$5)))) -> 59213.08499 | N53: - | Q53: Ceriodaphnia | S53: Author reported | T53: Mod Hard Lab Recon water
B54: Cladoceran, Ceriodaphnia dubia | C54: S, U, T | D54: 120 | E54: 6.93 | F54: 0.5 | G54: > | H54: 5000 | I54: European Al Association 2009 | J54: > | K54: =EXP(LN(H54)-0.597*(LN(F54)-LN('Summary Sheet'!$C$6))-8.802*(E54-'Summary Sheet'!$C$4)-2.089*(LN(D54)-LN('Summary Sheet'!$C$5))+0.491*(E54^2-'Summary Sheet'!$C$4^2)+0.23*((E54*LN(D54)-'Summary Sheet'!$C$4*LN('Summary Sheet'!$C$5)))) -> 12458.92611 | N54: - | Q54: Ceriodaphnia | S54: Value is from 2007 FW Cu AWQC Appendix C recommendation | T54: Mod Hard Lab Recon water
B55: Cladoceran, Ceriodaphnia dubia | C55: S, U, T | D55: 120 | E55: 7.88 | F55: 0.5 | G55: > | H55: 5000 | I55: European Al Association 2009 | J55: > | K55: =EXP(LN(H55)-0.597*(LN(F55)-LN('Summary Sheet'!$C$6))-8.802*(E55-'Summary Sheet'!$C$4)-2.089*(LN(D55)-LN('Summary Sheet'!$C$5))+0.491*(E55^2-'Summary Sheet'!$C$4^2)+0.23*((E55*LN(D55)-'Summary Sheet'!$C$4*LN('Summary Sheet'!$C$5)))) -> 8287.337675 | N55: - | Q55: Ceriodaphnia | S55: Value is from 2007 FW Cu AWQC Appendix C recommendation | T55: Mod Hard Lab Recon water
B56: Cladoceran, Ceriodaphnia dubia | C56: S, U, T | D56: 120 | E56: 6.76 | F56: 2 | G56: > | H56: 15000 | I56: European Al Association 2009 | J56: > | K56: =EXP(LN(H56)-0.597*(LN(F56)-LN('Summary Sheet'!$C$6))-8.802*(E56-'Summary Sheet'!$C$4)-2.089*(LN(D56)-LN('Summary Sheet'!$C$5))+0.491*(E56^2-'Summary Sheet'!$C$4^2)+0.23*((E56*LN(D56)-'Summary Sheet'!$C$4*LN('Summary Sheet'!$C$5)))) -> 19295.59151 | N56: - | Q56: Ceriodaphnia | S56: Author reported | T56: Mod Hard Lab Recon water
B57: Cladoceran, Ceriodaphnia dubia | C57: S, U, T | D57: 120 | E57: 7.71 | F57: 2 | G57: > | H57: 15000 | I57: European Al Association 2009 | J57: > | K57: =EXP(LN(H57)-0.597*(LN(F57)-LN('Summary Sheet'!$C$6))-8.802*(E57-'Summary Sheet'!$C$4)-2.089*(LN(D57)-LN('Summary Sheet'!$C$5))+0.491*(E57^2-'Summary Sheet'!$C$4^2)+0.23*((E57*LN(D57)-'Summary Sheet'!$C$4*LN('Summary Sheet'!$C$5)))) -> 10952.58056 | N57: - | Q57: Ceriodaphnia | S57: Author reported | T57: Mod Hard Lab Recon water
B58: Cladoceran, Ceriodaphnia dubia | C58: S, U, T | D58: 120 | E58: 6.6 | F58: 4 | G58: > | H58: 15000 | I58: European Al Association 2009 | J58: > | K58: =EXP(LN(H58)-0.597*(LN(F58)-LN('Summary Sheet'!$C$6))-8.802*(E58-'Summary Sheet'!$C$4)-2.089*(LN(D58)-LN('Summary Sheet'!$C$5))+0.491*(E58^2-'Summary Sheet'!$C$4^2)+0.23*((E58*LN(D58)-'Summary Sheet'!$C$4*LN('Summary Sheet'!$C$5)))) -> 15312.14781 | N58: - | Q58: Ceriodaphnia | S58: Author reported | T58: Mod Hard Lab Recon water
B59: Cladoceran, Ceriodaphnia dubia | C59: S, U, T | D59: 120 | E59: 7.6 | F59: 4 | G59: > | H59: 15000 | I59: European Al Association 2009 | J59: > | K59: =EXP(LN(H59)-0.597*(LN(F59)-LN('Summary Sheet'!$C$6))-8.802*(E59-'Summary Sheet'!$C$4)-2.089*(LN(D59)-LN('Summary Sheet'!$C$5))+0.491*(E59^2-'Summary Sheet'!$C$4^2)+0.23*((E59*LN(D59)-'Summary Sheet'!$C$4*LN('Summary Sheet'!$C$5)))) -> 7388.831391 | N59: - | Q59: Ceriodaphnia | S59: Author reported | T59: Mod Hard Lab Recon water
B60: Cladoceran, Ceriodaphnia dubia | C60: S, M, T | D60: 10.6 | E60: 6.03 | F60: 0.5 | H60: 119.71 | I60: European Al Association 2010 | K60: =EXP(LN(H60)-0.597*(LN(F60)-LN('Summary Sheet'!$C$6))-8.802*(E60-'Summary Sheet'!$C$4)-2.089*(LN(D60)-LN('Summary Sheet'!$C$5))+0.491*(E60^2-'Summary Sheet'!$C$4^2)+0.23*((E60*LN(D60)-'Summary Sheet'!$C$4*LN('Summary Sheet'!$C$5)))) -> 5462.048214 | N60: - | Q60: Ceriodaphnia | S60: Value is from 2007 FW Cu AWQC Appendix C recommendation | T60: Very Soft Lab Recon water
B61: Cladoceran, Ceriodaphnia dubia | C61: S, M, T | D61: 10.6 | E61: 6.03 | F61: 0.5 | H61: 274.78 | I61: European Al Association 2010 | K61: =EXP(LN(H61)-0.597*(LN(F61)-LN('Summary Sheet'!$C$6))-8.802*(E61-'Summary Sheet'!$C$4)-2.089*(LN(D61)-LN('Summary Sheet'!$C$5))+0.491*(E61^2-'Summary Sheet'!$C$4^2)+0.23*((E61*LN(D61)-'Summary Sheet'!$C$4*LN('Summary Sheet'!$C$5)))) -> 12537.47898 | N61: - | Q61: Ceriodaphnia | S61: Value is from 2007 FW Cu AWQC Appendix C recommendation | T61: Very Soft Lab Recon water
B62: Cladoceran, Ceriodaphnia dubia | C62: S, M, T | D62: 10.6 | E62: 6.03 | F62: 0.5 | H62: 119.98 | I62: European Al Association 2010 | K62: =EXP(LN(H62)-0.597*(LN(F62)-LN('Summary Sheet'!$C$6))-8.802*(E62-'Summary Sheet'!$C$4)-2.089*(LN(D62)-LN('Summary Sheet'!$C$5))+0.491*(E62^2-'Summary Sheet'!$C$4^2)+0.23*((E62*LN(D62)-'Summary Sheet'!$C$4*LN('Summary Sheet'!$C$5)))) -> 5474.367595 | N62: - | Q62: Ceriodaphnia | S62: Value is from 2007 FW Cu AWQC Appendix C recommendation | T62: Very Soft Lab Recon water
B63: Cladoceran, Ceriodaphnia dubia | C63: S, M, T | D63: 10.6 | E63: 6.07 | F63: 0.5 | H63: 92.495 | I63: European Al Association 2010 | K63: =EXP(LN(H63)-0.597*(LN(F63)-LN('Summary Sheet'!$C$6))-8.802*(E63-'Summary Sheet'!$C$4)-2.089*(LN(D63)-LN('Summary Sheet'!$C$5))+0.491*(E63^2-'Summary Sheet'!$C$4^2)+0.23*((E63*LN(D63)-'Summary Sheet'!$C$4*LN('Summary Sheet'!$C$5)))) -> 3846.601937 | N63: - | Q63: Ceriodaphnia | S63: Value is from 2007 FW Cu AWQC Appendix C recommendation | T63: Very Soft Lab Recon water
B64: Cladoceran, Ceriodaphnia dubia | C64: S, M, T | D64: 10.6 | E64: 6.09 | F64: 0.5 | H64: 313.37 | I64: European Al Association 2010 | K64: =EXP(LN(H64)-0.597*(LN(F64)-LN('Summary Sheet'!$C$6))-8.802*(E64-'Summary Sheet'!$C$4)-2.089*(LN(D64)-LN('Summary Sheet'!$C$5))+0.491*(E64^2-'Summary Sheet'!$C$4^2)+0.23*((E64*LN(D64)-'Summary Sheet'!$C$4*LN('Summary Sheet'!$C$5)))) -> 12449.13678 | L64: g | N64: - | Q64: Ceriodaphnia | S64: Value is from 2007 FW Cu AWQC Appendix C recommendation | T64: Very Soft Lab Recon water
B65: Cladoceran, Ceriodaphnia dubia | C65: S, M, T | D65: 10.6 | E65: 6.1 | F65: 0.5 | H65: 332.35 | I65: European Al Association 2010 | K65: =EXP(LN(H65)-0.597*(LN(F65)-LN('Summary Sheet'!$C$6))-8.802*(E65-'Summary Sheet'!$C$4)-2.089*(LN(D65)-LN('Summary Sheet'!$C$5))+0.491*(E65^2-'Summary Sheet'!$C$4^2)+0.23*((E65*LN(D65)-'Summary Sheet'!$C$4*LN('Summary Sheet'!$C$5)))) -> 12906.33375 | L65: g | N65: - | Q65: Ceriodaphnia | S65: Value is from 2007 FW Cu AWQC Appendix C recommendation | T65: Very Soft Lab Recon water
B66: Cladoceran, Ceriodaphnia dubia | C66: S, M, T | D66: 10.6 | E66: 7.08 | F66: 0.5 | G66: > | H66: 886.4 | I66: European Al Association 2010 | J66: > | K66: =EXP(LN(H66)-0.597*(LN(F66)-LN('Summary Sheet'!$C$6))-8.802*(E66-'Summary Sheet'!$C$4)-2.089*(LN(D66)-LN('Summary Sheet'!$C$5))+0.491*(E66^2-'Summary Sheet'!$C$4^2)+0.23*((E66*LN(D66)-'Summary Sheet'!$C$4*LN('Summary Sheet'!$C$5)))) -> 5970.476597 | N66: - | Q66: Ceriodaphnia | S66: Value is from 2007 FW Cu AWQC Appendix C recommendation | T66: Very Soft Lab Recon water
B67: Cladoceran, Ceriodaphnia dubia | C67: S, M, T | D67: 10.6 | E67: 7.79 | F67: 0.5 | G67: > | H67: 4278.3 | I67: European Al Association 2010 | J67: > | K67: =EXP(LN(H67)-0.597*(LN(F67)-LN('Summary Sheet'!$C$6))-8.802*(E67-'Summary Sheet'!$C$4)-2.089*(LN(D67)-LN('Summary Sheet'!$C$5))+0.491*(E67^2-'Summary Sheet'!$C$4^2)+0.23*((E67*LN(D67)-'Summary Sheet'!$C$4*LN('Summary Sheet'!$C$5)))) -> 14598.33691 | N67: - | Q67: Ceriodaphnia | S67: Value is from 2007 FW Cu AWQC Appendix C recommendation | T67: Very Soft Lab Recon water
B68: Cladoceran, Ceriodaphnia dubia | C68: S, M, T | D68: 10.6 | E68: 7.53 | F68: 0.5 | H68: 132.04 | I68: European Al Association 2010 | K68: =EXP(LN(H68)-0.597*(LN(F68)-LN('Summary Sheet'!$C$6))-8.802*(E68-'Summary Sheet'!$C$4)-2.089*(LN(D68)-LN('Summary Sheet'!$C$5))+0.491*(E68^2-'Summary Sheet'!$C$4^2)+0.23*((E68*LN(D68)-'Summary Sheet'!$C$4*LN('Summary Sheet'!$C$5)))) -> 545.6875261 | N68: - | Q68: Ceriodaphnia | S68: Value is from 2007 FW Cu AWQC Appendix C recommendation | T68: Very Soft Lab Recon water
B69: Cladoceran, Ceriodaphnia dubia | C69: S, M, T | D69: 60 | E69: 6.01 | F69: 0.5 | H69: 463.26 | I69: European Al Association 2010 | K69: =EXP(LN(H69)-0.597*(LN(F69)-LN('Summary Sheet'!$C$6))-8.802*(E69-'Summary Sheet'!$C$4)-2.089*(LN(D69)-LN('Summary Sheet'!$C$5))+0.491*(E69^2-'Summary Sheet'!$C$4^2)+0.23*((E69*LN(D69)-'Summary Sheet'!$C$4*LN('Summary Sheet'!$C$5)))) -> 6507.33266 | N69: - | Q69: Ceriodaphnia | S69: Value is from 2007 FW Cu AWQC Appendix C recommendation | T69: Soft Lab Recon water
B70: Cladoceran, Ceriodaphnia dubia | C70: S, M, T | D70: 60 | E70: 5.99 | F70: 0.5 | G70: > | H70: 859 | I70: European Al Association 2010 | J70: > | K70: =EXP(LN(H70)-0.597*(LN(F70)-LN('Summary Sheet'!$C$6))-8.802*(E70-'Summary Sheet'!$C$4)-2.089*(LN(D70)-LN('Summary Sheet'!$C$5))+0.491*(E70^2-'Summary Sheet'!$C$4^2)+0.23*((E70*LN(D70)-'Summary Sheet'!$C$4*LN('Summary Sheet'!$C$5)))) -> 12550.69607 | N70: =GEOMEAN(K17:K63,K66:K70) -> 9923.137129 | Q70: Ceriodaphnia | S70: Value is from 2007 FW Cu AWQC Appendix C recommendation | T70: Soft Lab Recon water
B72: Cladoceran, Ceriodaphnia reticulata | C72: S, U, T | D72: 45.1 | E72: 7.25 | F72: 1.1 | H72: 2800 | I72: Shephard 1983 | K72: =EXP(LN(H72)-0.597*(LN(F72)-LN('Summary Sheet'!$C$6))-8.802*(E72-'Summary Sheet'!$C$4)-2.089*(LN(D72)-LN('Summary Sheet'!$C$5))+0.491*(E72^2-'Summary Sheet'!$C$4^2)+0.23*((E72*LN(D72)-'Summary Sheet'!$C$4*LN('Summary Sheet'!$C$5)))) -> 5196.96436 | L72: f | N72: - | Q72: Ceriodaphnia | S72: Value is from personal communication with R. Erickson who works at the Lab | T72: Lake Superior water (most likely raw)
B73: Cladoceran, Ceriodaphnia reticulata | C73: F, M, T | D73: 45.1 | E73: 6 | F73: 1.1 | H73: 304 | I73: Shephard 1983 | K73: =EXP(LN(H73)-0.597*(LN(F73)-LN('Summary Sheet'!$C$6))-8.802*(E73-'Summary Sheet'!$C$4)-2.089*(LN(D73)-LN('Summary Sheet'!$C$5))+0.491*(E73^2-'Summary Sheet'!$C$4^2)+0.23*((E73*LN(D73)-'Summary Sheet'!$C$4*LN('Summary Sheet'!$C$5)))) -> 3330.047398 | N73: - | Q73: Ceriodaphnia | S73: Value is from personal communication with R. Erickson who works at the Lab | T73: Lake Superior water (most likely raw)
B74: Cladoceran, Ceriodaphnia reticulata | C74: F, M, T | D74: 4 | E74: 5.5 | F74: 1.1 | H74: 362 | I74: Shephard 1983 | K74: =EXP(LN(H74)-0.597*(LN(F74)-LN('Summary Sheet'!$C$6))-8.802*(E74-'Summary Sheet'!$C$4)-2.089*(LN(D74)-LN('Summary Sheet'!$C$5))+0.491*(E74^2-'Summary Sheet'!$C$4^2)+0.23*((E74*LN(D74)-'Summary Sheet'!$C$4*LN('Summary Sheet'!$C$5)))) -> 91244.61776 | N74: =GEOMEAN(K73:K74) -> 17431.2622 | O74: =GEOMEAN(N17:N74) -> 13151.91261 | Q74: Ceriodaphnia | R74: Invert | S74: Value is from personal communication with R. Erickson who works at the Lab | T74: Lake Superior water/deionized water mix
B76: Cladoceran, Daphnia magna | C76: S, U, NR | D76: 48.5 | E76: 7.8 | F76: 1.1 | H76: 3900 | I76: Biesinger and Christensen 1972 | K76: =EXP(LN(H76)-0.597*(LN(F76)-LN('Summary Sheet'!$C$6))-8.802*(E76-'Summary Sheet'!$C$4)-2.089*(LN(D76)-LN('Summary Sheet'!$C$5))+0.491*(E76^2-'Summary Sheet'!$C$4^2)+0.23*((E76*LN(D76)-'Summary Sheet'!$C$4*LN('Summary Sheet'!$C$5)))) -> 5274.937657 | N76: - | Q76: Daphnia | S76: Value is from 2007 FW Cu AWQC Appendix C recommendation | T76: Lake Superior water (most likely raw)
B77: Cladoceran, Daphnia magna | C77: S, M, T | D77: 220 | E77: 7.6 | F77: 1.6 | H77: 38200 | I77: Kimball 1978 | K77: =EXP(LN(H77)-0.597*(LN(F77)-LN('Summary Sheet'!$C$6))-8.802*(E77-'Summary Sheet'!$C$4)-2.089*(LN(D77)-LN('Summary Sheet'!$C$5))+0.491*(E77^2-'Summary Sheet'!$C$4^2)+0.23*((E77*LN(D77)-'Summary Sheet'!$C$4*LN('Summary Sheet'!$C$5)))) -> 26445.55684 | N77: - | Q77: Daphnia | S77: Value is from 2007 FW Cu AWQC Appendix C recommendation | T77: Well water
B78: Cladoceran, Daphnia magna | C78: S, U, T | D78: 45.1 | E78: 7.25 | F78: 1.1 | H78: 2800 | I78: Shephard 1983 | K78: =EXP(LN(H78)-0.597*(LN(F78)-LN('Summary Sheet'!$C$6))-8.802*(E78-'Summary Sheet'!$C$4)-2.089*(LN(D78)-LN('Summary Sheet'!$C$5))+0.491*(E78^2-'Summary Sheet'!$C$4^2)+0.23*((E78*LN(D78)-'Summary Sheet'!$C$4*LN('Summary Sheet'!$C$5)))) -> 5196.96436 | N78: - | Q78: Daphnia | S78: Value is from 2007 FW Cu AWQC Appendix C recommendation | T78: Lake Superior water (most likely raw)
B79: Cladoceran, Daphnia magna | C79: S, U, T | D79: 168 | E79: 5.99 | F79: 0.5 | G79: > | H79: 500 | I79: European Al Association 2009 | J79: > | K79: =EXP(LN(H79)-0.597*(LN(F79)-LN('Summary Sheet'!$C$6))-8.802*(E79-'Summary Sheet'!$C$4)-2.089*(LN(D79)-LN('Summary Sheet'!$C$5))+0.491*(E79^2-'Summary Sheet'!$C$4^2)+0.23*((E79*LN(D79)-'Summary Sheet'!$C$4*LN('Summary Sheet'!$C$5)))) -> 3512.215423 | N79: - | Q79: Daphnia | S79: Value is from 2007 FW Cu AWQC Appendix C recommendation | T79: Hard Lab Recon water
B80: Cladoceran, Daphnia magna | C80: S, U, T | D80: 168 | E80: 6.98 | F80: 0.5 | G80: > | H80: 500 | I80: European Al Association 2009 | J80: > | K80: =EXP(LN(H80)-0.597*(LN(F80)-LN('Summary Sheet'!$C$6))-8.802*(E80-'Summary Sheet'!$C$4)-2.089*(LN(D80)-LN('Summary Sheet'!$C$5))+0.491*(E80^2-'Summary Sheet'!$C$4^2)+0.23*((E80*LN(D80)-'Summary Sheet'!$C$4*LN('Summary Sheet'!$C$5)))) -> 1013.673551 | L80: c | N80: - | Q80: Daphnia | S80: Value is from 2007 FW Cu AWQC Appendix C recommendation | T80: Hard Lab Recon water
B81: Cladoceran, Daphnia magna | C81: S, U, T | D81: 168 | E81: 7.93 | F81: 0.5 | G81: > | H81: 500 | I81: European Al Association 2009 | J81: > | K81: =EXP(LN(H81)-0.597*(LN(F81)-LN('Summary Sheet'!$C$6))-8.802*(E81-'Summary Sheet'!$C$4)-2.089*(LN(D81)-LN('Summary Sheet'!$C$5))+0.491*(E81^2-'Summary Sheet'!$C$4^2)+0.23*((E81*LN(D81)-'Summary Sheet'!$C$4*LN('Summary Sheet'!$C$5)))) -> 760.3598588 | L81: c | N81: - | Q81: Daphnia | S81: Value is from 2007 FW Cu AWQC Appendix C recommendation | T81: Hard Lab Recon water
B82: Cladoceran, Daphnia magna | C82: S, U, T | D82: 168 | E82: 7.92 | F82: 0.5 | H82: 795.02 | I82: European Al Association 2009 | K82: =EXP(LN(H82)-0.597*(LN(F82)-LN('Summary Sheet'!$C$6))-8.802*(E82-'Summary Sheet'!$C$4)-2.089*(LN(D82)-LN('Summary Sheet'!$C$5))+0.491*(E82^2-'Summary Sheet'!$C$4^2)+0.23*((E82*LN(D82)-'Summary Sheet'!$C$4*LN('Summary Sheet'!$C$5)))) -> 1207.083472 | N82: - | Q82: Daphnia | S82: Value is from 2007 FW Cu AWQC Appendix C recommendation | T82: Hard Lab Recon water
B83: Cladoceran, Daphnia magna | C83: S, U, T | D83: 168 | E83: 7.95 | F83: 2 | G83: > | H83: 1200 | I83: European Al Association 2009 | J83: > | K83: =EXP(LN(H83)-0.597*(LN(F83)-LN('Summary Sheet'!$C$6))-8.802*(E83-'Summary Sheet'!$C$4)-2.089*(LN(D83)-LN('Summary Sheet'!$C$5))+0.491*(E83^2-'Summary Sheet'!$C$4^2)+0.23*((E83*LN(D83)-'Summary Sheet'!$C$4*LN('Summary Sheet'!$C$5)))) -> 800.4024452 | L83: c | N83: - | Q83: Daphnia | S83: Value is from 2007 FW Cu AWQC Appendix C recommendation | T83: Hard Lab Recon water
B84: Cladoceran, Daphnia magna | C84: S, U, T | D84: 168 | E84: 7.93 | F84: 3 | G84: > | H84: 1200 | I84: European Al Association 2009 | J84: > | K84: =EXP(LN(H84)-0.597*(LN(F84)-LN('Summary Sheet'!$C$6))-8.802*(E84-'Summary Sheet'!$C$4)-2.089*(LN(D84)-LN('Summary Sheet'!$C$5))+0.491*(E84^2-'Summary Sheet'!$C$4^2)+0.23*((E84*LN(D84)-'Summary Sheet'!$C$4*LN('Summary Sheet'!$C$5)))) -> 626.1438605 | L84: c | N84: =GEOMEAN(K76:K79,K82) -> 4983.421792 | Q84: Daphnia | S84: Value is from 2007 FW Cu AWQC Appendix C recommendation | T84: Hard Lab Recon water
B86: Cladoceran, Daphnia pulex | C86: R, U, T | D86: 142 | E86: 8.2 | F86: 1.6 | H86: 3650 | I86: Griffitt et al. 2008 | K86: =EXP(LN(H86)-0.597*(LN(F86)-LN('Summary Sheet'!$C$6))-8.802*(E86-'Summary Sheet'!$C$4)-2.089*(LN(D86)-LN('Summary Sheet'!$C$5))+0.491*(E86^2-'Summary Sheet'!$C$4^2)+0.23*((E86*LN(D86)-'Summary Sheet'!$C$4*LN('Summary Sheet'!$C$5)))) -> 3106.988452 | N86: =GEOMEAN(K86) -> 3106.988452 | O86: =GEOMEAN(N76:N86) -> 3934.899485 | Q86: Daphnia | R86: Invert | S86: Value is from 2007 FW Cu AWQC Appendix C recommendation | T86: Tap water (Gainesville, FL)
B88: Ostracod, Stenocypris major | C88: R, M, T | D88: 15.63 | E88: 6.51 | F88: 3.2 | H88: 3101.96 | I88: Shuhaimi-Othman et al. 2011a | K88: =EXP(LN(H88)-0.597*(LN(F88)-LN('Summary Sheet'!$C$6))-8.802*(E88-'Summary Sheet'!$C$4)-2.089*(LN(D88)-LN('Summary Sheet'!$C$5))+0.491*(E88^2-'Summary Sheet'!$C$4^2)+0.23*((E88*LN(D88)-'Summary Sheet'!$C$4*LN('Summary Sheet'!$C$5)))) -> 13540.11891 | N88: =K88 -> 13540.11891 | O88: =N88 -> 13540.11891 | Q88: Stenocypris | R88: Invert | S88: Value is from Shuhaimi-Othman et al. 2013 | T88: Tap water (Malaysia)
B90: Amphipod, Crangonyx pseudogracilis | C90: R, U, T | D90: 50 | E90: 6.75 | F90: 1.6 | H90: 9190 | I90: Martin and Holdich 1986 | K90: =EXP(LN(H90)-0.597*(LN(F90)-LN('Summary Sheet'!$C$6))-8.802*(E90-'Summary Sheet'!$C$4)-2.089*(LN(D90)-LN('Summary Sheet'!$C$5))+0.491*(E90^2-'Summary Sheet'!$C$4^2)+0.23*((E90*LN(D90)-'Summary Sheet'!$C$4*LN('Summary Sheet'!$C$5)))) -> 21835.1866 | N90: =K90 -> 21835.1866 | O90: =N90 -> 21835.1866 | Q90: Crangonyx | R90: Invert | S90: Value is from 2007 FW Cu AWQC Appendix C recommendation | T90: Tap water (UK)
B92: Amphipod, Hyalella azteca | C92: F, M, T | D92: 105 | E92: 6.13 | F92: 0.48 | G92: > | H92: 5997 | I92: Wang et al. 2016, 2017 | J92: > | K92: =EXP(LN(H92)-0.597*(LN(F92)-LN('Summary Sheet'!$C$6))-8.802*(E92-'Summary Sheet'!$C$4)-2.089*(LN(D92)-LN('Summary Sheet'!$C$5))+0.491*(E92^2-'Summary Sheet'!$C$4^2)+0.23*((E92*LN(D92)-'Summary Sheet'!$C$4*LN('Summary Sheet'!$C$5)))) -> 46995.13912 | M92: > | N92: =K92 -> 46995.13912 | O92: =N92 -> 46995.13912 | P92: > | Q92: Hyalella | R92: Invert | S92: Author reported | T92: Well water/deionized water mix
B94: Midge, Chironomus plumosus | C94: S, U, T | D94: 80 | E94: 7 | F94: 1.6 | H94: 30000 | I94: Fargasova 2001, 2003 | K94: =EXP(LN(H94)-0.597*(LN(F94)-LN('Summary Sheet'!$C$6))-8.802*(E94-'Summary Sheet'!$C$4)-2.089*(LN(D94)-LN('Summary Sheet'!$C$5))+0.491*(E94^2-'Summary Sheet'!$C$4^2)+0.23*((E94*LN(D94)-'Summary Sheet'!$C$4*LN('Summary Sheet'!$C$5)))) -> 42679.82228 | N94: =K94 -> 42679.82228 | O94: =N94 -> 42679.82228 | Q94: Chironomus | R94: Invert | S94: Value is from 2007 FW Cu AWQC Appendix C recommendation | T94: Tap water (Slovakia)
B96: Midge, Paratanytarsus dissimilis | C96: S, M, T | D96: 17.43 | E96: 7.28 | F96: 2.8 | G96: > | H96: 77700 | I96: Lamb and Bailey 1981, 1983 | J96: > | K96: =EXP(LN(H96)-0.597*(LN(F96)-LN('Summary Sheet'!$C$6))-8.802*(E96-'Summary Sheet'!$C$4)-2.089*(LN(D96)-LN('Summary Sheet'!$C$5))+0.491*(E96^2-'Summary Sheet'!$C$4^2)+0.23*((E96*LN(D96)-'Summary Sheet'!$C$4*LN('Summary Sheet'!$C$5)))) -> 119573.5796 | M96: > | N96: =K96 -> 119573.5796 | O96: =N96 -> 119573.5796 | P96: > | Q96: Paratanytarsus | R96: Invert | S96: Value is from 2007 FW Cu AWQC Appendix C recommendation | T96: Liberty Lake, Washington (0.45 um filtered)
B98: Rainbow trout, Oncorhynchus mykiss | C98: S, U, T | D98: 14.3 | E98: 5 | F98: 0.4 | H98: 160 | I98: Holtze 1983 | K98: =EXP(LN(H98)-2.209*(LN(F98)-LN('Summary Sheet'!$C$6))-2.041*(E98-'Summary Sheet'!$C$4)-1.862*(LN(D98)-LN('Summary Sheet'!$C$5))+0.232*(E98*LN(D98)-'Summary Sheet'!$C$4*LN('Summary Sheet'!$C$5))+0.261*(E98*LN(F98)-'Summary Sheet'!$C$4*LN('Summary Sheet'!$C$6))) -> 13036.37324 | L98: f | N98: - | Q98: Oncorhynchus | S98: Author reported | T98: Tap water (Lake Ontario)
B99: Rainbow trout, Oncorhynchus mykiss | C99: S, U, T | D99: 14.3 | E99: 5.5 | F99: 0.4 | H99: 310 | I99: Holtze 1983 | K99: =EXP(LN(H99)-2.209*(LN(F99)-LN('Summary Sheet'!$C$6))-2.041*(E99-'Summary Sheet'!$C$4)-1.862*(LN(D99)-LN('Summary Sheet'!$C$5))+0.232*(E99*LN(D99)-'Summary Sheet'!$C$4*LN('Summary Sheet'!$C$5))+0.261*(E99*LN(F99)-'Summary Sheet'!$C$4*LN('Summary Sheet'!$C$6))) -> 10997.36875 | L99: f | N99: - | Q99: Oncorhynchus | S99: Author reported | T99: Tap water (Lake Ontario)
B100: Rainbow trout, Oncorhynchus mykiss | C100: S, M, T | D100: 47.4 | E100: 6.59 | F100: 1.1 | H100: 7400 | I100: Call et al. 1984 | K100: =EXP(LN(H100)-2.209*(LN(F100)-LN('Summary Sheet'!$C$6))-2.041*(E100-'Summary Sheet'!$C$4)-1.862*(LN(D100)-LN('Summary Sheet'!$C$5))+0.232*(E100*LN(D100)-'Summary Sheet'!$C$4*LN('Summary Sheet'!$C$5))+0.261*(E100*LN(F100)-'Summary Sheet'!$C$4*LN('Summary Sheet'!$C$6))) -> 17527.97825 | L100: f | N100: - | Q100: Oncorhynchus | S100: Value is from personal communication with R. Erickson who works at the Lab | T100: Raw Lake Superior water
B101: Rainbow trout, Oncorhynchus mykiss | C101: S, M, T | D101: 47.4 | E101: 7.31 | F101: 1.1 | H101: 14600 | I101: Call et al. 1984 | K101: =EXP(LN(H101)-2.209*(LN(F101)-LN('Summary Sheet'!$C$6))-2.041*(E101-'Summary Sheet'!$C$4)-1.862*(LN(D101)-LN('Summary Sheet'!$C$5))+0.232*(E101*LN(D101)-'Summary Sheet'!$C$4*LN('Summary Sheet'!$C$5))+0.261*(E101*LN(F101)-'Summary Sheet'!$C$4*LN('Summary Sheet'!$C$6))) -> 15429.40086 | L101: f | N101: - | Q101: Oncorhynchus | S101: Value is from personal communication with R. Erickson who works at the Lab | T101: Raw Lake Superior water
B102: Rainbow trout, Oncorhynchus mykiss | C102: S, M, T | D102: 47.4 | E102: 8.17 | F102: 1.1 | G102: > | H102: 24700 | I102: Call et al. 1984 | J102: > | K102: =EXP(LN(H102)-2.209*(LN(F102)-LN('Summary Sheet'!$C$6))-2.041*(E102-'Summary Sheet'!$C$4)-1.862*(LN(D102)-LN('Summary Sheet'!$C$5))+0.232*(E102*LN(D102)-'Summary Sheet'!$C$4*LN('Summary Sheet'!$C$5))+0.261*(E102*LN(F102)-'Summary Sheet'!$C$4*LN('Summary Sheet'!$C$6))) -> 9954.873008 | L102: f | N102: - | Q102: Oncorhynchus | S102: Value is from personal communication with R. Erickson who works at the Lab | T102: Raw Lake Superior water
B103: Rainbow trout, Oncorhynchus mykiss | C103: S, M, T | D103: 47.4 | E103: 7.46 | F103: 1.1 | H103: 8600 | I103: Call et al. 1984 | K103: =EXP(LN(H103)-2.209*(LN(F103)-LN('Summary Sheet'!$C$6))-2.041*(E103-'Summary Sheet'!$C$4)-1.862*(LN(D103)-LN('Summary Sheet'!$C$5))+0.232*(E103*LN(D103)-'Summary Sheet'!$C$4*LN('Summary Sheet'!$C$5))+0.261*(E103*LN(F103)-'Summary Sheet'!$C$4*LN('Summary Sheet'!$C$6))) -> 7681.977166 | L103: f | N103: - | Q103: Oncorhynchus | S103: Value is from personal communication with R. Erickson who works at the Lab | T103: Raw Lake Superior water
B104: Rainbow trout, Oncorhynchus mykiss | C104: F, M, T | D104: 26.35 | E104: 7.61 | F104: 0.5 | G104: > | H104: 9840 | I104: Gundersen et al. 1994 | J104: > | K104: =EXP(LN(H104)-2.209*(LN(F104)-LN('Summary Sheet'!$C$6))-2.041*(E104-'Summary Sheet'!$C$4)-1.862*(LN(D104)-LN('Summary Sheet'!$C$5))+0.232*(E104*LN(D104)-'Summary Sheet'!$C$4*LN('Summary Sheet'!$C$5))+0.261*(E104*LN(F104)-'Summary Sheet'!$C$4*LN('Summary Sheet'!$C$6))) -> 9372.135151 | N104: - | Q104: Oncorhynchus | S104: Value is from 2007 FW Cu AWQC Appendix C recommendation | T104: Reverse Osmosis treated well water: then added salts
B105: Rainbow trout, Oncorhynchus mykiss | C105: F, M, T | D105: 45.5 | E105: 7.59 | F105: 0.5 | G105: > | H105: 8070 | I105: Gundersen et al. 1994 | J105: > | K105: =EXP(LN(H105)-2.209*(LN(F105)-LN('Summary Sheet'!$C$6))-2.041*(E105-'Summary Sheet'!$C$4)-1.862*(LN(D105)-LN('Summary Sheet'!$C$5))+0.232*(E105*LN(D105)-'Summary Sheet'!$C$4*LN('Summary Sheet'!$C$5))+0.261*(E105*LN(F105)-'Summary Sheet'!$C$4*LN('Summary Sheet'!$C$6))) -> 7489.19361 | N105: - | Q105: Oncorhynchus | S105: Value is from 2007 FW Cu AWQC Appendix C recommendation | T105: Reverse Osmosis treated well water: then added salts
B106: Rainbow trout, Oncorhynchus mykiss | C106: F, M, T | D106: 88.05 | E106: 7.6 | F106: 0.5 | G106: > | H106: 8160 | I106: Gundersen et al. 1994 | J106: > | K106: =EXP(LN(H106)-2.209*(LN(F106)-LN('Summary Sheet'!$C$6))-2.041*(E106-'Summary Sheet'!$C$4)-1.862*(LN(D106)-LN('Summary Sheet'!$C$5))+0.232*(E106*LN(D106)-'Summary Sheet'!$C$4*LN('Summary Sheet'!$C$5))+0.261*(E106*LN(F106)-'Summary Sheet'!$C$4*LN('Summary Sheet'!$C$6))) -> 7000.36839 | N106: - | Q106: Oncorhynchus | S106: Value is from 2007 FW Cu AWQC Appendix C recommendation | T106: Reverse Osmosis treated well water: then added salts
B107: Rainbow trout, Oncorhynchus mykiss | C107: F, M, T | D107: 127.6 | E107: 7.61 | F107: 0.5 | G107: > | H107: 8200 | I107: Gundersen et al. 1994 | J107: > | K107: =EXP(LN(H107)-2.209*(LN(F107)-LN('Summary Sheet'!$C$6))-2.041*(E107-'Summary Sheet'!$C$4)-1.862*(LN(D107)-LN('Summary Sheet'!$C$5))+0.232*(E107*LN(D107)-'Summary Sheet'!$C$4*LN('Summary Sheet'!$C$5))+0.261*(E107*LN(F107)-'Summary Sheet'!$C$4*LN('Summary Sheet'!$C$6))) -> 6707.516316 | N107: - | Q107: Oncorhynchus | S107: Value is from 2007 FW Cu AWQC Appendix C recommendation | T107: Reverse Osmosis treated well water: then added salts
B108: Rainbow trout, Oncorhynchus mykiss | C108: F, M, T | D108: 23.25 | E108: 8.28 | F108: 0.5 | H108: 6170 | I108: Gundersen et al. 1994 | K108: =EXP(LN(H108)-2.209*(LN(F108)-LN('Summary Sheet'!$C$6))-2.041*(E108-'Summary Sheet'!$C$4)-1.862*(LN(D108)-LN('Summary Sheet'!$C$5))+0.232*(E108*LN(D108)-'Summary Sheet'!$C$4*LN('Summary Sheet'!$C$5))+0.261*(E108*LN(F108)-'Summary Sheet'!$C$4*LN('Summary Sheet'!$C$6))) -> 2188.99127 | N108: - | Q108: Oncorhynchus | S108: Value is from 2007 FW Cu AWQC Appendix C recommendation | T108: Reverse Osmosis treated well water: then added salts
B109: Rainbow trout, Oncorhynchus mykiss | C109: F, M, T | D109: 35.4 | E109: 8.3 | F109: 0.5 | H109: 6170 | I109: Gundersen et al. 1994 | K109: =EXP(LN(H109)-2.209*(LN(F109)-LN('Summary Sheet'!$C$6))-2.041*(E109-'Summary Sheet'!$C$4)-1.862*(LN(D109)-LN('Summary Sheet'!$C$5))+0.232*(E109*LN(D109)-'Summary Sheet'!$C$4*LN('Summary Sheet'!$C$5))+0.261*(E109*LN(F109)-'Summary Sheet'!$C$4*LN('Summary Sheet'!$C$6))) -> 2182.212615 | N109: - | Q109: Oncorhynchus | S109: Value is from 2007 FW Cu AWQC Appendix C recommendation | T109: Reverse Osmosis treated well water: then added salts
B110: Rainbow trout, Oncorhynchus mykiss | C110: F, M, T | D110: 83.6 | E110: 8.31 | F110: 0.5 | H110: 7670 | I110: Gundersen et al. 1994 | K110: =EXP(LN(H110)-2.209*(LN(F110)-LN('Summary Sheet'!$C$6))-2.041*(E110-'Summary Sheet'!$C$4)-1.862*(LN(D110)-LN('Summary Sheet'!$C$5))+0.232*(E110*LN(D110)-'Summary Sheet'!$C$4*LN('Summary Sheet'!$C$5))+0.261*(E110*LN(F110)-'Summary Sheet'!$C$4*LN('Summary Sheet'!$C$6))) -> 2831.084641 | N110: - | Q110: Oncorhynchus | S110: Value is from 2007 FW Cu AWQC Appendix C recommendation | T110: Reverse Osmosis treated well water: then added salts
B111: Rainbow trout, Oncorhynchus mykiss | C111: F, M, T | D111: 128.5 | E111: 8.31 | F111: 0.5 | H111: 6930 | I111: Gundersen et al. 1994 | K111: =EXP(LN(H111)-2.209*(LN(F111)-LN('Summary Sheet'!$C$6))-2.041*(E111-'Summary Sheet'!$C$4)-1.862*(LN(D111)-LN('Summary Sheet'!$C$5))+0.232*(E111*LN(D111)-'Summary Sheet'!$C$4*LN('Summary Sheet'!$C$5))+0.261*(E111*LN(F111)-'Summary Sheet'!$C$4*LN('Summary Sheet'!$C$6))) -> 2631.466107 | N111: =GEOMEAN(K104:K111) -> 4301.85725 | O111: =N111 -> 4301.85725 | Q111: Oncorhynchus | R111: Fish | S111: Value is from 2007 FW Cu AWQC Appendix C recommendation | T111: Reverse Osmosis treated well water: then added salts
B113: Atlantic salmon, Salmo salar | C113: S, U, T | D113: 6.8 | E113: 5.5 | F113: 0.5 | H113: 584 | I113: Hamilton and Haines 1995 | K113: =EXP(LN(H113)-2.209*(LN(F113)-LN('Summary Sheet'!$C$6))-2.041*(E113-'Summary Sheet'!$C$4)-1.862*(LN(D113)-LN('Summary Sheet'!$C$5))+0.232*(E113*LN(D113)-'Summary Sheet'!$C$4*LN('Summary Sheet'!$C$5))+0.261*(E113*LN(F113)-'Summary Sheet'!$C$4*LN('Summary Sheet'!$C$6))) -> 26949.87411 | N113: - | Q113: Salmo | S113: Value is from 2007 FW Cu AWQC Appendix C recommendation | T113: Soft Lab Recon water
B114: Atlantic salmon, Salmo salar | C114: S, U, T | D114: 6.8 | E114: 6.5 | F114: 0.5 | H114: 599 | I114: Hamilton and Haines 1995 | K114: =EXP(LN(H114)-2.209*(LN(F114)-LN('Summary Sheet'!$C$6))-2.041*(E114-'Summary Sheet'!$C$4)-1.862*(LN(D114)-LN('Summary Sheet'!$C$5))+0.232*(E114*LN(D114)-'Summary Sheet'!$C$4*LN('Summary Sheet'!$C$5))+0.261*(E114*LN(F114)-'Summary Sheet'!$C$4*LN('Summary Sheet'!$C$6))) -> 4674.648036 | N114: =GEOMEAN(K113:K114) -> 11224.13365 | O114: =N114 -> 11224.13365 | Q114: Salmo | R114: Fish | S114: Value is from 2007 FW Cu AWQC Appendix C recommendation | T114: Soft Lab Recon water
B116: Brook trout, Salvelinus fontinalis | C116: F, M, T | D116: - | E116: 6.5 | F116: - | H116: 3600 | I116: Decker and Menendez 1974 | K116: NAe | N116: - | Q116: Salvelinus | S116: - | T116: Tap water (Elkins, WV)
B117: Brook trout, Salvelinus fontinalis | C117: F, M, T | D117: - | E117: 6 | F117: - | H117: 4400 | I117: Decker and Menendez 1974 | K117: NAe | N117: - | Q117: Salvelinus | S117: - | T117: Tap water (Elkins, WV)
B118: Brook trout, Salvelinus fontinalis | C118: F, M, T | D118: - | E118: 5.5 | F118: - | H118: 4000 | I118: Decker and Menendez 1974 | K118: NAe | N118: - | Q118: Salvelinus | S118: - | T118: Tap water (Elkins, WV)
B119: Brook trout, Salvelinus fontinalis | C119: S, U, T | D119: 40 | E119: 5.6 | F119: 1.6 | H119: 6530 | I119: Tandjung 1982 | K119: =EXP(LN(H119)-2.209*(LN(F119)-LN('Summary Sheet'!$C$6))-2.041*(E119-'Summary Sheet'!$C$4)-1.862*(LN(D119)-LN('Summary Sheet'!$C$5))+0.232*(E119*LN(D119)-'Summary Sheet'!$C$4*LN('Summary Sheet'!$C$5))+0.261*(E119*LN(F119)-'Summary Sheet'!$C$4*LN('Summary Sheet'!$C$6))) -> 39014.17739 | N119: - | Q119: Salvelinus | S119: Value is from 2007 FW Cu AWQC Appendix C recommendation | T119: Well water/distilled water mix
B120: Brook trout, Salvelinus fontinalis | C120: S, U, T | D120: 18 | E120: 5.6 | F120: 1.6 | H120: 3400 | I120: Tandjung 1982 | K120: =EXP(LN(H120)-2.209*(LN(F120)-LN('Summary Sheet'!$C$6))-2.041*(E120-'Summary Sheet'!$C$4)-1.862*(LN(D120)-LN('Summary Sheet'!$C$5))+0.232*(E120*LN(D120)-'Summary Sheet'!$C$4*LN('Summary Sheet'!$C$5))+0.261*(E120*LN(F120)-'Summary Sheet'!$C$4*LN('Summary Sheet'!$C$6))) -> 31839.05633 | N120: - | Q120: Salvelinus | S120: Value is from 2007 FW Cu AWQC Appendix C recommendation | T120: Well water/distilled water mix
B121: Brook trout, Salvelinus fontinalis | C121: S, U, T | D121: 2 | E121: 5.6 | F121: 1.6 | H121: 370 | I121: Tandjung 1982 | K121: =EXP(LN(H121)-2.209*(LN(F121)-LN('Summary Sheet'!$C$6))-2.041*(E121-'Summary Sheet'!$C$4)-1.862*(LN(D121)-LN('Summary Sheet'!$C$5))+0.232*(E121*LN(D121)-'Summary Sheet'!$C$4*LN('Summary Sheet'!$C$5))+0.261*(E121*LN(F121)-'Summary Sheet'!$C$4*LN('Summary Sheet'!$C$6))) -> 11932.479 | N121: =GEOMEAN(K119:K121) -> 24564.30268 | O121: =N121 -> 24564.30268 | Q121: Salvelinus | R121: Fish | S121: Value is from 2007 FW Cu AWQC Appendix C recommendation | T121: Well water/distilled water mix
B123: Green sunfish, Lepomis cyanellus | C123: S, M, T | D123: 47.4 | E123: 7.55 | F123: 1.1 | G123: > | H123: 50000 | I123: Call et al. 1984 | J123: > | K123: =EXP(LN(H123)-2.209*(LN(F123)-LN('Summary Sheet'!$C$6))-2.041*(E123-'Summary Sheet'!$C$4)-1.862*(LN(D123)-LN('Summary Sheet'!$C$5))+0.232*(E123*LN(D123)-'Summary Sheet'!$C$4*LN('Summary Sheet'!$C$5))+0.261*(E123*LN(F123)-'Summary Sheet'!$C$4*LN('Summary Sheet'!$C$6))) -> 40376.77034 | M123: > | N123: =K123 -> 40376.77034 | O123: =N123 -> 40376.77034 | P123: > | Q123: Lepomis | R123: Fish | S123: Value is from 2007 FW Cu AWQC Appendix C recommendation | T123: Raw Lake Superior water
B125: Guppy, Poecilia reticulata | C125: R, M, T | D125: 18.72 | E125: 6.68 | F125: 3.2 | H125: 6760 | I125: Shuhaimi-Othman et al. 2013 | K125: =EXP(LN(H125)-2.209*(LN(F125)-LN('Summary Sheet'!$C$6))-2.041*(E125-'Summary Sheet'!$C$4)-1.862*(LN(D125)-LN('Summary Sheet'!$C$5))+0.232*(E125*LN(D125)-'Summary Sheet'!$C$4*LN('Summary Sheet'!$C$5))+0.261*(E125*LN(F125)-'Summary Sheet'!$C$4*LN('Summary Sheet'!$C$6))) -> 11768.62628 | N125: =GEOMEAN(K125) -> 11768.62628 | O125: =N125 -> 11768.62628 | Q125: Poecilia | R125: Fish | S125: Author reported | T125: Tap water (Malaysia)
B127: Rio Grande silvery minnow, Hybognathus amarus | C127: R, M, T | D127: 140 | E127: 8.1 | F127: 0.5 | G127: > | H127: 59100 | I127: Buhl 2002 | J127: > | K127: =EXP(LN(H127)-2.209*(LN(F127)-LN('Summary Sheet'!$C$6))-2.041*(E127-'Summary Sheet'!$C$4)-1.862*(LN(D127)-LN('Summary Sheet'!$C$5))+0.232*(E127*LN(D127)-'Summary Sheet'!$C$4*LN('Summary Sheet'!$C$5))+0.261*(E127*LN(F127)-'Summary Sheet'!$C$4*LN('Summary Sheet'!$C$6))) -> 28287.13395 | M127: > | N127: =K127 -> 28287.13395 | O127: =N127 -> 28287.13395 | P127: > | Q127: Hybognathus | R127: Fish | S127: Value is from 2007 FW Cu AWQC Appendix C recommendation | T127: Lab Recon water (recipe different from EPA)
B129: Fathead minnow, Pimephales promelas | C129: S, U, NR | D129: - | E129: 7.6 | F129: - | G129: > | H129: 18900 | I129: Boyd 1979 | K129: NAe | N129: - | Q129: Pimephales | S129: -
B130: Fathead minnow, Pimephales promelas | C130: S, M, T | D130: 47.4 | E130: 7.61 | F130: 1.1 | G130: > | H130: 48200 | I130: Call et al. 1984 | J130: > | K130: =EXP(LN(H130)-2.209*(LN(F130)-LN('Summary Sheet'!$C$6))-2.041*(E130-'Summary Sheet'!$C$4)-1.862*(LN(D130)-LN('Summary Sheet'!$C$5))+0.232*(E130*LN(D130)-'Summary Sheet'!$C$4*LN('Summary Sheet'!$C$5))+0.261*(E130*LN(F130)-'Summary Sheet'!$C$4*LN('Summary Sheet'!$C$6))) -> 36391.49969 | N130: - | Q130: Pimephales | S130: Value is from 2007 FW Cu AWQC Appendix C recommendation | T130: Raw Lake Superior water
B131: Fathead minnow, Pimephales promelas | C131: S, M, T | D131: 47.4 | E131: 8.05 | F131: 1.1 | G131: > | H131: 49800 | I131: Call et al. 1984 | J131: > | K131: =EXP(LN(H131)-2.209*(LN(F131)-LN('Summary Sheet'!$C$6))-2.041*(E131-'Summary Sheet'!$C$4)-1.862*(LN(D131)-LN('Summary Sheet'!$C$5))+0.232*(E131*LN(D131)-'Summary Sheet'!$C$4*LN('Summary Sheet'!$C$5))+0.261*(E131*LN(F131)-'Summary Sheet'!$C$4*LN('Summary Sheet'!$C$6))) -> 22960.71618 | N131: - | Q131: Pimephales | S131: Value is from 2007 FW Cu AWQC Appendix C recommendation | T131: Raw Lake Superior water
B132: Fathead minnow, Pimephales promelas | C132: F, U, T | D132: 21.6 | E132: 6.5 | F132: 0.9 | G132: > | H132: 400 | I132: Palmer et al. 1989 | J132: > | K132: =EXP(LN(H132)-2.209*(LN(F132)-LN('Summary Sheet'!$C$6))-2.041*(E132-'Summary Sheet'!$C$4)-1.862*(LN(D132)-LN('Summary Sheet'!$C$5))+0.232*(E132*LN(D132)-'Summary Sheet'!$C$4*LN('Summary Sheet'!$C$5))+0.261*(E132*LN(F132)-'Summary Sheet'!$C$4*LN('Summary Sheet'!$C$6))) -> 1534.145162 | L132: c | N132: - | Q132: Pimephales | S132: Author reported | T132: Well water/deionized water mix
B133: Fathead minnow, Pimephales promelas | C133: F, U, T | D133: 21.6 | E133: 7.5 | F133: 0.9 | G133: > | H133: 400 | I133: Palmer et al. 1989 | J133: > | K133: =EXP(LN(H133)-2.209*(LN(F133)-LN('Summary Sheet'!$C$6))-2.041*(E133-'Summary Sheet'!$C$4)-1.862*(LN(D133)-LN('Summary Sheet'!$C$5))+0.232*(E133*LN(D133)-'Summary Sheet'!$C$4*LN('Summary Sheet'!$C$5))+0.261*(E133*LN(F133)-'Summary Sheet'!$C$4*LN('Summary Sheet'!$C$6))) -> 395.4776842 | L133: c | N133: - | Q133: Pimephales | S133: Author reported | T133: Well water/deionized water mix
B134: Fathead minnow, Pimephales promelas | C134: F, U, T | D134: 21.6 | E134: 7.5 | F134: 0.9 | G134: > | H134: 400 | I134: Palmer et al. 1989 | J134: > | K134: =EXP(LN(H134)-2.209*(LN(F134)-LN('Summary Sheet'!$C$6))-2.041*(E134-'Summary Sheet'!$C$4)-1.862*(LN(D134)-LN('Summary Sheet'!$C$5))+0.232*(E134*LN(D134)-'Summary Sheet'!$C$4*LN('Summary Sheet'!$C$5))+0.261*(E134*LN(F134)-'Summary Sheet'!$C$4*LN('Summary Sheet'!$C$6))) -> 395.4776842 | L134: c | N134: - | Q134: Pimephales | S134: Author reported | T134: Well water/deionized water mix
B135: Fathead minnow, Pimephales promelas | C135: F, U, T | D135: 21.6 | E135: 6.5 | F135: 0.9 | G135: > | H135: 400 | I135: Palmer et al. 1989 | J135: > | K135: =EXP(LN(H135)-2.209*(LN(F135)-LN('Summary Sheet'!$C$6))-2.041*(E135-'Summary Sheet'!$C$4)-1.862*(LN(D135)-LN('Summary Sheet'!$C$5))+0.232*(E135*LN(D135)-'Summary Sheet'!$C$4*LN('Summary Sheet'!$C$5))+0.261*(E135*LN(F135)-'Summary Sheet'!$C$4*LN('Summary Sheet'!$C$6))) -> 1534.145162 | L135: c | N135: - | Q135: Pimephales | S135: Author reported | T135: Well water/deionized water mix
B136: Fathead minnow, Pimephales promelas | C136: F, U, T | D136: 21.6 | E136: 7.5 | F136: 0.9 | G136: > | H136: 400 | I136: Palmer et al. 1989 | J136: > | K136: =EXP(LN(H136)-2.209*(LN(F136)-LN('Summary Sheet'!$C$6))-2.041*(E136-'Summary Sheet'!$C$4)-1.862*(LN(D136)-LN('Summary Sheet'!$C$5))+0.232*(E136*LN(D136)-'Summary Sheet'!$C$4*LN('Summary Sheet'!$C$5))+0.261*(E136*LN(F136)-'Summary Sheet'!$C$4*LN('Summary Sheet'!$C$6))) -> 395.4776842 | L136: c | N136: - | Q136: Pimephales | S136: Author reported | T136: Well water/deionized water mix
B137: Fathead minnow, Pimephales promelas | C137: R, M, T | D137: 140 | E137: 8.1 | F137: 0.5 | G137: > | H137: 59100 | I137: Buhl 2002 | J137: > | K137: =EXP(LN(H137)-2.209*(LN(F137)-LN('Summary Sheet'!$C$6))-2.041*(E137-'Summary Sheet'!$C$4)-1.862*(LN(D137)-LN('Summary Sheet'!$C$5))+0.232*(E137*LN(D137)-'Summary Sheet'!$C$4*LN('Summary Sheet'!$C$5))+0.261*(E137*LN(F137)-'Summary Sheet'!$C$4*LN('Summary Sheet'!$C$6))) -> 28287.13395 | M137: > | N137: =GEOMEAN(K130:K131,K137:K137) -> 28698.42813 | O137: =N137 -> 28698.42813 | P137: > | Q137: Pimephales | R137: Fish | S137: Value is from 2007 FW Cu AWQC Appendix C recommendation | T137: Lab Recon water (recipe different from EPA)
B139: Smallmouth bass, Micropterus dolomieui | C139: S, M, T | D139: 12.15 | E139: 5.05 | F139: 1.6 | H139: 130 | I139: Kane 1984; Kane and Rabeni 1987 | K139: =EXP(LN(H139)-2.209*(LN(F139)-LN('Summary Sheet'!$C$6))-2.041*(E139-'Summary Sheet'!$C$4)-1.862*(LN(D139)-LN('Summary Sheet'!$C$5))+0.232*(E139*LN(D139)-'Summary Sheet'!$C$4*LN('Summary Sheet'!$C$5))+0.261*(E139*LN(F139)-'Summary Sheet'!$C$4*LN('Summary Sheet'!$C$6))) -> 3171.87726 | N139: - | Q139: Micropterus | S139: Value is from 2007 FW Cu AWQC Appendix C recommendation | T139: Well water/deionized water mix
B140: Smallmouth bass, Micropterus dolomieui | C140: S, M, T | D140: 12.4 | E140: 6.25 | F140: 1.6 | G140: > | H140: 978.4 | I140: Kane 1984; Kane and Rabeni 1987 | J140: > | K140: =EXP(LN(H140)-2.209*(LN(F140)-LN('Summary Sheet'!$C$6))-2.041*(E140-'Summary Sheet'!$C$4)-1.862*(LN(D140)-LN('Summary Sheet'!$C$5))+0.232*(E140*LN(D140)-'Summary Sheet'!$C$4*LN('Summary Sheet'!$C$5))+0.261*(E140*LN(F140)-'Summary Sheet'!$C$4*LN('Summary Sheet'!$C$6))) -> 4747.309283 | N140: - | Q140: Micropterus | S140: Value is from 2007 FW Cu AWQC Appendix C recommendation | T140: Well water/deionized water mix
B141: Smallmouth bass, Micropterus dolomieui | C141: S, M, T | D141: 12 | E141: 7.5 | F141: 1.6 | G141: > | H141: 216.8 | I141: Kane 1984; Kane and Rabeni 1987 | J141: > | K141: =EXP(LN(H141)-2.209*(LN(F141)-LN('Summary Sheet'!$C$6))-2.041*(E141-'Summary Sheet'!$C$4)-1.862*(LN(D141)-LN('Summary Sheet'!$C$5))+0.232*(E141*LN(D141)-'Summary Sheet'!$C$4*LN('Summary Sheet'!$C$5))+0.261*(E141*LN(F141)-'Summary Sheet'!$C$4*LN('Summary Sheet'!$C$6))) -> 199.2600936 | L141: c | N141: =GEOMEAN(K139:K140) -> 3880.448732 | O141: =N141 -> 3880.448732 | Q141: Micropterus | R141: Fish | S141: Value is from 2007 FW Cu AWQC Appendix C recommendation | T141: Well water/deionized water mix
B143: Green tree frog, Hyla cinerea | C143: R, M, T | D143: 4.55 | E143: 5.49 | F143: 0.5 | G143: > | H143: 405.2 | I143: Jung and Jagoe 1995 | J143: > | K143: =EXP(LN(H143)-2.209*(LN(F143)-LN('Summary Sheet'!$C$6))-2.041*(E143-'Summary Sheet'!$C$4)-1.862*(LN(D143)-LN('Summary Sheet'!$C$5))+0.232*(E143*LN(D143)-'Summary Sheet'!$C$4*LN('Summary Sheet'!$C$5))+0.261*(E143*LN(F143)-'Summary Sheet'!$C$4*LN('Summary Sheet'!$C$6))) -> 24109.7067 | M143: > | N143: =K143 -> 24109.7067 | O143: =N143 -> 24109.7067 | P143: > | Q143: Hyla | R143: Amphibian | S143: Value is from 2007 FW Cu AWQC Appendix C recommendation | T143: Very Soft Recon Lab water (recipe different from EPA)
B144: a S=static, F=flow-through, U=unmeasured, M=measured, A=acid exchangeable aluminum, T=total aluminum, D=dissolved aluminum, NR=not reported.
B145: b Normalized to pH 7, hardness of 100 mg/L as CaCO3 and DOC of 1 mg/L (see Section 2.7.1). Values in bold are used in SMAV calculation.
B146: c Not used to calculate SMAV because either a more definitive value is available or value is considered an outlier.
B147: d When definitive DOC values were not reported by the authors: a DOC value of 0.5 mg/L was used when dilution water was reconstituted, 1.1 mg/L when dilution water was Lake Superior, MN water, 2.8 mg/L when dilution water was Liberty Lake, WA water, 1.6 mg/L when dilution water was tap or well water, or half the detection limit when the reported value was less than the detection limit, based on recommendations in the 2007 Freshwater Copper AWQC (U.S. EPA 2007b).
B148: e Missing water quality parameters and/or dilution water type needed to estimate water quality parameters, so values cannot be normalized.
B149: f Not used to calculate SMAV because flow-through measure test(s) available.
B150: g Phosphate in exposure media is providing an ameliorating effect against aluminum.

Sheet Chronic Dataset
B1: Appendix C. Acceptable Chronic Toxicity Data of Aluminum to Freshwater Aquatic Animals
K2: Values in bold used in SMAV calculation
B3: Species | C3: Total Hardness (mg/L as CaCO3) | D3: pH | E3: DOC (mg/L) | F3: EC20 Endpoint | H3: EC20 (µg/L) | I3: Reference | K3: Normalized Conc.- EC20 (µg/L) | L3: Reason excluded from SMCV | N3: SMCV-EC20 (µg/L) | O3: GMCV-EC20 (µg/L) | Q3: Genus | S3: DOC Notes | T3: Dilution water
B5: Oligochaete, Aeolosoma sp. | C5: 48 | D5: 5.95 | E5: 0.25 | F5: Reproduction (population size) | H5: 1235 | I5: OSU 2012e; Cardwell et al. 2018 | K5: =EXP(LN(H5)-0.597*(LN(E5)-LN('Summary Sheet'!$C$6))-8.802*(D5-'Summary Sheet'!$C$4)-2.089*(LN(C5)-LN('Summary Sheet'!$C$5))+0.491*(D5^2-'Summary Sheet'!$C$4^2)+0.23*(D5*LN(C5)-'Summary Sheet'!$C$4*LN('Summary Sheet'!$C$5))) -> 34720.40938 | N5: =K5 -> 34720.40938 | O5: =N5 -> 34720.40938 | Q5: Aeolosoma | R5: Invert | S5: Author reported; half the detection limit | T5: Soft Lab Recon water
B7: Rotifer, Brachionus calyciflorus | C7: 100 | D7: 6.45 | E7: 0.25 | F7: Reproduction (population size) | H7: 431 | I7: OSU 2012c; Cardwell et al. 2018 | K7: =EXP(LN(H7)-0.597*(LN(E7)-LN('Summary Sheet'!$C$6))-8.802*(D7-'Summary Sheet'!$C$4)-2.089*(LN(C7)-LN('Summary Sheet'!$C$5))+0.491*(D7^2-'Summary Sheet'!$C$4^2)+0.23*(D7*LN(C7)-'Summary Sheet'!$C$4*LN('Summary Sheet'!$C$5))) -> 3122.329327 | Q7: Brachionus | S7: Author reported; half the detection limit | T7: Mod Hard Lab Recon water
B8: Rotifer, Brachionus calyciflorus | C8: 63 | D8: 6.3 | E8: 1.39 | F8: Reproduction (population size) | H8: 1751 | I8: OSU 2018e | K8: =EXP(LN(H8)-0.597*(LN(E8)-LN('Summary Sheet'!$C$6))-8.802*(D8-'Summary Sheet'!$C$4)-2.089*(LN(C8)-LN('Summary Sheet'!$C$5))+0.491*(D8^2-'Summary Sheet'!$C$4^2)+0.23*(D8*LN(C8)-'Summary Sheet'!$C$4*LN('Summary Sheet'!$C$5))) -> 7646.80793 | Q8: Brachionus | S8: Author reported | T8: Recon Lab water
B9: Rotifer, Brachionus calyciflorus | C9: 105 | D9: 6.3 | E9: 1.39 | F9: Reproduction (population size) | H9: 2066 | I9: OSU 2018e | K9: =EXP(LN(H9)-0.597*(LN(E9)-LN('Summary Sheet'!$C$6))-8.802*(D9-'Summary Sheet'!$C$4)-2.089*(LN(C9)-LN('Summary Sheet'!$C$5))+0.491*(D9^2-'Summary Sheet'!$C$4^2)+0.23*(D9*LN(C9)-'Summary Sheet'!$C$4*LN('Summary Sheet'!$C$5))) -> 6506.405902 | Q9: Brachionus | S9: Author reported | T9: Recon Lab water
B10: Rotifer, Brachionus calyciflorus | C10: 114 | D10: 6.2 | E10: 2.63 | F10: Reproduction (population size) | H10: 3061 | I10: OSU 2018e | K10: =EXP(LN(H10)-0.597*(LN(E10)-LN('Summary Sheet'!$C$6))-8.802*(D10-'Summary Sheet'!$C$4)-2.089*(LN(C10)-LN('Summary Sheet'!$C$5))+0.491*(D10^2-'Summary Sheet'!$C$4^2)+0.23*(D10*LN(C10)-'Summary Sheet'!$C$4*LN('Summary Sheet'!$C$5))) -> 7316.298553 | Q10: Brachionus | S10: Author reported | T10: Recon Lab water
B11: Rotifer, Brachionus calyciflorus | C11: 105 | D11: 6.1 | E11: 3.77 | F11: Reproduction (population size) | H11: 4670 | I11: OSU 2018e | K11: =EXP(LN(H11)-0.597*(LN(E11)-LN('Summary Sheet'!$C$6))-8.802*(D11-'Summary Sheet'!$C$4)-2.089*(LN(C11)-LN('Summary Sheet'!$C$5))+0.491*(D11^2-'Summary Sheet'!$C$4^2)+0.23*(D11*LN(C11)-'Summary Sheet'!$C$4*LN('Summary Sheet'!$C$5))) -> 11260.49183 | Q11: Brachionus | S11: Author reported | T11: Recon Lab water
B12: Rotifer, Brachionus calyciflorus | C12: 185 | D12: 6.3 | E12: 1.33 | F12: Reproduction (population size) | H12: 1604 | I12: OSU 2018e | K12: =EXP(LN(H12)-0.597*(LN(E12)-LN('Summary Sheet'!$C$6))-8.802*(D12-'Summary Sheet'!$C$4)-2.089*(LN(C12)-LN('Summary Sheet'!$C$5))+0.491*(D12^2-'Summary Sheet'!$C$4^2)+0.23*(D12*LN(C12)-'Summary Sheet'!$C$4*LN('Summary Sheet'!$C$5))) -> 3609.332161 | N12: =GEOMEAN(K7:K12) -> 5990.033882 | O12: =N12 -> 5990.033882 | Q12: Brachionus | R12: Invert | S12: Author reported | T12: Recon Lab water
B14: Great pond snail, Lymnaea stagnalis | C14: 117 | D14: 6 | E14: 0.25 | F14: Biomass | H14: 745.7 | I14: OSU 2012b; Cardwell et al. 2018 | K14: =EXP(LN(H14)-0.597*(LN(E14)-LN('Summary Sheet'!$C$6))-8.802*(D14-'Summary Sheet'!$C$4)-2.089*(LN(C14)-LN('Summary Sheet'!$C$5))+0.491*(D14^2-'Summary Sheet'!$C$4^2)+0.23*(D14*LN(C14)-'Summary Sheet'!$C$4*LN('Summary Sheet'!$C$5))) -> 10063.51306 | Q14: Lymnaea | S14: Author reported; half the detection limit | T14: Recon Lab water (between mod hard and hard)
B15: Great pond snail, Lymnaea stagnalis | C15: 121 | D15: 6.15 | E15: 1.37 | F15: Biomass | H15: 833.42 | I15: OSU 2018f | K15: =EXP(LN(H15)-0.597*(LN(E15)-LN('Summary Sheet'!$C$6))-8.802*(D15-'Summary Sheet'!$C$4)-2.089*(LN(C15)-LN('Summary Sheet'!$C$5))+0.491*(D15^2-'Summary Sheet'!$C$4^2)+0.23*(D15*LN(C15)-'Summary Sheet'!$C$4*LN('Summary Sheet'!$C$5))) -> 3067.119994 | Q15: Lymnaea | S15: Author reported | T15: Recon Lab water
B16: Great pond snail, Lymnaea stagnalis | C16: 124 | D16: 6.17 | E16: 1.45 | F16: Biomass | H16: 1950.6 | I16: OSU 2018f | K16: =EXP(LN(H16)-0.597*(LN(E16)-LN('Summary Sheet'!$C$6))-8.802*(D16-'Summary Sheet'!$C$4)-2.089*(LN(C16)-LN('Summary Sheet'!$C$5))+0.491*(D16^2-'Summary Sheet'!$C$4^2)+0.23*(D16*LN(C16)-'Summary Sheet'!$C$4*LN('Summary Sheet'!$C$5))) -> 6604.879268 | Q16: Lymnaea | S16: Author reported | T16: Recon Lab water
B17: Great pond snail, Lymnaea stagnalis | C17: 117 | D17: 5.98 | E17: 3.85 | F17: Biomass | H17: 1392.4 | I17: OSU 2018f | K17: =EXP(LN(H17)-0.597*(LN(E17)-LN('Summary Sheet'!$C$6))-8.802*(D17-'Summary Sheet'!$C$4)-2.089*(LN(C17)-LN('Summary Sheet'!$C$5))+0.491*(D17^2-'Summary Sheet'!$C$4^2)+0.23*(D17*LN(C17)-'Summary Sheet'!$C$4*LN('Summary Sheet'!$C$5))) -> 3809.317704 | N17: =GEOMEAN(K14:K17) -> 5278.956886 | O17: =N17 -> 5278.956886 | Q17: Lymnaea | R17: Mollusk | S17: Author reported | T17: Recon Lab water
B19: Fatmucket, Lampsilis siliquoidea | C19: 105.5 | D19: 6.04 | E19: =AVERAGE(0.34,0.45) -> 0.395 | F19: Biomass | H19: 169 | I19: Wang et al. 2016, 2018 | K19: =EXP(LN(H19)-0.597*(LN(E19)-LN('Summary Sheet'!$C$6))-8.802*(D19-'Summary Sheet'!$C$4)-2.089*(LN(C19)-LN('Summary Sheet'!$C$5))+0.491*(D19^2-'Summary Sheet'!$C$4^2)+0.23*(D19*LN(C19)-'Summary Sheet'!$C$4*LN('Summary Sheet'!$C$5))) -> 1736.740388 | N19: =K19 -> 1736.740388 | O19: =N19 -> 1736.740388 | Q19: Lampsilis | R19: Mollusk | S19: Author reported | T19: Well water/deionized water mix
B21: Cladoceran, Ceriodaphnia dubia | C21: 50 | D21: 7.15 | E21: 1.1 | F21: Reproduction - young/starting adult | H21: 1779.6 | I21: McCauley et al. 1986 | K21: =EXP(LN(H21)-0.597*(LN(E21)-LN('Summary Sheet'!$C$6))-8.802*(D21-'Summary Sheet'!$C$4)-2.089*(LN(C21)-LN('Summary Sheet'!$C$5))+0.491*(D21^2-'Summary Sheet'!$C$4^2)+0.23*(D21*LN(C21)-'Summary Sheet'!$C$4*LN('Summary Sheet'!$C$5))) -> 3436.843703 | Q21: Ceriodaphnia | S21: Value is from personal communication with R. Erickson who works at the Lab | T21: Raw Lake Superior water
B22: Cladoceran, Ceriodaphnia dubia | C22: 50.5 | D22: 7.61 | E22: 1.1 | F22: MATC: reproduction - young/starting adult) | G22: < | H22: 1100 | I22: McCauley et al. 1986 | J22: < | K22: =EXP(LN(H22)-0.597*(LN(E22)-LN('Summary Sheet'!$C$6))-8.802*(D22-'Summary Sheet'!$C$4)-2.089*(LN(C22)-LN('Summary Sheet'!$C$5))+0.491*(D22^2-'Summary Sheet'!$C$4^2)+0.23*(D22*LN(C22)-'Summary Sheet'!$C$4*LN('Summary Sheet'!$C$5))) -> 1566.385191 | L22: f | Q22: Ceriodaphnia | S22: Value is from personal communication with R. Erickson who works at the Lab | T22: UW-S Lake Superior lab water
B23: Cladoceran, Ceriodaphnia dubia | C23: 25 | D23: 7.65 | E23: 0.5 | F23: Reproduction - young/female | H23: 1557 | I23: ENSR 1992b | K23: =EXP(LN(H23)-0.597*(LN(E23)-LN('Summary Sheet'!$C$6))-8.802*(D23-'Summary Sheet'!$C$4)-2.089*(LN(C23)-LN('Summary Sheet'!$C$5))+0.491*(D23^2-'Summary Sheet'!$C$4^2)+0.23*(D23*LN(C23)-'Summary Sheet'!$C$4*LN('Summary Sheet'!$C$5))) -> 4403.102829 | Q23: Ceriodaphnia | S23: Value is from 2007 FW Cu AWQC Appendix C recommendation | T23: Very Soft Lab Recon water
B24: Cladoceran, Ceriodaphnia dubia | C24: 47 | D24: 7.7 | E24: 0.5 | F24: Reproduction - young/female | H24: 808.73 | I24: ENSR 1992b | K24: =EXP(LN(H24)-0.597*(LN(E24)-LN('Summary Sheet'!$C$6))-8.802*(D24-'Summary Sheet'!$C$4)-2.089*(LN(C24)-LN('Summary Sheet'!$C$5))+0.491*(D24^2-'Summary Sheet'!$C$4^2)+0.23*(D24*LN(C24)-'Summary Sheet'!$C$4*LN('Summary Sheet'!$C$5))) -> 1822.617349 | Q24: Ceriodaphnia | S24: Value is from 2007 FW Cu AWQC Appendix C recommendation | T24: Soft Lab Recon water
B25: Cladoceran, Ceriodaphnia dubia | C25: 94 | D25: 8.2 | E25: 0.5 | F25: Reproduction - young/female | H25: 651.9 | I25: ENSR 1992b | K25: =EXP(LN(H25)-0.597*(LN(E25)-LN('Summary Sheet'!$C$6))-8.802*(D25-'Summary Sheet'!$C$4)-2.089*(LN(C25)-LN('Summary Sheet'!$C$5))+0.491*(D25^2-'Summary Sheet'!$C$4^2)+0.23*(D25*LN(C25)-'Summary Sheet'!$C$4*LN('Summary Sheet'!$C$5))) -> 1208.291923 | Q25: Ceriodaphnia | S25: Value is from 2007 FW Cu AWQC Appendix C recommendation | T25: Mod Hard Lab Recon water
B26: Cladoceran, Ceriodaphnia dubia | C26: 196 | D26: 8.45 | E26: 0.5 | F26: Reproduction - young/female | H26: 683.62 | I26: ENSR 1992b | K26: =EXP(LN(H26)-0.597*(LN(E26)-LN('Summary Sheet'!$C$6))-8.802*(D26-'Summary Sheet'!$C$4)-2.089*(LN(C26)-LN('Summary Sheet'!$C$5))+0.491*(D26^2-'Summary Sheet'!$C$4^2)+0.23*(D26*LN(C26)-'Summary Sheet'!$C$4*LN('Summary Sheet'!$C$5))) -> 1264.060828 | Q26: Ceriodaphnia | S26: Value is from 2007 FW Cu AWQC Appendix C recommendation | T26: Hard Lab Recon water
B27: Cladoceran, Ceriodaphnia dubia | C27: 25 | D27: 6.34 | E27: 0.5 | F27: Reproduction | H27: 36.6 | I27: European Al Association 2010; Gensemer et al. 2018 | K27: =EXP(LN(H27)-0.597*(LN(E27)-LN('Summary Sheet'!$C$6))-8.802*(D27-'Summary Sheet'!$C$4)-2.089*(LN(C27)-LN('Summary Sheet'!$C$5))+0.491*(D27^2-'Summary Sheet'!$C$4^2)+0.23*(D27*LN(C27)-'Summary Sheet'!$C$4*LN('Summary Sheet'!$C$5))) -> 493.6672179 | Q27: Ceriodaphnia | S27: Value is from 2007 FW Cu AWQC Appendix C recommendation | T27: Lab Recon water (between very soft and soft)
B28: Cladoceran, Ceriodaphnia dubia | C28: 60 | D28: 6.4 | E28: 0.5 | F28: Reproduction | H28: 160.3 | I28: European Al Association 2010; Gensemer et al. 2018 | K28: =EXP(LN(H28)-0.597*(LN(E28)-LN('Summary Sheet'!$C$6))-8.802*(D28-'Summary Sheet'!$C$4)-2.089*(LN(C28)-LN('Summary Sheet'!$C$5))+0.491*(D28^2-'Summary Sheet'!$C$4^2)+0.23*(D28*LN(C28)-'Summary Sheet'!$C$4*LN('Summary Sheet'!$C$5))) -> 1130.389041 | Q28: Ceriodaphnia | S28: Value is from 2007 FW Cu AWQC Appendix C recommendation | T28: Lab Recon water (between soft and mod hard)
B29: Cladoceran, Ceriodaphnia dubia | C29: 120 | D29: 6.38 | E29: 0.5 | F29: Reproduction | H29: 221.6 | I29: European Al Association 2010; Gensemer et al. 2018 | K29: =EXP(LN(H29)-0.597*(LN(E29)-LN('Summary Sheet'!$C$6))-8.802*(D29-'Summary Sheet'!$C$4)-2.089*(LN(C29)-LN('Summary Sheet'!$C$5))+0.491*(D29^2-'Summary Sheet'!$C$4^2)+0.23*(D29*LN(C29)-'Summary Sheet'!$C$4*LN('Summary Sheet'!$C$5))) -> 1048.368222 | Q29: Ceriodaphnia | S29: Value is from 2007 FW Cu AWQC Appendix C recommendation | T29: Lab Recon water (between mod hard and hard)
B30: Cladoceran, Ceriodaphnia dubia | C30: 25 | D30: 6.34 | E30: 2 | F30: Reproduction | H30: 377.4 | I30: European Al Association 2010; Gensemer et al. 2018 | K30: =EXP(LN(H30)-0.597*(LN(E30)-LN('Summary Sheet'!$C$6))-8.802*(D30-'Summary Sheet'!$C$4)-2.089*(LN(C30)-LN('Summary Sheet'!$C$5))+0.491*(D30^2-'Summary Sheet'!$C$4^2)+0.23*(D30*LN(C30)-'Summary Sheet'!$C$4*LN('Summary Sheet'!$C$5))) -> 2224.975762 | Q30: Ceriodaphnia | S30: Author reported | T30: Lab Recon water (between very soft and soft)
B31: Cladoceran, Ceriodaphnia dubia | C31: 60 | D31: 6.38 | E31: 2 | F31: Reproduction | H31: 631.3 | I31: European Al Association 2010; Gensemer et al. 2018 | K31: =EXP(LN(H31)-0.597*(LN(E31)-LN('Summary Sheet'!$C$6))-8.802*(D31-'Summary Sheet'!$C$4)-2.089*(LN(C31)-LN('Summary Sheet'!$C$5))+0.491*(D31^2-'Summary Sheet'!$C$4^2)+0.23*(D31*LN(C31)-'Summary Sheet'!$C$4*LN('Summary Sheet'!$C$5))) -> 2008.492951 | Q31: Ceriodaphnia | S31: Author reported | T31: Lab Recon water (between soft and mod hard)
B32: Cladoceran, Ceriodaphnia dubia | C32: 120 | D32: 6.37 | E32: 2 | F32: Reproduction | H32: 1011.6 | I32: European Al Association 2010; Gensemer et al. 2018 | K32: =EXP(LN(H32)-0.597*(LN(E32)-LN('Summary Sheet'!$C$6))-8.802*(D32-'Summary Sheet'!$C$4)-2.089*(LN(C32)-LN('Summary Sheet'!$C$5))+0.491*(D32^2-'Summary Sheet'!$C$4^2)+0.23*(D32*LN(C32)-'Summary Sheet'!$C$4*LN('Summary Sheet'!$C$5))) -> 2122.167509 | Q32: Ceriodaphnia | S32: Author reported | T32: Lab Recon water (between mod hard and hard)
B33: Cladoceran, Ceriodaphnia dubia | C33: 25 | D33: 6.33 | E33: 4 | F33: Reproduction | H33: 622.6 | I33: European Al Association 2010; Gensemer et al. 2018 | K33: =EXP(LN(H33)-0.597*(LN(E33)-LN('Summary Sheet'!$C$6))-8.802*(D33-'Summary Sheet'!$C$4)-2.089*(LN(C33)-LN('Summary Sheet'!$C$5))+0.491*(D33^2-'Summary Sheet'!$C$4^2)+0.23*(D33*LN(C33)-'Summary Sheet'!$C$4*LN('Summary Sheet'!$C$5))) -> 2471.790202 | Q33: Ceriodaphnia | S33: Author reported | T33: Lab Recon water (between very soft and soft)
B34: Cladoceran, Ceriodaphnia dubia | C34: 60 | D34: 6.3 | E34: 4 | F34: Reproduction | H34: 692.9 | I34: European Al Association 2010; Gensemer et al. 2018 | K34: =EXP(LN(H34)-0.597*(LN(E34)-LN('Summary Sheet'!$C$6))-8.802*(D34-'Summary Sheet'!$C$4)-2.089*(LN(C34)-LN('Summary Sheet'!$C$5))+0.491*(D34^2-'Summary Sheet'!$C$4^2)+0.23*(D34*LN(C34)-'Summary Sheet'!$C$4*LN('Summary Sheet'!$C$5))) -> 1661.023472 | Q34: Ceriodaphnia | S34: Author reported | T34: Lab Recon water (between soft and mod hard)
B35: Cladoceran, Ceriodaphnia dubia | C35: 120 | D35: 6.38 | E35: 4 | F35: Reproduction | H35: 840.5 | I35: European Al Association 2010; Gensemer et al. 2018 | K35: =EXP(LN(H35)-0.597*(LN(E35)-LN('Summary Sheet'!$C$6))-8.802*(D35-'Summary Sheet'!$C$4)-2.089*(LN(C35)-LN('Summary Sheet'!$C$5))+0.491*(D35^2-'Summary Sheet'!$C$4^2)+0.23*(D35*LN(C35)-'Summary Sheet'!$C$4*LN('Summary Sheet'!$C$5))) -> 1149.045133 | Q35: Ceriodaphnia | S35: Author reported | T35: Lab Recon water (between mod hard and hard)
B36: Cladoceran, Ceriodaphnia dubia | C36: 25 | D36: 6.37 | E36: 2 | F36: Reproduction | H36: 353 | I36: Gensemer et al. 2018 | K36: =EXP(LN(H36)-0.597*(LN(E36)-LN('Summary Sheet'!$C$6))-8.802*(D36-'Summary Sheet'!$C$4)-2.089*(LN(C36)-LN('Summary Sheet'!$C$5))+0.491*(D36^2-'Summary Sheet'!$C$4^2)+0.23*(D36*LN(C36)-'Summary Sheet'!$C$4*LN('Summary Sheet'!$C$5))) -> 1970.479648 | Q36: Ceriodaphnia | S36: Author reported | T36: Lab Recon water (between very soft and soft)
B37: Cladoceran, Ceriodaphnia dubia | C37: 25 | D37: 6.34 | E37: 2 | F37: Reproduction | H37: 452.4 | I37: Gensemer et al. 2018 | K37: =EXP(LN(H37)-0.597*(LN(E37)-LN('Summary Sheet'!$C$6))-8.802*(D37-'Summary Sheet'!$C$4)-2.089*(LN(C37)-LN('Summary Sheet'!$C$5))+0.491*(D37^2-'Summary Sheet'!$C$4^2)+0.23*(D37*LN(C37)-'Summary Sheet'!$C$4*LN('Summary Sheet'!$C$5))) -> 2667.141057 | Q37: Ceriodaphnia | S37: Author reported | T37: Lab Recon water (between very soft and soft)
B38: Cladoceran, Ceriodaphnia dubia | C38: 25 | D38: 6.35 | E38: 2 | F38: Reproduction | H38: 439.7 | I38: Gensemer et al. 2018 | K38: =EXP(LN(H38)-0.597*(LN(E38)-LN('Summary Sheet'!$C$6))-8.802*(D38-'Summary Sheet'!$C$4)-2.089*(LN(C38)-LN('Summary Sheet'!$C$5))+0.491*(D38^2-'Summary Sheet'!$C$4^2)+0.23*(D38*LN(C38)-'Summary Sheet'!$C$4*LN('Summary Sheet'!$C$5))) -> 2545.238554 | Q38: Ceriodaphnia | S38: Author reported | T38: Lab Recon water (between very soft and soft)
B39: Cladoceran, Ceriodaphnia dubia | C39: 25 | D39: 7.04 | E39: 0.5 | F39: Reproduction (young/female) | H39: 250 | I39: CECM 2014; Gensemer et al. 2018 | K39: =EXP(LN(H39)-0.597*(LN(E39)-LN('Summary Sheet'!$C$6))-8.802*(D39-'Summary Sheet'!$C$4)-2.089*(LN(C39)-LN('Summary Sheet'!$C$5))+0.491*(D39^2-'Summary Sheet'!$C$4^2)+0.23*(D39*LN(C39)-'Summary Sheet'!$C$4*LN('Summary Sheet'!$C$5))) -> 1186.566744 | Q39: Ceriodaphnia | S39: Author reported | T39: Lab Recon water (between very soft and soft)
B40: Cladoceran, Ceriodaphnia dubia | C40: 120 | D40: 7.14 | E40: 0.5 | F40: Reproduction (young/female) | H40: 860 | I40: CECM 2014; Gensemer et al. 2018 | K40: =EXP(LN(H40)-0.597*(LN(E40)-LN('Summary Sheet'!$C$6))-8.802*(D40-'Summary Sheet'!$C$4)-2.089*(LN(C40)-LN('Summary Sheet'!$C$5))+0.491*(D40^2-'Summary Sheet'!$C$4^2)+0.23*(D40*LN(C40)-'Summary Sheet'!$C$4*LN('Summary Sheet'!$C$5))) -> 1814.391358 | Q40: Ceriodaphnia | S40: Author reported | T40: Lab Recon water (between mod hard and hard)
B41: Cladoceran, Ceriodaphnia dubia | C41: 25 | D41: 7.98 | E41: 0.5 | F41: Reproduction (young/female) | H41: 700 | I41: CECM 2014; Gensemer et al. 2018 | K41: =EXP(LN(H41)-0.597*(LN(E41)-LN('Summary Sheet'!$C$6))-8.802*(D41-'Summary Sheet'!$C$4)-2.089*(LN(C41)-LN('Summary Sheet'!$C$5))+0.491*(D41^2-'Summary Sheet'!$C$4^2)+0.23*(D41*LN(C41)-'Summary Sheet'!$C$4*LN('Summary Sheet'!$C$5))) -> 1742.037176 | Q41: Ceriodaphnia | S41: Author reported | T41: Lab Recon water (between very soft and soft)
B42: Cladoceran, Ceriodaphnia dubia | C42: 60 | D42: 8.03 | E42: 0.5 | F42: Reproduction (young/female) | H42: 1010 | I42: CECM 2014; Gensemer et al. 2018 | K42: =EXP(LN(H42)-0.597*(LN(E42)-LN('Summary Sheet'!$C$6))-8.802*(D42-'Summary Sheet'!$C$4)-2.089*(LN(C42)-LN('Summary Sheet'!$C$5))+0.491*(D42^2-'Summary Sheet'!$C$4^2)+0.23*(D42*LN(C42)-'Summary Sheet'!$C$4*LN('Summary Sheet'!$C$5))) -> 2013.132737 | Q42: Ceriodaphnia | S42: Author reported | T42: Lab Recon water (between soft and mod hard)
B43: Cladoceran, Ceriodaphnia dubia | C43: 120 | D43: 8.1 | E43: 0.5 | F43: Reproduction (young/female) | H43: 870 | I43: CECM 2014; Gensemer et al. 2018 | K43: =EXP(LN(H43)-0.597*(LN(E43)-LN('Summary Sheet'!$C$6))-8.802*(D43-'Summary Sheet'!$C$4)-2.089*(LN(C43)-LN('Summary Sheet'!$C$5))+0.491*(D43^2-'Summary Sheet'!$C$4^2)+0.23*(D43*LN(C43)-'Summary Sheet'!$C$4*LN('Summary Sheet'!$C$5))) -> 1488.837287 | Q43: Ceriodaphnia | S43: Author reported | T43: Lab Recon water (between mod hard and hard)
B44: Cladoceran, Ceriodaphnia dubia | C44: 25 | D44: 6.34 | E44: 0.5 | F44: Reproduction (young/female) | H44: 260 | I44: CECM 2014; Gensemer et al. 2018 | K44: =EXP(LN(H44)-0.597*(LN(E44)-LN('Summary Sheet'!$C$6))-8.802*(D44-'Summary Sheet'!$C$4)-2.089*(LN(C44)-LN('Summary Sheet'!$C$5))+0.491*(D44^2-'Summary Sheet'!$C$4^2)+0.23*(D44*LN(C44)-'Summary Sheet'!$C$4*LN('Summary Sheet'!$C$5))) -> 3506.925592 | Q44: Ceriodaphnia | S44: Author reported | T44: Lab Recon water (between very soft and soft)
B45: Cladoceran, Ceriodaphnia dubia | C45: 120 | D45: 6.36 | E45: 0.5 | F45: Reproduction (young/female) | H45: 390 | I45: CECM 2014; Gensemer et al. 2018 | K45: =EXP(LN(H45)-0.597*(LN(E45)-LN('Summary Sheet'!$C$6))-8.802*(D45-'Summary Sheet'!$C$4)-2.089*(LN(C45)-LN('Summary Sheet'!$C$5))+0.491*(D45^2-'Summary Sheet'!$C$4^2)+0.23*(D45*LN(C45)-'Summary Sheet'!$C$4*LN('Summary Sheet'!$C$5))) -> 1899.172762 | Q45: Ceriodaphnia | S45: Author reported | T45: Lab Recon water (between mod hard and hard)
B46: Cladoceran, Ceriodaphnia dubia | C46: 64 | D46: 6.42 | E46: 1.87 | F46: Reproduction (young/female) | H46: 828.6 | I46: OSU 2018a | K46: =EXP(LN(H46)-0.597*(LN(E46)-LN('Summary Sheet'!$C$6))-8.802*(D46-'Summary Sheet'!$C$4)-2.089*(LN(C46)-LN('Summary Sheet'!$C$5))+0.491*(D46^2-'Summary Sheet'!$C$4^2)+0.23*(D46*LN(C46)-'Summary Sheet'!$C$4*LN('Summary Sheet'!$C$5))) -> 2476.685595 | Q46: Ceriodaphnia | S46: Author reported | T46: Lab Recon water
B47: Cladoceran, Ceriodaphnia dubia | C47: 133 | D47: 6.325 | E47: 8.71 | F47: Reproduction (young/female) | H47: 3829 | I47: OSU 2018a | K47: =EXP(LN(H47)-0.597*(LN(E47)-LN('Summary Sheet'!$C$6))-8.802*(D47-'Summary Sheet'!$C$4)-2.089*(LN(C47)-LN('Summary Sheet'!$C$5))+0.491*(D47^2-'Summary Sheet'!$C$4^2)+0.23*(D47*LN(C47)-'Summary Sheet'!$C$4*LN('Summary Sheet'!$C$5))) -> 3339.876262 | Q47: Ceriodaphnia | S47: Author reported | T47: Lab Recon water
B48: Cladoceran, Ceriodaphnia dubia | C48: 138 | D48: 6.395 | E48: 12.3 | F48: Reproduction (young/female) | H48: 6224 | I48: OSU 2018a | K48: =EXP(LN(H48)-0.597*(LN(E48)-LN('Summary Sheet'!$C$6))-8.802*(D48-'Summary Sheet'!$C$4)-2.089*(LN(C48)-LN('Summary Sheet'!$C$5))+0.491*(D48^2-'Summary Sheet'!$C$4^2)+0.23*(D48*LN(C48)-'Summary Sheet'!$C$4*LN('Summary Sheet'!$C$5))) -> 3906.610984 | Q48: Ceriodaphnia | S48: Author reported | T48: Lab Recon water
B49: Cladoceran, Ceriodaphnia dubia | C49: 428 | D49: 6.295 | E49: 1.64 | F49: Reproduction (young/female) | H49: 2011 | I49: OSU 2018a | K49: =EXP(LN(H49)-0.597*(LN(E49)-LN('Summary Sheet'!$C$6))-8.802*(D49-'Summary Sheet'!$C$4)-2.089*(LN(C49)-LN('Summary Sheet'!$C$5))+0.491*(D49^2-'Summary Sheet'!$C$4^2)+0.23*(D49*LN(C49)-'Summary Sheet'!$C$4*LN('Summary Sheet'!$C$5))) -> 2348.748652 | Q49: Ceriodaphnia | S49: Author reported | T49: Lab Recon water
B50: Cladoceran, Ceriodaphnia dubia | C50: 125 | D50: 7.205 | E50: 6.57 | F50: Reproduction (young/female) | H50: 6401 | I50: OSU 2018a | K50: =EXP(LN(H50)-0.597*(LN(E50)-LN('Summary Sheet'!$C$6))-8.802*(D50-'Summary Sheet'!$C$4)-2.089*(LN(C50)-LN('Summary Sheet'!$C$5))+0.491*(D50^2-'Summary Sheet'!$C$4^2)+0.23*(D50*LN(C50)-'Summary Sheet'!$C$4*LN('Summary Sheet'!$C$5))) -> 2731.886136 | Q50: Ceriodaphnia | S50: Author reported | T50: Lab Recon water
B51: Cladoceran, Ceriodaphnia dubia | C51: 127 | D51: 7.185 | E51: 12.01 | F51: Reproduction (young/female) | H51: 6612 | I51: OSU 2018a | K51: =EXP(LN(H51)-0.597*(LN(E51)-LN('Summary Sheet'!$C$6))-8.802*(D51-'Summary Sheet'!$C$4)-2.089*(LN(C51)-LN('Summary Sheet'!$C$5))+0.491*(D51^2-'Summary Sheet'!$C$4^2)+0.23*(D51*LN(C51)-'Summary Sheet'!$C$4*LN('Summary Sheet'!$C$5))) -> 1979.591368 | Q51: Ceriodaphnia | S51: Author reported | T51: Lab Recon water
B52: Cladoceran, Ceriodaphnia dubia | C52: 263 | D52: 8.17 | E52: 1.3 | F52: Reproduction (young/female) | H52: 3749 | I52: OSU 2018a | K52: =EXP(LN(H52)-0.597*(LN(E52)-LN('Summary Sheet'!$C$6))-8.802*(D52-'Summary Sheet'!$C$4)-2.089*(LN(C52)-LN('Summary Sheet'!$C$5))+0.491*(D52^2-'Summary Sheet'!$C$4^2)+0.23*(D52*LN(C52)-'Summary Sheet'!$C$4*LN('Summary Sheet'!$C$5))) -> 3138.4977 | Q52: Ceriodaphnia | S52: Author reported | T52: Lab Recon water
B53: Cladoceran, Ceriodaphnia dubia | C53: 425 | D53: 8.21 | E53: 1.2 | F53: Reproduction (young/female) | H53: 2852 | I53: OSU 2018a | K53: =EXP(LN(H53)-0.597*(LN(E53)-LN('Summary Sheet'!$C$6))-8.802*(D53-'Summary Sheet'!$C$4)-2.089*(LN(C53)-LN('Summary Sheet'!$C$5))+0.491*(D53^2-'Summary Sheet'!$C$4^2)+0.23*(D53*LN(C53)-'Summary Sheet'!$C$4*LN('Summary Sheet'!$C$5))) -> 2322.455758 | Q53: Ceriodaphnia | S53: Author reported | T53: Lab Recon water
B54: Cladoceran, Ceriodaphnia dubia | C54: 125 | D54: 8.7 | E54: 1.04 | F54: Reproduction (young/female) | H54: 1692.5 | I54: OSU 2018a | K54: =EXP(LN(H54)-0.597*(LN(E54)-LN('Summary Sheet'!$C$6))-8.802*(D54-'Summary Sheet'!$C$4)-2.089*(LN(C54)-LN('Summary Sheet'!$C$5))+0.491*(D54^2-'Summary Sheet'!$C$4^2)+0.23*(D54*LN(C54)-'Summary Sheet'!$C$4*LN('Summary Sheet'!$C$5))) -> 2589.337772 | N54: =GEOMEAN(K21, K23:K54) -> 1999.750449 | O54: =N54 -> 1999.750449 | Q54: Ceriodaphnia | R54: Invert | S54: Author reported | T54: Lab Recon water
B56: Cladoceran, Daphnia magna | C56: 140 | D56: 6.3 | E56: 2 | F56: Reproduction (young/female) | H56: 791 | I56: European Al Association 2010; Gensemer et al. 2018 | K56: =EXP(LN(H56)-0.597*(LN(E56)-LN('Summary Sheet'!$C$6))-8.802*(D56-'Summary Sheet'!$C$4)-2.089*(LN(C56)-LN('Summary Sheet'!$C$5))+0.491*(D56^2-'Summary Sheet'!$C$4^2)+0.23*(D56*LN(C56)-'Summary Sheet'!$C$4*LN('Summary Sheet'!$C$5))) -> 1667.598349 | N56: =GEOMEAN(K56) -> 1667.598349 | O56: =N56 -> 1667.598349 | Q56: Daphnia | R56: Invert | S56: Author reported | T56: Hard Lab Recon water
B58: Amphipod, Hyalella azteca | C58: 95 | D58: 6.35 | E58: 0.51 | F58: Biomass (28 d) | H58: 199.3 | I58: OSU 2012h; Cardwell et al. 2018 | K58: =EXP(LN(H58)-0.597*(LN(E58)-LN('Summary Sheet'!$C$6))-8.802*(D58-'Summary Sheet'!$C$4)-2.089*(LN(C58)-LN('Summary Sheet'!$C$5))+0.491*(D58^2-'Summary Sheet'!$C$4^2)+0.23*(D58*LN(C58)-'Summary Sheet'!$C$4*LN('Summary Sheet'!$C$5))) -> 1127.147749 | Q58: Hyalella | S58: Author reported | T58: Well water/reverse osmosis water mix
B59: Amphipod, Hyalella azteca | C59: 106 | D59: 6.04 | E59: =AVERAGE(0.26,0.39) -> 0.325 | F59: Biomass (28 d) | H59: 425 | I59: Wang et al. 2016, 2018 | K59: =EXP(LN(H59)-0.597*(LN(E59)-LN('Summary Sheet'!$C$6))-8.802*(D59-'Summary Sheet'!$C$4)-2.089*(LN(C59)-LN('Summary Sheet'!$C$5))+0.491*(D59^2-'Summary Sheet'!$C$4^2)+0.23*(D59*LN(C59)-'Summary Sheet'!$C$4*LN('Summary Sheet'!$C$5))) -> 4890.736399 | N59: =GEOMEAN(K58:K59) -> 2347.88895 | O59: =N59 -> 2347.88895 | Q59: Hyalella | R59: Invert | S59: Author reported | T59: Well water/deionized water mix
B61: Midge, Chironomus riparius | C61: 11.8 | D61: 5.58 | E61: 1.8 | F61: Adult midge emergence | H61: 29.547 | I61: Palawski et al. 1989 | K61: =EXP(LN(H61)-0.597*(LN(E61)-LN('Summary Sheet'!$C$6))-8.802*(D61-'Summary Sheet'!$C$4)-2.089*(LN(C61)-LN('Summary Sheet'!$C$5))+0.491*(D61^2-'Summary Sheet'!$C$4^2)+0.23*(D61*LN(C61)-'Summary Sheet'!$C$4*LN('Summary Sheet'!$C$5))) -> 1820.191146 | Q61: Chironomus | S61: Based on Cleveland et al. 1989 reported values at a similar pH | T61: Well water/reverse osmosis water mix
B62: Midge, Chironomus riparius | C62: 11.9 | D62: 5.05 | E62: 1.8 | F62: Adult midge emergence | H62: 84.416 | I62: Palawski et al. 1989 | K62: =EXP(LN(H62)-0.597*(LN(E62)-LN('Summary Sheet'!$C$6))-8.802*(D62-'Summary Sheet'!$C$4)-2.089*(LN(C62)-LN('Summary Sheet'!$C$5))+0.491*(D62^2-'Summary Sheet'!$C$4^2)+0.23*(D62*LN(C62)-'Summary Sheet'!$C$4*LN('Summary Sheet'!$C$5))) -> 25504.19576 | Q62: Chironomus | S62: Based on Cleveland et al. 1989 reported values at a similar pH | T62: Well water/reverse osmosis water mix
B63: Midge, Chironomus riparius | C63: 91 | D63: 6.6 | E63: 0.51 | F63: Reproduction (# of eggs/case) | H63: 3387 | I63: OSU 2012f; Cardwell et al. 2018 | K63: =EXP(LN(H63)-0.597*(LN(E63)-LN('Summary Sheet'!$C$6))-8.802*(D63-'Summary Sheet'!$C$4)-2.089*(LN(C63)-LN('Summary Sheet'!$C$5))+0.491*(D63^2-'Summary Sheet'!$C$4^2)+0.23*(D63*LN(C63)-'Summary Sheet'!$C$4*LN('Summary Sheet'!$C$5))) -> 13847.4666 | N63: =GEOMEAN(K61:K63) -> 8630.440956 | O63: =N63 -> 8630.440956 | Q63: Chironomus | R63: Invert | S63: Author reported | T63: Well water/reverse osmosis water mix
B65: Atlantic salmon, Salmo salar | C65: 12.7 | D65: 5.7 | E65: 1.8 | F65: Biomass | H65: 61.564 | I65: McKee et al. 1989 | K65: =EXP(LN(H65)-2.209*(LN(E65)-LN('Summary Sheet'!$C$6))-2.041*(D65-'Summary Sheet'!$C$4)-1.862*(LN(C65)-LN('Summary Sheet'!$C$5))+0.232*(D65*LN(C65)-'Summary Sheet'!$C$4*LN('Summary Sheet'!$C$5))+0.261*(D65*LN(E65)-'Summary Sheet'!$C$4*LN('Summary Sheet'!$C$6))) -> 564.2280739 | Q65: Salmo | S65: Based on Cleveland et al. 1989 reported values at a similar pH | T65: Well water/reverse osmosis water mix
B66: Atlantic salmon, Salmo salar | C66: 12.7 | D66: 5.7 | E66: 1.8 | F66: Survival | H66: 154.22 | I66: Buckler et al. 1995 | K66: =EXP(LN(H66)-2.209*(LN(E66)-LN('Summary Sheet'!$C$6))-2.041*(D66-'Summary Sheet'!$C$4)-1.862*(LN(C66)-LN('Summary Sheet'!$C$5))+0.232*(D66*LN(C66)-'Summary Sheet'!$C$4*LN('Summary Sheet'!$C$5))+0.261*(D66*LN(E66)-'Summary Sheet'!$C$4*LN('Summary Sheet'!$C$6))) -> 1413.411304 | L66: d | N66: =GEOMEAN(K65) -> 564.2280739 | O66: =N66 -> 564.2280739 | Q66: Salmo | R66: Fish | S66: Based on Cleveland et al. 1989 reported values at a similar pH | T66: Well water/reverse osmosis water mix
B68: Brook trout, Salvelinus fontinalis | C68: 12.3 | D68: 6.55 | E68: 1.9 | F68: Biomass | H68: 164.35 | I68: Cleveland et al. 1989 | K68: =EXP(LN(H68)-2.209*(LN(E68)-LN('Summary Sheet'!$C$6))-2.041*(D68-'Summary Sheet'!$C$4)-1.862*(LN(C68)-LN('Summary Sheet'!$C$5))+0.232*(D68*LN(C68)-'Summary Sheet'!$C$4*LN('Summary Sheet'!$C$5))+0.261*(D68*LN(E68)-'Summary Sheet'!$C$4*LN('Summary Sheet'!$C$6))) -> 491.8077156 | Q68: Salvelinus | S68: Author reported | T68: Well water/reverse osmosis water mix
B69: Brook trout, Salvelinus fontinalis | C69: 12.8 | D69: 5.65 | E69: 1.8 | F69: Biomass | H69: 143.47 | I69: Cleveland et al. 1989 | K69: =EXP(LN(H69)-2.209*(LN(E69)-LN('Summary Sheet'!$C$6))-2.041*(D69-'Summary Sheet'!$C$4)-1.862*(LN(C69)-LN('Summary Sheet'!$C$5))+0.232*(D69*LN(C69)-'Summary Sheet'!$C$4*LN('Summary Sheet'!$C$5))+0.261*(D69*LN(E69)-'Summary Sheet'!$C$4*LN('Summary Sheet'!$C$6))) -> 1396.997916 | N69: =GEOMEAN(K68:K69) -> 828.8874193 | O69: =N69 -> 828.8874193 | Q69: Salvelinus | R69: Fish | S69: Author reported | T69: Well water/reverse osmosis water mix
B71: Fathead minnow, Pimephales promelas | C71: 220 | D71: 7.7 | E71: 1.6 | F71: Biomass | H71: 6193.6 | I71: Kimball 1978 | K71: =EXP(LN(H71)-2.209*(LN(E71)-LN('Summary Sheet'!$C$6))-2.041*(D71-'Summary Sheet'!$C$4)-1.862*(LN(C71)-LN('Summary Sheet'!$C$5))+0.232*(D71*LN(C71)-'Summary Sheet'!$C$4*LN('Summary Sheet'!$C$5))+0.261*(D71*LN(E71)-'Summary Sheet'!$C$4*LN('Summary Sheet'!$C$6))) -> 3493.439441 | Q71: Pimephales | S71: Value is from 2007 FW Cu AWQC Appendix C recommendation | T71: Well water
B72: Fathead minnow, Pimephales promelas | C72: 96 | D72: 6.2 | E72: 0.25 | F72: Fry survival | H72: 428.6 | I72: OSU 2012g; Cardwell et al. 2018 | K72: =EXP(LN(H72)-2.209*(LN(E72)-LN('Summary Sheet'!$C$6))-2.041*(D72-'Summary Sheet'!$C$4)-1.862*(LN(C72)-LN('Summary Sheet'!$C$5))+0.232*(D72*LN(C72)-'Summary Sheet'!$C$4*LN('Summary Sheet'!$C$5))+0.261*(D72*LN(E72)-'Summary Sheet'!$C$4*LN('Summary Sheet'!$C$6))) -> 2797.241765 | N72: =GEOMEAN(K71:K72) -> 3126.018987 | O72: =N72 -> 3126.018987 | Q72: Pimephales | R72: Fish | S72: Author reported; half the detection limit | T72: Well water/reverse osmosis water mix
B74: Zebrafish, Danio rerio | C74: 83 | D74: 6.15 | E74: 0.25 | F74: Biomass | H74: 234.4 | I74: OSU 2013; Cardwell et al. 2018 | K74: =EXP(LN(H74)-2.209*(LN(E74)-LN('Summary Sheet'!$C$6))-2.041*(D74-'Summary Sheet'!$C$4)-1.862*(LN(C74)-LN('Summary Sheet'!$C$5))+0.232*(D74*LN(C74)-'Summary Sheet'!$C$4*LN('Summary Sheet'!$C$5))+0.261*(D74*LN(E74)-'Summary Sheet'!$C$4*LN('Summary Sheet'!$C$6))) -> 1743.0883 | N74: =K74 -> 1743.0883 | O74: =N74 -> 1743.0883 | Q74: Danio | R74: Fish | S74: Author reported; half the detection limit | T74: Well water/reverse osmosis water mix
B76: Wood frog, Rana sylvatica | C76: 115 | D76: 4.69 | E76: 1.6 | F76: MATC-survival | G76: > | H76: 2000 | I76: Peles 2013 | J76: > | K76: =EXP(LN(H76)-2.209*(LN(E76)-LN('Summary Sheet'!$C$6))-2.041*(D76-'Summary Sheet'!$C$4)-1.862*(LN(C76)-LN('Summary Sheet'!$C$5))+0.232*(D76*LN(C76)-'Summary Sheet'!$C$4*LN('Summary Sheet'!$C$5))+0.261*(D76*LN(E76)-'Summary Sheet'!$C$4*LN('Summary Sheet'!$C$6))) -> 13877.21466 | M76: > | N76: =K76 -> 13877.21466 | O76: =N76 -> 13877.21466 | P76: > | Q76: Rana | R76: Amphib - Other Data | S76: Value is from 2007 FW Cu AWQC Appendix C recommendation | T76: Aged aerated tap water (McKeesport, PA)
B77: a LC=Life cycle, ELS=Early life-stage.
B78: b Normalized to pH 7, hardness of 100 mg/L as CaCO3 and DOC of 1 mg/L (see Section 2.7.1). Values in bold are used in SMCV calculation.
B79: c When definitive DOC values were not reported by the authors: a DOC value of 0.5 mg/L was used when dilution water was reconstituted, 1.1 mg/L when dilution water was Lake Superior water, 1.6 mg/L when dilution water was tap or well water, or half the detection limit when the reported value was less than the detection limit, based on recommendations in the 2007 Freshwater Copper AWQC (U.S. EPA 2007b).
B80: d Buckler et al. (1995) appears to be a republication of McKee et al. (1989), but does not report the most sensitive endpoint and therefore only the most sensitive endpoint used for calculation of the SMCV.
B81: e DOC was taken from reported values in Cleveland et al. (1989) for a similar pH; all studies are from the same lab and used the same procedures to make the dilution water (well water plus reverse osmosis water mixture).
B82: f Value is an MATC, poor dose response prevented an EC20 from being calculated; not used in SMCV calculation.
